Workbook

Sheet Table S1
A1: Table S1 Details of 198 soybean accessions. | G1: Maturity group
A2: Sr.No. | B2: Genotype Line no | C2: Code | D2: Genotype | E2: Maturity group | F2: Pedigree | G2: EM= Early maturity (70-90 days) | H2: 71
A3: 1 | B3: 1 | C3: ARI 13 | D3: MACS 330 | E3: EM | F3: Indigenous collection (MONETTA × EC95937) | G3: MM=Mid maturity (91-100 days) | H3: 76
A4: 2 | B4: 2 | C4: ARI 6 | D4: EC 38828 | E4: EM | F4: Exotic selection | G4: ML=Late maturity (>100 days) | H4: 51
A5: 3 | B5: 3 | C5: FC3 | D5: JS 9560 | E5: MM | F5: Secondary selection from PS 73-22 | H5: 198
A6: 4 | B6: 4 | C6: FC4 | D6: JS 9752 | E6: MM | F6: PIC 327 × L 129
A7: 5 | B7: 5 | C7: FC6 | D7: RVSM 1135 | E7: MM | F7: -
A8: 6 | B8: 6 | C8: FC7 | D8: BLACK BOLD (PRIVATE) | E8: MM | F8: Unknown
A9: 7 | B9: 7 | C9: FC8 | D9: TS 213 (PRIVATE) | E9: MM | F9: Unknown
A10: 8 | B10: 8 | C10: FC9 | D10: BANDAGE FARMER COLLECTION | E10: MM | F10: Farmer collection
A11: 9 | B11: 9 | C11: FC10 | D11: ARANI | E11: MM | F11: Farmer collection
A12: 10 | B12: 10 | C12: FC11 | D12: SAMRUDHI | E12: ML | F12: Farmer collection
A13: 11 | B13: 12 | C13: FC14 | D13: DSB 23 | E13: MM | F13: JS 335 × EC241780
A14: 12 | B14: 13 | C14: FC15 | D14: KDS 726 | E14: MM | F14: JS93-05 × EC241780
A15: 13 | B15: 14 | C15: FC16 | D15: KDS 753 | E15: MM | F15: JS93-05 × EC241780
A16: 14 | B16: 15 | C16: FC17 | D16: KDS 992 | E16: MM | F16: JS 93-05 × EC241780
A17: 15 | B17: 16 | C17: EM1 | D17: EC 14477 | E17: EM | F17: Exotic selection
A18: 16 | B18: 17 | C18: EM3 | D18: EC 16111 | E18: EM | F18: Exotic selection
A19: 17 | B19: 18 | C19: EM6 | D19: EC 30195 | E19: EM | F19: Exotic selection
A20: 18 | B20: 19 | C20: EM9 | D20: EC 39488 | E20: EM | F20: Exotic selection
A21: 19 | B21: 20 | C21: EM10 | D21: EC 39490 | E21: EM | F21: Exotic selection
A22: 20 | B22: 22 | C22: EM15 | D22: EC 95297 | E22: EM | F22: Exotic selection
A23: 21 | B23: 23 | C23: EM18 | D23: EC 100029 | E23: EM | F23: Exotic selection
A24: 22 | B24: 24 | C24: EM22 | D24: PLSO 23 | E24: EM | F24: -
A25: 23 | B25: 25 | C25: EM26 | D25: HILL | E25: EM | F25: D63-215 X D49-2525
A26: 24 | B26: 26 | C26: EM31 | D26: EC 100780 | E26: EM | F26: Exotic selection
A27: 25 | B27: 27 | C27: EM34 | D27: IC 33776 | E27: EM | F27: Indigenous collection
A28: 26 | B28: 28 | C28: EM35 | D28: IC 34382 | E28: EM | F28: Indigenous collection
A29: 27 | B29: 29 | C29: EM45 | D29: EC 18207 | E29: EM | F29: Exotic selection
A30: 28 | B30: 30 | C30: EM51 | D30: IC 13050 | E30: EM | F30: Indigenous collection
A31: 29 | B31: 31 | C31: EM53 | D31: G 76 | E31: EM | F31: AVRDC Cultivar
A32: 30 | B32: 32 | C32: EM57 | D32: G 142 | E32: EM | F32: AVRDC Cultivar
A33: 31 | B33: 33 | C33: EM65 | D33: JS 97 52 | E33: EM | F33: PIC 327 × L 129
A34: 32 | B34: 34 | C34: EM67 | D34: MRSB 352 | E34: EM | F34: -
A35: 33 | B35: 35 | C35: EM68 | D35: PS 1370 | E35: EM | F35: -
A36: 34 | B36: 36 | C36: EM69 | D36: RKS 18 | E36: EM | F36: MACS450 × MONETTA
A37: 35 | B37: 37 | C37: EM70 | D37: MACS 708 | E37: EM | F37: MACS 13 × PK-471
A38: 36 | B38: 38 | C38: EM76 | D38: JS (SH) 99 14 | E38: EM | F38: Breeding Line
A39: 37 | B39: 39 | C39: EM78 | D39: MACS 985 | E39: EM | F39: HARDEE × PUSA 40
A40: 38 | B40: 40 | C40: EM79 | D40: MACS 998 | E40: EM | F40: PK 472 × JS75-46
A41: 39 | B41: 41 | C41: ARI 1 | D41: AMS 1002 | E41: MM | F41: Mutant of JS 93-05
A42: 40 | B42: 42 | C42: ARI 7 | D42: HARDEE | E42: ML | F42: D 49-772 X Improved pelican
A43: 41 | B43: 43 | C43: ARI 12 | D43: MACS 1460 | E43: MM | F43: RKS24 × JS9560
A44: 42 | B44: 44 | C44: PC53 | D44: MACS 58 | E44: MM | F44: JS-2 × Improved Pelicon
A45: 43 | B45: 45 | C45: ARI 16 | D45: MACS NRC 1667 | E45: ML | F45: PI542044 × MACS-4503
A46: 44 | B46: 46 | C46: ARI 19 | D46: PS 1347 | E46: ML | F46: PIC472 × PK1024
A47: 45 | B47: 48 | C47: EM80 | D47: PS 1374 | E47: EM | F47: -
A48: 46 | B48: 49 | C48: EM82 | D48: MACS 1010 | E48: EM | F48: Hardee × MACS 58
A49: 47 | B49: 50 | C49: EM91 | D49: SL 710 | E49: EM | F49: -
A50: 48 | B50: 51 | C50: EM112 | D50: EC 36362 | E50: EM | F50: Exotic selection
A51: 49 | B51: 52 | C51: EM116 | D51: EC 62736 | E51: EM | F51: Exotic selection
A52: 50 | B52: 53 | C52: EM 127 | D52: EC 100027 | E52: EM | F52: Exotic selection
A53: 51 | B53: 54 | C53: EM 128 | D53: EC 100797 | E53: EM | F53: Exotic selection
A54: 52 | B54: 55 | C54: EM 129 | D54: EC 100800 | E54: EM | F54: Exotic selection
A55: 53 | B55: 56 | C55: EM 130 | D55: EC 107416 | E55: EM | F55: Exotic selection
A56: 54 | B56: 57 | C56: EM 131 | D56: IC 7843 | E56: EM | F56: Indigenous collection
A57: 55 | B57: 58 | C57: EM 134 | D57: PLSO 39 | E57: EM | F57: -
A58: 56 | B58: 59 | C58: EM 137 | D58: UPSS 74 | E58: EM | F58: -
A59: 57 | B59: 60 | C59: EM 139 | D59: PICKET | E59: EM | F59: ( D49-2491 (6) x Dorman ) X ( Lee (4) x Peking )
A60: 58 | B60: 61 | C60: EM 140 | D60: EC 18595 | E60: EM | F60: Exotic selection
A61: 59 | B61: 62 | C61: EM 142 | D61: IC 2051 | E61: EM | F61: Indigenous collection
A62: 60 | B62: 63 | C62: EM 145 | D62: IC 15088 | E62: EM | F62: Indigenous collection
A63: 61 | B63: 64 | C63: EM 148 | D63: EC 11695 | E63: EM | F63: Exotic selection
A64: 62 | B64: 65 | C64: EM 150 | D64: IC 9471 | E64: EM | F64: Indigenous collection
A65: 63 | B65: 66 | C65: EM 151 | D65: IC 13048 | E65: EM | F65: Indigenous collection
A66: 64 | B66: 67 | C66: EM 163 | D66: EC 14426 | E66: EM | F66: Exotic selection
A67: 65 | B67: 68 | C67: EM 165 | D67: EC 14457 | E67: EM | F67: Exotic selection
A68: 66 | B68: 69 | C68: EM 172 | D68: JS 72 451 | E68: EM | F68: -
A69: 67 | B69: 70 | C69: EM 179 | D69: IC 38312 | E69: EM | F69: Indigenous collection
A70: 68 | B70: 71 | C70: EM 185 | D70: PK 1029 | E70: EM | F70: PK-262 × PIC 317
A71: 69 | B71: 72 | C71: EM 190 | D71: EC 34389 | E71: EM | F71: Exotic selection
A72: 70 | B72: 73 | C72: EM 193 | D72: JS 9971 | E72: EM | F72: -
A73: 71 | B73: 75 | C73: EM 216 | D73: MACS 37 | E73: EM | F73: -
A74: 72 | B74: 76 | C74: EM 217 | D74: MACS 89 | E74: EM | F74: -
A75: 73 | B75: 77 | C75: EM 219 | D75: MACS 94 | E75: EM | F75: JS-2 × I.P
A76: 74 | B76: 78 | C76: EM 220 | D76: MACS 96 | E76: EM | F76: Punjab-1 × Kalitur
A77: 75 | B77: 79 | C77: EM 226 | D77: MACS 136 | E77: EM | F77: -
A78: 76 | B78: 80 | C78: EM 232 | D78: MACS 161 | E78: EM | F78: -
A79: 77 | B79: 81 | C79: EM 233 | D79: MACS 164 | E79: EM | F79: -
A80: 78 | B80: 82 | C80: EM 234 | D80: MACS 166 | E80: EM | F80: Bragg × MONETTA
A81: 79 | B81: 83 | C81: EM 235 | D81: MACS167 | E81: EM | F81: -
A82: 80 | B82: 84 | C82: EM 237 | D82: MACS 173 | E82: EM | F82: -
A83: 81 | B83: 85 | C83: EM 242 | D83: MACS 199 | E83: EM | F83: -
A84: 82 | B84: 86 | C84: EM 244 | D84: MACS 204 | E84: EM | F84: Ankur × I.P.
A85: 83 | B85: 87 | C85: EM 246 | D85: MACS 221 | E85: EM | F85: MACS 29 × MACS-41
A86: 84 | B86: 88 | C86: EM 253 | D86: MACS 441 | E86: EM | F86: Gaurav × I.P
A87: 85 | B87: 89 | C87: EM 254 | D87: MACS 472 | E87: EM | F87: MONETTA × MACS-13
A88: 86 | B88: 90 | C88: EM 255 | D88: MACS 798 | E88: EM | F88: MACS 13 × PK-471
A89: 87 | B89: 91 | C89: EM 284 | D89: MACS 1168 | E89: EM | F89: PK 562 × JS 80-21
A90: 88 | B90: 92 | C90: ML8 | D90: EC 2574 | E90: ML | F90: Exotic selection
A91: 89 | B91: 93 | C91: ML18 | D91: JS 75 1 | E91: ML | F91: -
A92: 90 | B92: 94 | C92: ML19 | D92: EC 10685 | E92: ML | F92: Exotic selection
A93: 91 | B93: 95 | C93: ML32 | D93: EC 100022 | E93: ML | F93: Exotic selection
A94: 92 | B94: 96 | C94: ML38 | D94: EC 7951 | E94: ML | F94: Exotic selection
A95: 93 | B95: 97 | C95: ML47 | D95: IC 10678 | E95: ML | F95: Indigenous collection
A96: 94 | B96: 98 | C96: ML54 | D96: EC 168 | E96: ML | F96: Exotic selection
A97: 95 | B97: 99 | C97: ML58 | D97: EC 216387 | E97: ML | F97: Exotic selection
A98: 96 | B98: 100 | C98: ML62 | D98: MACS 212 | E98: ML | F98: Ankur × I.P.
A99: 97 | B99: 101 | C99: ML80 | D99: G 91 | E99: ML | F99: AVRDC Cultivar
A100: 98 | B100: 102 | C100: ML82 | D100: G 118 | E100: ML | F100: AVRDC Cultivar
A101: 99 | B101: 109 | C101: ML104 | D101: EC 241920 | E101: ML | F101: Exotic selection
A102: 100 | B102: 110 | C102: ML111 | D102: EC 389392 | E102: ML | F102: Exotic selection
A103: 101 | B103: 111 | C103: ML114 | D103: EC 391181 | E103: ML | F103: Exotic selection
A104: 102 | B104: 112 | C104: ML126 | D104: EC 389159 | E104: ML | F104: Exotic selection
A105: 103 | B105: 113 | C105: ML127 | D105: EC 251470 | E105: ML | F105: Exotic selection
A106: 104 | B106: 114 | C106: ML133 | D106: HIMSO 1600 | E106: ML | F106: -
A107: 105 | B107: 115 | C107: ML143 | D107: TNAUS 7 | E107: ML | F107: -
A108: 106 | B108: 116 | C108: ML144 | D108: TS 17 | E108: ML | F108: -
A109: 107 | B109: 117 | C109: ML145 | D109: TS 29 | E109: ML | F109: -
A110: 108 | B110: 118 | C110: ML165 | D110: TS 42 | E110: ML | F110: -
A111: 109 | B111: 119 | C111: ML169 | D111: VLS 67 | E111: ML | F111: VLS2 × Bragg
A112: 110 | B112: 120 | C112: ML201 | D112: MACS 112 | E112: ML | F112: -
A113: 111 | B113: 121 | C113: ML208 | D113: MACS 205 | E113: ML | F113: MACS 40 × Kalitur
A114: 112 | B114: 122 | C114: ML212 | D114: MACS 227 | E114: ML | F114: Ankur × I.P.
A115: 113 | B115: 123 | C115: ML216 | D115: MACS 232 | E115: ML | F115: MACS 40 × Kalitur
A116: 114 | B116: 124 | C116: ML226 | D116: MACS 261 | E116: ML | F116: I.P.× MACS-41
A117: 115 | B117: 125 | C117: ML231 | D117: MACS 288 | E117: ML | F117: Ankur × I.P.
A118: 116 | B118: 126 | C118: ML233 | D118: MACS 291 | E118: ML | F118: Ankur × I.P.
A119: 117 | B119: 127 | C119: ML239 | D119: MACS 303 | E119: ML | F119: MACS 39 × Kalitur
A120: 118 | B120: 128 | C120: ML250 | D120: MACS 469 | E120: ML | F120: MACS 13 × Bragg
A121: 119 | B121: 129 | C121: MM 10 | D121: IC 10039 | E121: MM | F121: Indigenous collection
A122: 120 | B122: 130 | C122: MM 12 | D122: PLSO 50 | E122: MM | F122: -
A123: 121 | B123: 131 | C123: MM 21 | D123: EC 34079A | E123: MM | F123: Exotic selection
A124: 122 | B124: 132 | C124: MM 22 | D124: EC 34477 | E124: MM | F124: Exotic selection
A125: 123 | B125: 133 | C125: MM 30 | D125: EC 39686 | E125: MM | F125: Exotic selection
A126: 124 | B126: 134 | C126: MM 36 | D126: EC 95807 | E126: MM | F126: Exotic selection
A127: 125 | B127: 135 | C127: MM 40 | D127: IC 9451 | E127: MM | F127: Indigenous collection
A128: 126 | B128: 136 | C128: MM 44 | D128: HOOD | E128: MM | F128: Roanoke X N45-745
A129: 127 | B129: 137 | C129: MM 53 | D129: EC 14460 | E129: MM | F129: Exotic selection
A130: 128 | B130: 138 | C130: MM 56 | D130: EC 39751 | E130: MM | F130: Exotic selection
A131: 129 | B131: 139 | C131: MM 57 | D131: EC 94992 | E131: MM | F131: Exotic selection
A132: 130 | B132: 140 | C132: MM 61 | D132: EC 18671A | E132: MM | F132: Exotic selection
A133: 131 | B133: 141 | C133: MM 62 | D133: IC 205 | E133: MM | F133: Indigenous collection
A134: 132 | B134: 142 | C134: MM 64 | D134: EC 14437 | E134: MM | F134: Exotic selection
A135: 133 | B135: 143 | C135: MM 70 | D135: EC 39776 | E135: MM | F135: Exotic selection
A136: 134 | B136: 144 | C136: MM 71 | D136: EC 39795 | E136: MM | F136: Exotic selection
A137: 135 | B137: 145 | C137: MM 79 | D137: IC 195 | E137: MM | F137: Indigenous collection
A138: 136 | B138: 146 | C138: MM 89 | D138: PLSO 21 | E138: MM | F138: -
A139: 137 | B139: 147 | C139: MM 93 | D139: Green Tur | E139: MM | F139: -
A140: 138 | B140: 148 | C140: MM 96 | D140: EC 14427 | E140: MM | F140: Exotic selection
A141: 139 | B141: 149 | C141: MM 114 | D141: IC 202 | E141: MM | F141: Indigenous collection
A142: 140 | B142: 150 | C142: MM 122 | D142: IC 13053 | E142: MM | F142: Indigenous collection
A143: 141 | B143: 151 | C143: MM 144 | D143: EC 216376 | E143: MM | F143: Exotic selection
A144: 142 | B144: 152 | C144: MM 177 | D144: EC 77214 | E144: MM | F144: Exotic selection
A145: 143 | B145: 153 | C145: MM 188 | D145: JS 335 | E145: MM | F145: JS 78-77 × JS 71-05
A146: 144 | B146: 154 | C146: MM 242 | D146: DS 2309 | E146: MM | F146: -
A147: 145 | B147: 155 | C147: MM-285 | D147: MACS 160 | E147: MM | F147: MACS-41 × MONETTA
A148: 146 | B148: 156 | C148: MM-391 | D148: MACS 1115 0 21 9 | E148: MM | F148: SL 423 × MACS 450
A149: 147 | B149: 157 | C149: MM-299 | D149: MACS 224 | E149: MM | F149: EC 13005 × MACS 40
A150: 148 | B150: 158 | C150: MM-300 | D150: NRC 142 | E150: MM | F150: JS 97-52 × PI 596540 × PJ 542044
A151: 149 | B151: 159 | C151: MM-301 | D151: NRC 147 | E151: MM | F151: Indigenous Collection IC 210
A152: 150 | B152: 160 | C152: PC1 | D152: AGS 25 | E152: ML | F152: Exotic collection
A153: 151 | B153: 161 | C153: PC2 | D153: ANKUR | E153: MM | F153: Single plant selection from composite of 18 crosses
A154: 152 | B154: 162 | C154: PC3 | D154: BHATT | E154: ML | F154: Indigenous collection
A155: 153 | B155: 163 | C155: PC4 | D155: BRAGG | E155: ML | F155: Jackson × D49-2491
A156: 154 | B156: 164 | C156: PC5 | D156: CAT II47 | E156: EM | F156: Exotic Collection
A157: 155 | B157: 165 | C157: PC6 | D157: DS 228 | E157: MM | F157: JS335 × DS181(PI4623133)
A158: 156 | B158: 166 | C158: PC8 | D158: DSB 19 | E158: ML | F158: JS335 × EC241780
A159: 157 | B159: 167 | C159: PC9 | D159: DSB 23-2 | E159: ML | F159: JS 335 × EC241780
A160: 158 | B160: 168 | C160: PC10 | D160: DSB 283 | E160: MM | F160: JS93-05 × EC241780
A161: 159 | B161: 169 | C161: PC13 | D161: HIMSO 1563 | E161: MM | F161: HIMSO 1520 × BRAGG
A162: 160 | B162: 170 | C162: PC17 | D162: JS 72280 | E162: MM | F162: EC14437 × BRAGG
A163: 161 | B163: 171 | C163: PC18 | D163: JS 7244 | E163: ML | F163: D60-9647 × EC7034
A164: 162 | B164: 172 | C164: PC20 | D164: JS 8021 | E164: MM | F164: JS-75 × PIC-73-94
A165: 163 | B165: 173 | C165: PC21 | D165: JS 9305 | E165: EM | F165: Sel. PS 73-22
A166: 164 | B166: 174 | C166: PC24 | D166: JSSH 9337 | E166: MM | F166: Breeding type
A167: 165 | B167: 175 | C167: PC25 | D167: KALITUR | E167: ML | F167: Local Variety
A168: 166 | B168: 176 | C168: PC27 | D168: KDS 344 | E168: MM | F168: JS 335 × EC241780
A169: 167 | B169: 177 | C169: PC33 | D169: LEE | E169: MM | F169: S-100 X C.N.S.
A170: 168 | B170: 178 | C170: PC34 | D170: MACS 1037 | E170: MM | F170: PK 472 × VGM 52
A171: 169 | B171: 179 | C171: PC37 | D171: MACS 1140 | E171: MM | F171: PK 416 × UGM 52
A172: 170 | B172: 180 | C172: PC38 | D172: MACS 1188 | E172: ML | F172: JS (SH) 9301 x MACS 450
A173: 171 | B173: 181 | C173: PC39 | D173: MACS 1259 | E173: MM | F173: MACS 693 × MACS 666
A174: 172 | B174: 182 | C174: PC41 | D174: MACS 1281 | E174: MM | F174: JS(SH)93-01 × MACS 13
A175: 173 | B175: 183 | C175: PC42 | D175: MACS 13 | E175: ML | F175: Hampton × EC7034
A176: 174 | B176: 184 | C176: PC43 | D176: MACS 1340 | E176: MM | F176: JS(SH)93-01 × MACS 450
A177: 175 | B177: 185 | C177: PC44 | D177: MACS 1370 | E177: ML | F177: DSb 5 × JS 335
A178: 176 | B178: 186 | C178: PC45 | D178: MACS 1407 | E178: ML | F178: MAUS 144 × MACS 450
A179: 177 | B179: 187 | C179: PC49 | D179: MACS 450 | E179: ML | F179: Bragg × MACS 111
A180: 178 | B180: 188 | C180: PC51 | D180: MACS 57 | E180: MM | F180: J-S2 × I.P
A181: 179 | B181: 189 | C181: PC61 | D181: MONETTA | E181: MM | F181: Introduction from university of Nanjanna China 1927 and from USA (EC2587)
A182: 180 | B182: 190 | C182: PC67 | D182: NRC 150 | E182: MM | F182: JS 97-52 × NRC109
A183: 181 | B183: 191 | C183: PC68 | D183: NRC 37 | E183: MM | F183: JS 7244 × Punjab 1
A184: 182 | B184: 192 | C184: PC71 | D184: PK 1042 | E184: ML | F184: Bragg × PIC 416
A185: 183 | B185: 193 | C185: PC73 | D185: PK 416 | E185: MM | F185: Promising for breeding point of view
A186: 184 | B186: 194 | C186: PC75 | D186: PK 472 | E186: MM | F186: HARDEE × Punjab-1
A187: 185 | B187: 195 | C187: PC77 | D187: PUNJAB 1 | E187: MM | F187: Selection from nanking
A188: 186 | B188: 196 | C188: PC78 | D188: PUSA 40 | E188: ML | F188: -
A189: 187 | B189: 197 | C189: PC80 | D189: RSC 1046 | E189: MM | F189: BRAGG × JS335
A190: 188 | B190: 198 | C190: PC82 | D190: SL 955 | E190: MM | F190: SL599 × PIC 1283
A191: 189 | B191: 199 | C191: PC84 | D191: SL 958 | E191: MM | F191: SL525 × SL706
A192: 190 | B192: 200 | C192: PC85 | D192: SUMMER KING | E192: MM | F192: -
A193: 191 | B193: 201 | C193: PC86 | D193: TAMS 38 | E193: MM | F193: Monetta × PIC 472
A194: 192 | B194: 202 | C194: PC87 | D194: TAMS 9821 | E194: ML | F194: Exoctic collection(mutant of JS 804)
A195: 193 | B195: 203 | C195: PC88 | D195: TS 9976 | E195: ML | F195: -
A196: 194 | B196: 204 | C196: PC89 | D196: VLC 47 (ALMOR) | E196: MM | F196: Selection from KHSF-3-1-1
A197: 195 | B197: 205 | C197: PC90 | D197: VLC 86 | E197: MM | F197: VLS47×EC361360
A198: 196 | B198: 206 | C198: PC91 | D198: VLS 65 (ALMOR) | E198: MM | F198: -
A199: 197 | B199: 207 | C199: PC94 | D199: YVMVR 1 | E199: MM | F199: -
A200: 198 | B200: 208 | C200: PC96 | D200: MACS 124 | E200: MM | F200: JS2 × I.P

Sheet Table S2
A1: Table S2 Phenotypic data for germination and seedling stage traits calculated via the Δ% formula.
E2: GP_CONTROL | H2: GP_100mM | L2: GP_200mM | Q2: NL_CONTROL | T2: NL_200mM | Y2: SL_CONTROL | AB2: SL_200mM | AG2: SPAD_CONTROL | AJ2: SPAD_200mM | AO2: LSS_200mM | AS2: SFS_200mM
A3: Sr.No. | B3: Genotype Line no | C3: Code | D3: Genotype | E3: GP_E1_CONTROL | F3: GP_E2_CONTROL | G3: GP_Mean_CONTROL | H3: GP_E1_100mM | I3: GP_E2_100mM | J3: GP_Mean_100mM | K3: Δ%_GP_100mM | L3: GP_E1_200mM | M3: GP_E2_200mM | N3: GP_Mean_200mM | O3: Δ%_GP_200mM | Q3: NL_E1_CONTROL | R3: NL_E2_CONTROL | S3: NL_MEAN_CONTROL | T3: NL_E1_200mM | U3: NL_E2_200mM | V3: NL_MEAN_200mM | W3: Δ%_NL_200mM | Y3: SL_E1_CONTROL | Z3: SL_E2_CONTROL | AA3: SL_MEAN_CONTROL | AB3: SL_E1_200mM | AC3: SL_E2_200mM | AD3: SL_MEAN_200mM | AE3: Δ%_SL_200mM | AG3: SPAD_E1_CONTROL | AH3: SPAD_E2_CONTROL | AI3: SPAD_MEAN_CONTROL | AJ3: SPAD_E1_200mM | AK3: SPAD_E2_200mM | AL3: SPAD_MEAN_200mM | AM3: Δ%_SPAD_200mM | AO3: LSS_E1_MEAN | AP3: LSS_E2_MEAN | AQ3: LSS_MEAN | AS3: SFS_E1_MEAN | AT3: SFS_E2_MEAN | AU3: SFS_MEAN
A4: 1 | B4: 1 | C4: ARI 13 | D4: MACS 330 | E4: 0.00 | F4: 100.00 | G4: =AVERAGE(E4:F4) -> 50.00 | H4: 0.00 | I4: 33.33 | J4: =AVERAGE(H4:I4) -> 16.67 | K4: =((G4-J4)/G4)*100 -> 66.67 | L4: 0.00 | M4: 0.00 | N4: =AVERAGE(L4:M4) -> 0.00 | O4: =((G4-N4)/G4)*100 -> 100.00 | Q4: 6.67 | R4: 10.00 | S4: =AVERAGE(Q4:R4) -> 8.33 | T4: 5.00 | U4: 8.00 | V4: =AVERAGE(T4:U4) -> 6.50 | W4: =((S4-V4)/S4)*100 -> 22.00 | Y4: 36.47 | Z4: 34.30 | AA4: =AVERAGE(Y4:Z4) -> 35.38 | AB4: 32.67 | AC4: 27.67 | AD4: =AVERAGE(AB4:AC4) -> 30.17 | AE4: =((AA4-AD4)/AA4)*100 -> 14.74 | AG4: 28.17 | AH4: 23.30 | AI4: =AVERAGE(AG4:AH4) -> 25.73 | AJ4: 11.03 | AK4: 16.67 | AL4: =AVERAGE(AJ4:AK4) -> 13.85 | AM4: =((AI4-AL4)/AI4)*100 -> 46.18 | AO4: 5 | AP4: 5 | AQ4: =AVERAGE(AO4:AP4) -> 5.00 | AS4: 0 | AT4: 0 | AU4: =AVERAGE(AS4:AT4) -> 0 | AX4: Δ% | AY4: Delta percentage
A5: 2 | B5: 2 | C5: ARI 6 | D5: EC 38828 | E5: 0.00 | F5: 0.00 | G5: =AVERAGE(E5:F5) -> 0.00 | H5: 0.00 | I5: 0.00 | J5: =AVERAGE(H5:I5) -> 0.00 | K5: NA | L5: 0.00 | M5: 0.00 | N5: =AVERAGE(L5:M5) -> 0.00 | O5: NA | Q5: 6.33 | R5: 8.33 | S5: =AVERAGE(Q5:R5) -> 7.33 | T5: 6.67 | U5: 6.67 | V5: =AVERAGE(T5:U5) -> 6.67 | W5: 9.09 | Y5: 33.97 | Z5: 43.63 | AA5: =AVERAGE(Y5:Z5) -> 38.80 | AB5: 35.83 | AC5: 25.17 | AD5: =AVERAGE(AB5:AC5) -> 30.50 | AE5: =((AA5-AD5)/AA5)*100 -> 21.39 | AG5: 29.50 | AH5: 29.50 | AI5: =AVERAGE(AG5:AH5) -> 29.50 | AJ5: 11.07 | AK5: 11.07 | AL5: =AVERAGE(AJ5:AK5) -> 11.07 | AM5: =((AI5-AL5)/AI5)*100 -> 62.49 | AO5: 2 | AP5: 0 | AQ5: =AVERAGE(AO5:AP5) -> 1.00 | AS5: 0 | AT5: 0 | AU5: =AVERAGE(AS5:AT5) -> 0 | AW5: Germination stage | AX5: Δ%_GP_100mM | AY5: Δ% in Germination Percentage trait under 100mM NaCl treatment
A6: 3 | B6: 3 | C6: FC3 | D6: JS 9560 | E6: 44.44 | F6: 100.00 | G6: 72.22 | H6: 88.89 | I6: 100.00 | J6: 94.44 | K6: =((G6-J6)/G6)*100 -> -30.77 | L6: 33.33 | M6: 66.67 | N6: 50.00 | O6: =((G6-N6)/G6)*100 -> 30.77 | Q6: 5.00 | R6: 7.00 | S6: 6.00 | T6: 8.00 | U6: 7.00 | V6: 7.50 | W6: -25.00 | Y6: 36.20 | Z6: 45.87 | AA6: 41.03 | AB6: 29.20 | AC6: 23.67 | AD6: 26.43 | AE6: 35.58 | AG6: 32.77 | AH6: 32.77 | AI6: 32.77 | AJ6: 11.83 | AK6: 21.87 | AL6: 16.85 | AM6: 48.58 | AO6: 2 | AP6: 2 | AQ6: 2.00 | AS6: 0 | AT6: 0 | AU6: 0 | AX6: Δ%_GP_200mM | AY6: Δ% in Germination Percentage trait under 200mM NaCl treatment
A7: 4 | B7: 4 | C7: FC4 | D7: JS 9752 | E7: 88.89 | F7: 100.00 | G7: 94.44 | H7: 100.00 | I7: 33.33 | J7: 66.67 | K7: 29.41 | L7: 55.56 | M7: 88.89 | N7: 72.22 | O7: 23.53 | Q7: 6.33 | R7: 8.33 | S7: 7.33 | T7: 8.00 | U7: 8.00 | V7: 8.00 | W7: -9.09 | Y7: 32.93 | Z7: 43.27 | AA7: 38.10 | AB7: 34.60 | AC7: 22.00 | AD7: 28.30 | AE7: 25.72 | AG7: 34.63 | AH7: 34.63 | AI7: 34.63 | AJ7: 10.23 | AK7: 30.83 | AL7: 20.53 | AM7: 40.71 | AO7: 4 | AQ7: 4.00 | AS7: 0 | AT7: 0 | AU7: 0 | AW7: Seedling stage | AX7: Δ%_NL_200mM | AY7: Δ% in Number of leaves trait under 200mM NaCl treatment
A8: 5 | B8: 5 | C8: FC6 | D8: RVSM 1135 | E8: 77.78 | F8: 77.78 | G8: 77.78 | H8: 11.11 | I8: 100.00 | J8: 55.56 | K8: 28.57 | L8: 11.11 | M8: 88.89 | N8: 50.00 | O8: 35.71 | Q8: 5.67 | R8: 2.00 | S8: 3.83 | T8: 5.00 | U8: 6.00 | V8: 5.50 | W8: -43.48 | Y8: 35.83 | Z8: 28.58 | AA8: 32.21 | AB8: 33.00 | AC8: 25.17 | AD8: 29.08 | AE8: 9.70 | AG8: 32.97 | AH8: 20.45 | AI8: 26.71 | AJ8: 13.00 | AK8: 23.17 | AL8: 18.08 | AM8: 32.29 | AO8: 2 | AP8: 5 | AQ8: 3.50 | AS8: 1 | AT8: 0 | AU8: 0.5 | AX8: Δ%_SL_200mM | AY8: Δ% in Seedling length trait under 200mM NaCl treatment
A9: 6 | B9: 6 | C9: FC7 | D9: BLACK BOLD (PRIVATE) | E9: 88.89 | F9: 88.89 | G9: 88.89 | H9: 66.67 | I9: 100.00 | J9: 83.33 | K9: 6.25 | L9: 77.78 | M9: 100.00 | N9: 88.89 | O9: -0.00 | Q9: 6.67 | R9: 13.00 | S9: 9.83 | T9: 6.33 | U9: 8.00 | V9: 7.17 | W9: 27.12 | Y9: 32.80 | Z9: 39.47 | AA9: 36.13 | AB9: 34.73 | AC9: 28.67 | AD9: 31.70 | AE9: 12.27 | AG9: 31.17 | AH9: 22.80 | AI9: 26.98 | AJ9: 13.30 | AK9: 33.07 | AL9: 23.18 | AM9: 14.08 | AO9: 2 | AP9: 0 | AQ9: 1.00 | AS9: 1 | AT9: 1 | AU9: 1 | AX9: Δ%_SPAD_200mM | AY9: Δ% in SPAD/Chlorophyll content trait under 200mM NaCl treatment
A10: 7 | B10: 7 | C10: FC8 | D10: TS 213 (PRIVATE) | E10: 77.78 | F10: 77.78 | G10: 77.78 | H10: 66.67 | I10: 66.67 | J10: 66.67 | K10: 14.29 | L10: 44.44 | M10: 55.56 | N10: 50.00 | O10: 35.71 | Q10: 7.00 | R10: 14.00 | S10: 10.50 | T10: 7.00 | U10: 8.00 | V10: 7.50 | W10: 28.57 | Y10: 34.67 | Z10: 25.83 | AA10: 30.25 | AB10: 34.67 | AC10: 24.00 | AD10: 29.33 | AE10: 3.03 | AG10: 32.50 | AH10: 15.40 | AI10: 23.95 | AJ10: 10.43 | AK10: 18.15 | AL10: 14.29 | AM10: 40.33 | AO10: 0 | AP10: 3 | AQ10: 1.50 | AS10: 0 | AT10: 0 | AU10: 0 | AX10: LSS_MEAN | AY10: Mean of Leaf scorch score
A11: 8 | B11: 8 | C11: FC9 | D11: BANDAGE FARMER COLLECTION | E11: 22.22 | F11: 100.00 | G11: 61.11 | H11: 77.78 | I11: 66.67 | J11: 72.22 | K11: -18.18 | L11: 22.22 | M11: 88.89 | N11: 55.56 | O11: 9.09 | Q11: 6.67 | R11: 11.67 | S11: 9.17 | T11: 5.00 | U11: 9.00 | V11: 7.00 | W11: 23.64 | Y11: 33.00 | Z11: 36.17 | AA11: 34.58 | AB11: 32.00 | AC11: 29.00 | AD11: 30.50 | AE11: 11.81 | AG11: 31.03 | AH11: 13.43 | AI11: 22.23 | AJ11: 10.70 | AK11: 13.15 | AL11: 11.93 | AM11: 46.36 | AO11: 3 | AP11: 5 | AQ11: 4.00 | AS11: 0 | AT11: 0 | AU11: 0 | AX11: SFS_MEAN | AY11: Mean of Seedling to flowering survival
A12: 9 | B12: 9 | C12: FC10 | D12: ARANI | E12: 88.89 | F12: 100.00 | G12: 94.44 | H12: 100.00 | I12: 100.00 | J12: 100.00 | K12: -5.88 | L12: 55.56 | M12: 100.00 | N12: 77.78 | O12: 17.65 | Q12: 5.67 | R12: 13.00 | S12: 9.33 | T12: 5.00 | U12: 6.00 | V12: 5.50 | W12: 41.07 | Y12: 35.27 | Z12: 42.43 | AA12: 38.85 | AB12: 34.43 | AC12: 16.17 | AD12: 25.30 | AE12: 34.88 | AG12: 30.00 | AH12: 15.50 | AI12: 22.75 | AJ12: 14.33 | AK12: 10.10 | AL12: 12.22 | AM12: 46.30 | AO12: 3 | AP12: 4 | AQ12: 3.50 | AS12: 0 | AT12: 0 | AU12: 0
A13: 10 | B13: 10 | C13: FC11 | D13: SAMRUDHI | E13: 44.44 | F13: 88.89 | G13: 66.67 | H13: 33.33 | I13: 66.67 | J13: 50.00 | K13: 25.00 | L13: 33.33 | M13: 66.67 | N13: 50.00 | O13: 25.00 | Q13: 5.00 | R13: 13.00 | S13: 9.00 | T13: 2.00 | U13: 8.00 | V13: 5.00 | W13: 44.44 | Y13: 37.77 | Z13: 41.27 | AA13: 39.52 | AB13: 34.30 | AC13: 24.67 | AD13: 29.48 | AE13: 25.39 | AG13: 32.83 | AH13: 15.20 | AI13: 24.02 | AJ13: 11.67 | AK13: 17.30 | AL13: 14.48 | AM13: 39.69 | AO13: 0 | AP13: 0 | AQ13: 0.00 | AS13: 0 | AT13: 0 | AU13: 0
A14: 11 | B14: 12 | C14: FC14 | D14: DSB 23 | E14: 66.67 | F14: 100.00 | G14: 83.33 | H14: 66.67 | I14: 100.00 | J14: 83.33 | K14: 0.00 | L14: 55.56 | M14: 100.00 | N14: 77.78 | O14: 6.67 | Q14: 6.50 | R14: 11.00 | S14: 8.75 | T14: 8.00 | U14: 7.67 | V14: 7.83 | W14: 10.48 | Y14: 37.13 | Z14: 42.13 | AA14: 39.63 | AB14: 36.17 | AC14: 22.25 | AD14: 29.21 | AE14: 26.30 | AG14: 33.67 | AH14: 22.47 | AI14: 28.07 | AJ14: 17.10 | AK14: 33.93 | AL14: 25.52 | AM14: 9.09 | AO14: 4 | AP14: 4 | AQ14: 4.00 | AS14: 0 | AT14: 0 | AU14: 0
A15: 12 | B15: 13 | C15: FC15 | D15: KDS 726 | E15: 77.78 | F15: 100.00 | G15: 88.89 | H15: 100.00 | I15: 33.33 | J15: 66.67 | K15: 25.00 | L15: 44.44 | M15: 77.78 | N15: 61.11 | O15: 31.25 | Q15: 7.67 | R15: 11.67 | S15: 9.67 | T15: 5.00 | U15: 8.00 | V15: 6.50 | W15: 32.76 | Y15: 37.53 | Z15: 35.70 | AA15: 36.62 | AB15: 33.20 | AC15: 21.67 | AD15: 27.43 | AE15: 25.08 | AG15: 33.63 | AH15: 19.47 | AI15: 26.55 | AJ15: 12.43 | AK15: 25.07 | AL15: 18.75 | AM15: 29.38 | AO15: 5 | AP15: 5 | AQ15: 5.00 | AS15: 0 | AT15: 1 | AU15: 0.5
A16: 13 | B16: 14 | C16: FC16 | D16: KDS 753 | E16: 100.00 | F16: 77.78 | G16: 88.89 | H16: 66.67 | I16: 33.33 | J16: 50.00 | K16: 43.75 | L16: 11.11 | M16: 100.00 | N16: 55.56 | O16: 37.50 | Q16: 7.33 | R16: 9.33 | S16: 8.33 | T16: 5.00 | U16: 9.00 | V16: 7.00 | W16: 16.00 | Y16: 34.67 | Z16: 31.17 | AA16: 32.92 | AB16: 33.00 | AC16: 23.83 | AD16: 28.42 | AE16: 13.67 | AG16: 28.37 | AH16: 24.33 | AI16: 26.35 | AJ16: 10.37 | AK16: 22.07 | AL16: 16.22 | AM16: 38.46 | AO16: 3 | AP16: 0 | AQ16: 1.50 | AS16: 0 | AT16: 1 | AU16: 0.5
A17: 14 | B17: 15 | C17: FC17 | D17: KDS 992 | E17: 88.89 | F17: 77.78 | G17: 83.33 | H17: 44.44 | I17: 0.00 | J17: 22.22 | K17: 73.33 | L17: 66.67 | M17: 66.67 | N17: 66.67 | O17: 20.00 | Q17: 6.00 | R17: 9.33 | S17: 7.67 | T17: 5.00 | U17: 7.00 | V17: 6.00 | W17: 21.74 | Y17: 29.47 | Z17: 25.73 | AA17: 27.60 | AB17: 35.20 | AC17: 24.67 | AD17: 29.93 | AE17: -8.45 | AG17: 31.93 | AH17: 17.83 | AI17: 24.88 | AJ17: 16.77 | AK17: 21.93 | AL17: 19.35 | AM17: 22.24 | AO17: 4 | AP17: 4 | AQ17: 4.00 | AS17: 0 | AT17: 0 | AU17: 0
A18: 15 | B18: 16 | C18: EM1 | D18: EC 14477 | E18: 88.89 | F18: 44.44 | G18: 66.67 | H18: 66.67 | I18: 33.33 | J18: 50.00 | K18: 25.00 | L18: 44.44 | M18: 44.44 | N18: 44.44 | O18: 33.33 | Q18: 7.33 | R18: 13.33 | S18: 10.33 | T18: 7.33 | U18: 7.67 | V18: 7.50 | W18: 27.42 | Y18: 27.00 | Z18: 44.33 | AA18: 35.67 | AB18: 26.10 | AC18: 4.00 | AD18: 15.05 | AE18: 57.80 | AG18: 26.60 | AH18: 28.00 | AI18: 27.30 | AJ18: 12.53 | AK18: 7.60 | AL18: 10.07 | AM18: 63.13 | AO18: 3 | AP18: 5 | AQ18: 4.00 | AS18: 0 | AT18: 0 | AU18: 0
A19: 16 | B19: 17 | C19: EM3 | D19: EC 16111 | E19: 77.78 | F19: 88.89 | G19: 83.33 | H19: 77.78 | I19: 100.00 | J19: 88.89 | K19: -6.67 | L19: 88.89 | M19: 66.67 | N19: 77.78 | O19: 6.67 | Q19: 7.00 | R19: 12.00 | S19: 9.50 | T19: 6.00 | U19: 6.00 | V19: 6.00 | W19: 36.84 | Y19: 31.77 | Z19: 39.82 | AA19: 35.79 | AB19: 28.60 | AC19: 24.00 | AD19: 26.30 | AE19: 26.52 | AG19: 23.17 | AH19: 27.37 | AI19: 25.27 | AJ19: 13.83 | AK19: 24.60 | AL19: 19.22 | AM19: 23.94 | AO19: 1 | AP19: 2 | AQ19: 1.50 | AS19: 0 | AT19: 0 | AU19: 0
A20: 17 | B20: 18 | C20: EM6 | D20: EC 30195 | E20: 100.00 | F20: 77.78 | G20: 88.89 | H20: 77.78 | I20: 0.00 | J20: 38.89 | K20: 56.25 | L20: 100.00 | M20: 55.56 | N20: 77.78 | O20: 12.50 | Q20: 5.67 | R20: 9.00 | S20: 7.33 | T20: 5.00 | U20: 9.00 | V20: 7.00 | W20: 4.55 | Y20: 33.80 | Z20: 35.47 | AA20: 34.63 | AB20: 30.47 | AC20: 17.17 | AD20: 23.82 | AE20: 31.23 | AG20: 29.47 | AH20: 29.80 | AI20: 29.63 | AJ20: 11.67 | AK20: 10.90 | AL20: 11.28 | AM20: 61.92 | AO20: 3 | AP20: 2 | AQ20: 2.50 | AS20: 0 | AT20: 1 | AU20: 0.5
A21: 18 | B21: 19 | C21: EM9 | D21: EC 39488 | E21: 77.78 | F21: 88.89 | G21: 83.33 | H21: 77.78 | I21: 33.33 | J21: 55.56 | K21: 33.33 | L21: 55.56 | M21: 88.89 | N21: 72.22 | O21: 13.33 | Q21: 4.00 | R21: 8.00 | S21: 6.00 | T21: 6.00 | U21: 8.00 | V21: 7.00 | W21: -16.67 | Y21: 33.15 | Z21: 32.90 | AA21: 33.03 | AB21: 27.10 | AC21: 18.00 | AD21: 22.55 | AE21: 31.72 | AG21: 31.83 | AH21: 25.67 | AI21: 28.75 | AJ21: 10.37 | AK21: 22.70 | AL21: 16.53 | AM21: 42.49 | AO21: 3 | AP21: 2 | AQ21: 2.50 | AS21: 0 | AT21: 0 | AU21: 0
A22: 19 | B22: 20 | C22: EM10 | D22: EC 39490 | E22: 66.67 | F22: 55.56 | G22: 61.11 | H22: 88.89 | I22: 66.67 | J22: 77.78 | K22: -27.27 | L22: 66.67 | M22: 88.89 | N22: 77.78 | O22: -27.27 | Q22: 6.33 | R22: 9.00 | S22: 7.67 | T22: 5.33 | U22: 9.00 | V22: 7.17 | W22: 6.52 | Y22: 32.80 | Z22: 30.10 | AA22: 31.45 | AB22: 32.17 | AC22: 21.50 | AD22: 26.83 | AE22: 14.68 | AG22: 27.23 | AH22: 25.43 | AI22: 26.33 | AJ22: 9.10 | AK22: 11.47 | AL22: 10.28 | AM22: 60.95 | AO22: 3 | AP22: 4 | AQ22: 3.50 | AS22: 0 | AT22: 0 | AU22: 0
A23: 20 | B23: 22 | C23: EM15 | D23: EC 95297 | E23: 88.89 | F23: 88.89 | G23: 88.89 | H23: 77.78 | I23: 66.67 | J23: 72.22 | K23: 18.75 | L23: 55.56 | M23: 88.89 | N23: 72.22 | O23: 18.75 | Q23: 3.50 | R23: 11.00 | S23: 7.25 | T23: 5.00 | U23: 9.00 | V23: 7.00 | W23: 3.45 | Y23: 26.00 | Z23: 34.97 | AA23: 30.48 | AB23: 33.25 | AC23: 20.00 | AD23: 26.63 | AE23: 12.66 | AG23: 30.67 | AH23: 25.93 | AI23: 28.30 | AJ23: 12.40 | AK23: 11.70 | AL23: 12.05 | AM23: 57.42 | AO23: 3 | AP23: 5 | AQ23: 4.00 | AS23: 0 | AT23: 0 | AU23: 0
A24: 21 | B24: 23 | C24: EM18 | D24: EC 100029 | E24: 22.22 | F24: 77.78 | G24: 50.00 | H24: 77.78 | I24: 100.00 | J24: 88.89 | K24: -77.78 | L24: 22.22 | M24: 44.44 | N24: 33.33 | O24: 33.33 | Q24: 4.33 | R24: 10.33 | S24: 7.33 | T24: 6.00 | U24: 8.00 | V24: 7.00 | W24: 4.55 | Y24: 33.67 | Z24: 32.20 | AA24: 32.93 | AB24: 29.15 | AC24: 19.77 | AD24: 24.46 | AE24: 25.73 | AG24: 32.57 | AH24: 24.80 | AI24: 28.68 | AJ24: 11.80 | AK24: 9.07 | AL24: 10.43 | AM24: 63.63 | AO24: 5 | AP24: 5 | AQ24: 5.00 | AS24: 0 | AT24: 0 | AU24: 0
A25: 22 | B25: 24 | C25: EM22 | D25: PLSO 23 | E25: 100.00 | F25: 100.00 | G25: 100.00 | H25: 88.89 | I25: 100.00 | J25: 94.44 | K25: 5.56 | L25: 77.78 | M25: 88.89 | N25: 83.33 | O25: 16.67 | Q25: 5.33 | R25: 12.00 | S25: 8.67 | T25: 8.00 | U25: 6.00 | V25: 7.00 | W25: 19.23 | Y25: 30.90 | Z25: 30.90 | AA25: 30.90 | AB25: 26.85 | AC25: 20.17 | AD25: 23.51 | AE25: 23.92 | AG25: 30.93 | AH25: 23.93 | AI25: 27.43 | AJ25: 12.27 | AK25: 13.83 | AL25: 13.05 | AM25: 52.43 | AO25: 0 | AP25: 5 | AQ25: 2.50 | AS25: 0 | AT25: 0 | AU25: 0
A26: 23 | B26: 25 | C26: EM26 | D26: HILL | E26: 100.00 | F26: 88.89 | G26: 94.44 | H26: 100.00 | I26: 100.00 | J26: 100.00 | K26: -5.88 | L26: 77.78 | M26: 88.89 | N26: 83.33 | O26: 11.76 | Q26: 5.67 | R26: 9.00 | S26: 7.33 | T26: 7.00 | U26: 9.33 | V26: 8.17 | W26: -11.36 | Y26: 29.93 | Z26: 33.23 | AA26: 31.58 | AB26: 28.80 | AC26: 21.50 | AD26: 25.15 | AE26: 20.37 | AG26: 35.80 | AH26: 17.67 | AI26: 26.73 | AJ26: 11.40 | AK26: 15.23 | AL26: 13.32 | AM26: 50.19 | AO26: 2 | AP26: 3 | AQ26: 2.50 | AS26: 0 | AT26: 0 | AU26: 0
A27: 24 | B27: 26 | C27: EM31 | D27: EC 100780 | E27: 88.89 | F27: 100.00 | G27: 94.44 | H27: 66.67 | I27: 100.00 | J27: 83.33 | K27: 11.76 | L27: 88.89 | M27: 77.78 | N27: 83.33 | O27: 11.76 | Q27: 7.00 | R27: 10.00 | S27: 8.50 | T27: 6.33 | U27: 9.00 | V27: 7.67 | W27: 9.80 | Y27: 34.67 | Z27: 42.63 | AA27: 38.65 | AB27: 31.97 | AC27: 25.83 | AD27: 28.90 | AE27: 25.23 | AG27: 30.33 | AH27: 17.77 | AI27: 24.05 | AJ27: 11.77 | AK27: 9.43 | AL27: 10.60 | AM27: 55.93 | AO27: 5 | AP27: 5 | AQ27: 5.00 | AS27: 0 | AT27: 1 | AU27: 0.5
A28: 25 | B28: 27 | C28: EM34 | D28: IC 33776 | E28: 77.78 | F28: 88.89 | G28: 83.33 | H28: 100.00 | I28: 100.00 | J28: 100.00 | K28: -20.00 | L28: 66.67 | M28: 55.56 | N28: 61.11 | O28: 26.67 | Q28: 7.33 | R28: 11.00 | S28: 9.17 | T28: 7.33 | U28: 8.00 | V28: 7.67 | W28: 16.36 | Y28: 37.67 | Z28: 48.33 | AA28: 43.00 | AB28: 34.17 | AC28: 21.00 | AD28: 27.58 | AE28: 35.85 | AG28: 29.70 | AH28: 29.97 | AI28: 29.83 | AJ28: 11.83 | AK28: 23.20 | AL28: 17.52 | AM28: 41.28 | AO28: 0 | AP28: 1 | AQ28: 0.50 | AS28: 0 | AT28: 0 | AU28: 0
A29: 26 | B29: 28 | C29: EM35 | D29: IC 34382 | E29: 55.56 | F29: 100.00 | G29: 77.78 | H29: 66.67 | I29: 33.33 | J29: 50.00 | K29: 35.71 | L29: 44.44 | M29: 33.33 | N29: 38.89 | O29: 50.00 | Q29: 6.67 | R29: 7.00 | S29: 6.83 | T29: 6.00 | U29: 8.00 | V29: 7.00 | W29: -2.44 | Y29: 28.53 | Z29: 26.53 | AA29: 27.53 | AB29: 33.93 | AC29: 23.17 | AD29: 28.55 | AE29: -3.69 | AG29: 29.67 | AH29: 18.30 | AI29: 23.98 | AJ29: 6.53 | AK29: 18.90 | AL29: 12.72 | AM29: 46.98 | AO29: 2 | AP29: 0 | AQ29: 1.00 | AS29: 0 | AT29: 0 | AU29: 0
A30: 27 | B30: 29 | C30: EM45 | D30: EC 18207 | E30: 0.00 | F30: 88.89 | G30: 44.44 | H30: 0.00 | I30: 0.00 | J30: 0.00 | K30: 100.00 | L30: 0.00 | M30: 33.33 | N30: 16.67 | O30: 62.50 | Q30: 7.00 | R30: 9.00 | S30: 8.00 | T30: 6.00 | U30: 8.00 | V30: 7.00 | W30: 12.50 | Y30: 34.70 | Z30: 49.00 | AA30: 41.85 | AB30: 35.47 | AC30: 23.17 | AD30: 29.32 | AE30: 29.95 | AG30: 31.93 | AH30: 19.07 | AI30: 25.50 | AJ30: 7.90 | AK30: 19.17 | AL30: 13.53 | AM30: 46.93 | AO30: 2 | AP30: 3 | AQ30: 2.50 | AS30: 0 | AT30: 0 | AU30: 0
A31: 28 | B31: 30 | C31: EM51 | D31: IC 13050 | E31: 100.00 | F31: 100.00 | G31: 100.00 | H31: 100.00 | I31: 100.00 | J31: 100.00 | K31: 0.00 | L31: 100.00 | M31: 88.89 | N31: 94.44 | O31: 5.56 | Q31: 6.67 | R31: 9.00 | S31: 7.83 | T31: 6.00 | U31: 10.67 | V31: 8.33 | W31: -6.38 | Y31: 38.57 | Z31: 36.90 | AA31: 37.73 | AB31: 27.60 | AC31: 25.25 | AD31: 26.43 | AE31: 29.97 | AG31: 35.33 | AH31: 25.57 | AI31: 30.45 | AJ31: 7.87 | AK31: 29.10 | AL31: 18.48 | AM31: 39.30 | AO31: 0 | AP31: 0 | AQ31: 0.00 | AS31: 0 | AT31: 1 | AU31: 0.5
A32: 29 | B32: 31 | C32: EM53 | D32: G 76 | E32: 66.67 | F32: 100.00 | G32: 83.33 | H32: 66.67 | I32: 100.00 | J32: 83.33 | K32: 0.00 | L32: 55.56 | M32: 88.89 | N32: 72.22 | O32: 13.33 | Q32: 5.00 | R32: 11.00 | S32: 8.00 | T32: 6.00 | U32: 6.33 | V32: 6.17 | W32: 22.92 | Y32: 32.57 | Z32: 38.93 | AA32: 35.75 | AB32: 26.93 | AC32: 27.33 | AD32: 27.13 | AE32: 24.10 | AG32: 34.13 | AH32: 22.43 | AI32: 28.28 | AJ32: 11.53 | AK32: 21.40 | AL32: 16.47 | AM32: 41.78 | AO32: 4 | AP32: 5 | AQ32: 4.50 | AS32: 0 | AT32: 0 | AU32: 0
A33: 30 | B33: 32 | C33: EM57 | D33: G 142 | E33: 77.78 | F33: 66.67 | G33: 72.22 | H33: 55.56 | I33: 0.00 | J33: 27.78 | K33: 61.54 | L33: 55.56 | M33: 77.78 | N33: 66.67 | O33: 7.69 | Q33: 6.67 | R33: 8.00 | S33: 7.33 | T33: 5.33 | U33: 4.00 | V33: 4.67 | W33: 36.36 | Y33: 30.50 | Z33: 21.97 | AA33: 26.23 | AB33: 32.67 | AC33: 32.67 | AD33: 32.67 | AE33: -24.52 | AG33: 33.57 | AH33: 20.20 | AI33: 26.88 | AJ33: 10.67 | AK33: 10.07 | AL33: 10.37 | AM33: 61.44 | AO33: 4 | AP33: 5 | AQ33: 4.50 | AS33: 0 | AT33: 0 | AU33: 0
A34: 31 | B34: 33 | C34: EM65 | D34: JS 97 52 | E34: 100.00 | F34: 66.67 | G34: 83.33 | H34: 100.00 | I34: 66.67 | J34: 83.33 | K34: 0.00 | L34: 100.00 | M34: 77.78 | N34: 88.89 | O34: -6.67 | Q34: 8.50 | R34: 10.67 | S34: 9.58 | T34: 8.00 | U34: 6.00 | V34: 7.00 | W34: 26.96 | Y34: 30.53 | Z34: 19.80 | AA34: 25.17 | AB34: 34.17 | AC34: 9.00 | AD34: 21.58 | AE34: 14.24 | AG34: 33.77 | AH34: 21.00 | AI34: 27.38 | AJ34: 14.23 | AK34: 17.20 | AL34: 15.72 | AM34: 42.60 | AO34: 2 | AP34: 5 | AQ34: 3.50 | AS34: 0 | AT34: 0 | AU34: 0
A35: 32 | B35: 34 | C35: EM67 | D35: MRSB 352 | E35: 66.67 | F35: 100.00 | G35: 83.33 | H35: 77.78 | I35: 66.67 | J35: 72.22 | K35: 13.33 | L35: 44.44 | M35: 77.78 | N35: 61.11 | O35: 26.67 | Q35: 8.67 | R35: 14.00 | S35: 11.33 | T35: 5.50 | U35: 8.33 | V35: 6.92 | W35: 38.97 | Y35: 32.33 | Z35: 33.32 | AA35: 32.83 | AB35: 29.43 | AC35: 17.00 | AD35: 23.22 | AE35: 29.27 | AG35: 36.97 | AH35: 29.10 | AI35: 33.03 | AJ35: 13.10 | AK35: 24.00 | AL35: 18.55 | AM35: 43.84 | AO35: 4 | AP35: 1 | AQ35: 2.50 | AS35: 0 | AT35: 1 | AU35: 0.5
A36: 33 | B36: 35 | C36: EM68 | D36: PS 1370 | E36: 77.78 | F36: 66.67 | G36: 72.22 | H36: 88.89 | I36: 33.33 | J36: 61.11 | K36: 15.38 | L36: 44.44 | M36: 77.78 | N36: 61.11 | O36: 15.38 | Q36: 7.00 | R36: 11.00 | S36: 9.00 | T36: 5.50 | U36: 7.00 | V36: 6.25 | W36: =((S36-V36)/S36)*100 -> 30.56 | Y36: 31.90 | Z36: 29.13 | AA36: 30.52 | AB36: 37.47 | AC36: 29.33 | AD36: 33.40 | AE36: -9.45 | AG36: 32.23 | AH36: 21.83 | AI36: 27.03 | AJ36: 14.03 | AK36: 15.10 | AL36: 14.57 | AM36: 46.12 | AO36: 4 | AP36: 5 | AQ36: 4.50 | AS36: 0 | AT36: 0 | AU36: 0
A37: 34 | B37: 36 | C37: EM69 | D37: RKS 18 | E37: 100.00 | F37: 100.00 | G37: 100.00 | H37: 100.00 | I37: 33.33 | J37: 66.67 | K37: 33.33 | L37: 88.89 | M37: 66.67 | N37: 77.78 | O37: 22.22 | Q37: 7.00 | R37: 13.50 | S37: 10.25 | T37: 5.33 | U37: 6.00 | V37: 5.67 | W37: 44.72 | Y37: 32.93 | Z37: 27.72 | AA37: 30.33 | AB37: 29.53 | AC37: 20.50 | AD37: 25.02 | AE37: 17.50 | AG37: 35.17 | AH37: 25.90 | AI37: 30.53 | AJ37: 16.77 | AK37: 14.57 | AL37: 15.67 | AM37: 48.69 | AO37: 3 | AP37: 4 | AQ37: 3.50 | AS37: 0 | AT37: 0 | AU37: 0
A38: 35 | B38: 37 | C38: EM70 | D38: MACS 708 | E38: 100.00 | F38: 100.00 | G38: 100.00 | H38: 77.78 | I38: 100.00 | J38: 88.89 | K38: 11.11 | L38: 88.89 | M38: 100.00 | N38: 94.44 | O38: 5.56 | Q38: 6.67 | R38: 13.00 | S38: 9.83 | T38: 6.00 | U38: 7.00 | V38: 6.50 | W38: 33.90 | Y38: 35.13 | Z38: 39.03 | AA38: 37.08 | AB38: 33.13 | AC38: 26.00 | AD38: 29.57 | AE38: 20.27 | AG38: 31.43 | AH38: 29.60 | AI38: 30.52 | AJ38: 14.13 | AK38: 3.65 | AL38: 8.89 | AM38: 70.86 | AO38: 3 | AP38: 5 | AQ38: 4.00 | AS38: 0 | AT38: 0 | AU38: 0
A39: 36 | B39: 38 | C39: EM76 | D39: JS (SH) 99 14 | E39: 100.00 | F39: 88.89 | G39: 94.44 | H39: 77.78 | I39: 66.67 | J39: 72.22 | K39: 23.53 | L39: 44.44 | M39: 66.67 | N39: 55.56 | O39: 41.18 | Q39: 6.00 | R39: 6.00 | S39: 6.00 | T39: 6.67 | U39: 8.00 | V39: 7.33 | W39: -22.22 | Y39: 34.77 | Z39: 22.68 | AA39: 28.73 | AB39: 28.27 | AC39: 25.00 | AD39: 26.63 | AE39: 7.28 | AG39: 36.57 | AH39: 23.40 | AI39: 29.98 | AJ39: 20.03 | AK39: 30.10 | AL39: 25.07 | AM39: 16.40 | AO39: 0 | AP39: 0 | AQ39: 0.00 | AS39: 1 | AT39: 0 | AU39: 0.5
A40: 37 | B40: 39 | C40: EM78 | D40: MACS 985 | E40: 100.00 | F40: 66.67 | G40: 83.33 | H40: 88.89 | I40: 100.00 | J40: 94.44 | K40: -13.33 | L40: 66.67 | M40: 88.89 | N40: 77.78 | O40: 6.67 | Q40: 5.33 | R40: 10.00 | S40: 7.67 | T40: 5.00 | U40: 10.00 | V40: 7.50 | W40: 2.17 | Y40: 29.87 | Z40: 20.70 | AA40: 25.28 | AB40: 37.47 | AC40: 26.67 | AD40: 32.07 | AE40: -26.83 | AG40: 37.37 | AH40: 24.10 | AI40: 30.73 | AJ40: 14.00 | AK40: 20.93 | AL40: 17.47 | AM40: 43.17 | AO40: 2 | AP40: 5 | AQ40: 3.50 | AS40: 0 | AT40: 0 | AU40: 0
A41: 38 | B41: 40 | C41: EM79 | D41: MACS 998 | E41: 77.78 | F41: 77.78 | G41: 77.78 | H41: 44.44 | I41: 0.00 | J41: 22.22 | K41: 71.43 | L41: 55.56 | M41: 88.89 | N41: 72.22 | O41: 7.14 | Q41: 7.33 | R41: 12.00 | S41: 9.67 | T41: 5.33 | U41: 11.33 | V41: 8.33 | W41: 13.79 | Y41: 34.87 | Z41: 37.33 | AA41: 36.10 | AB41: 32.50 | AC41: 18.00 | AD41: 25.25 | AE41: 30.06 | AG41: 33.97 | AH41: 25.57 | AI41: 29.77 | AJ41: 10.57 | AK41: 10.37 | AL41: 10.47 | AM41: 64.84 | AO41: 2 | AP41: 4 | AQ41: 3.00 | AS41: 0 | AT41: 0 | AU41: 0
A42: 39 | B42: 41 | C42: ARI 1 | D42: AMS 1002 | E42: 100.00 | F42: 100.00 | G42: 100.00 | H42: 100.00 | I42: 100.00 | J42: 100.00 | K42: 0.00 | L42: 100.00 | M42: 66.67 | N42: 83.33 | O42: 16.67 | Q42: 5.67 | R42: 9.67 | S42: 7.67 | T42: 6.00 | U42: 7.00 | V42: 6.50 | W42: 15.22 | Y42: 35.00 | Z42: 32.17 | AA42: 33.58 | AB42: 33.00 | AC42: 27.50 | AD42: 30.25 | AE42: 9.93 | AG42: 33.03 | AH42: 23.75 | AI42: 28.39 | AJ42: 9.00 | AK42: 16.10 | AL42: 12.55 | AM42: 55.80 | AO42: 3 | AP42: 3 | AQ42: 3.00 | AS42: 0 | AT42: 0 | AU42: 0
A43: 40 | B43: 42 | C43: ARI 7 | D43: HARDEE | E43: 0.00 | F43: 55.56 | G43: 27.78 | H43: 0.00 | I43: 33.33 | J43: 16.67 | K43: 40.00 | L43: 0.00 | M43: 44.44 | N43: 22.22 | O43: 20.00 | Q43: 7.00 | R43: 8.67 | S43: 7.83 | T43: 8.00 | U43: 7.00 | V43: 7.50 | W43: 4.26 | Y43: 36.93 | Z43: 37.10 | AA43: 37.02 | AB43: 38.00 | AC43: 21.33 | AD43: 29.67 | AE43: 19.86 | AG43: 30.97 | AH43: 17.33 | AI43: 24.15 | AJ43: 11.17 | AK43: 25.03 | AL43: 18.10 | AM43: 25.05 | AO43: 4 | AP43: 2 | AQ43: 3.00 | AS43: 0 | AT43: 0 | AU43: 0
A44: 41 | B44: 43 | C44: ARI 12 | D44: MACS 1460 | E44: 88.89 | F44: 100.00 | G44: 94.44 | H44: 66.67 | I44: 100.00 | J44: 83.33 | K44: 11.76 | L44: 88.89 | M44: 66.67 | N44: 77.78 | O44: 17.65 | Q44: 6.00 | R44: 9.33 | S44: 7.67 | T44: 5.00 | U44: 7.00 | V44: 6.00 | W44: 21.74 | Y44: 33.63 | Z44: 31.97 | AA44: 32.80 | AB44: 34.13 | AC44: 21.67 | AD44: 27.90 | AE44: 14.94 | AG44: 31.27 | AH44: 20.67 | AI44: 25.97 | AJ44: 11.77 | AK44: 20.17 | AL44: 15.97 | AM44: 38.51 | AO44: 2 | AP44: 0 | AQ44: 1.00 | AS44: 0 | AT44: 0 | AU44: 0
A45: 42 | B45: 44 | C45: PC53 | D45: MACS 58 | E45: 100.00 | F45: 100.00 | G45: 100.00 | H45: 77.78 | I45: 100.00 | J45: 88.89 | K45: 11.11 | L45: 77.78 | M45: 88.89 | N45: 83.33 | O45: 16.67 | Q45: 6.67 | R45: 6.50 | S45: 6.58 | T45: 5.00 | U45: 4.67 | V45: 4.83 | W45: 26.58 | Y45: 39.60 | Z45: 32.18 | AA45: 35.89 | AB45: 33.00 | AC45: 19.75 | AD45: 26.38 | AE45: 26.51 | AG45: 31.73 | AH45: 27.50 | AI45: 29.62 | AJ45: 8.87 | AK45: 15.20 | AL45: 12.03 | AM45: 59.37 | AO45: 5 | AP45: 5 | AQ45: 5.00 | AS45: 0 | AT45: 0 | AU45: 0
A46: 43 | B46: 45 | C46: ARI 16 | D46: MACS NRC 1667 | E46: 0.00 | F46: 0.00 | G46: 0.00 | H46: 0.00 | I46: 0.00 | J46: 0.00 | K46: NA | L46: 0.00 | M46: 0.00 | N46: 0.00 | O46: NA | Q46: 6.00 | R46: 8.50 | S46: 7.25 | T46: 6.50 | U46: 8.00 | V46: 7.25 | W46: 0.00 | Y46: 30.80 | Z46: 25.63 | AA46: 28.22 | AB46: 34.00 | AC46: 28.67 | AD46: 31.33 | AE46: -11.05 | AG46: 33.67 | AH46: 33.67 | AI46: 33.67 | AJ46: 13.27 | AK46: 19.60 | AL46: 16.43 | AM46: 51.19 | AO46: 0 | AP46: 1 | AQ46: 0.50 | AS46: 0 | AT46: 0 | AU46: 0
A47: 44 | B47: 46 | C47: ARI 19 | D47: PS 1347 | E47: 100.00 | F47: 77.78 | G47: 88.89 | H47: 100.00 | I47: 100.00 | J47: 100.00 | K47: =((G47-J47)/G47)*100 -> -12.50 | L47: 100.00 | M47: 77.78 | N47: 88.89 | O47: =((G47-N47)/G47)*100 -> -0.00 | Q47: 6.00 | R47: 8.00 | S47: 7.00 | T47: 5.00 | U47: 7.67 | V47: 6.33 | W47: 9.52 | Y47: 31.93 | Z47: 42.27 | AA47: 37.10 | AB47: 33.93 | AC47: 35.00 | AD47: 34.47 | AE47: 7.10 | AG47: 30.87 | AH47: 30.87 | AI47: 30.87 | AJ47: 11.90 | AK47: 10.80 | AL47: 11.35 | AM47: 63.23 | AO47: 5 | AP47: 5 | AQ47: 5.00 | AS47: 0 | AT47: 0 | AU47: 0
A48: 45 | B48: 48 | C48: EM80 | D48: PS 1374 | E48: 88.89 | F48: 77.78 | G48: 83.33 | H48: 100.00 | I48: 33.33 | J48: 66.67 | K48: 20.00 | L48: 77.78 | M48: 55.56 | N48: 66.67 | O48: 20.00 | Q48: 6.33 | R48: 9.00 | S48: 7.67 | T48: 7.00 | U48: 9.00 | V48: 8.00 | W48: -4.35 | Y48: 33.30 | Z48: 26.13 | AA48: 29.72 | AB48: 35.80 | AC48: 16.00 | AD48: 25.90 | AE48: 12.84 | AG48: 32.87 | AH48: 31.00 | AI48: 31.93 | AJ48: 12.90 | AK48: 20.47 | AL48: 16.68 | AM48: 47.76 | AO48: 2 | AP48: 5 | AQ48: 3.50 | AS48: 0 | AT48: 0 | AU48: 0
A49: 46 | B49: 49 | C49: EM82 | D49: MACS 1010 | E49: 100.00 | F49: 100.00 | G49: 100.00 | H49: 100.00 | I49: 66.67 | J49: 83.33 | K49: 16.67 | L49: 100.00 | M49: 100.00 | N49: 100.00 | O49: 0.00 | Q49: 6.67 | R49: 11.00 | S49: 8.83 | T49: 6.33 | U49: 9.00 | V49: 7.67 | W49: 13.21 | Y49: 36.30 | Z49: 40.37 | AA49: 38.33 | AB49: 33.43 | AC49: 14.33 | AD49: 23.88 | AE49: 37.70 | AG49: 28.23 | AH49: 18.90 | AI49: 23.57 | AJ49: 11.33 | AK49: 24.13 | AL49: 17.73 | AM49: 24.75 | AO49: 3 | AP49: 4 | AQ49: 3.50 | AS49: 0 | AT49: 0 | AU49: 0
A50: 47 | B50: 50 | C50: EM91 | D50: SL 710 | E50: 88.89 | F50: 100.00 | G50: 94.44 | H50: 44.44 | I50: 66.67 | J50: 55.56 | K50: 41.18 | L50: 44.44 | M50: 77.78 | N50: 61.11 | O50: 35.29 | Q50: 6.33 | R50: 14.00 | S50: 10.17 | T50: 6.50 | U50: 8.00 | V50: 7.25 | W50: 28.69 | Y50: 29.40 | Z50: 36.30 | AA50: 32.85 | AB50: 29.00 | AC50: 28.33 | AD50: 28.67 | AE50: 12.73 | AG50: 29.67 | AH50: 21.70 | AI50: 25.68 | AJ50: 15.37 | AK50: 11.87 | AL50: 13.62 | AM50: 46.98 | AO50: 3 | AP50: 0 | AQ50: 1.50 | AS50: 0 | AT50: 1 | AU50: 0.5
A51: 48 | B51: 51 | C51: EM112 | D51: EC 36362 | E51: 100.00 | F51: 100.00 | G51: 100.00 | H51: 100.00 | I51: 0.00 | J51: 50.00 | K51: 50.00 | L51: 100.00 | M51: 66.67 | N51: 83.33 | O51: 16.67 | Q51: 6.33 | R51: 12.67 | S51: 9.50 | T51: 5.00 | U51: 7.00 | V51: 6.00 | W51: 36.84 | Y51: 31.17 | Z51: 40.17 | AA51: 35.67 | AB51: 32.03 | AC51: 19.33 | AD51: 25.68 | AE51: 27.99 | AG51: 29.40 | AH51: 25.93 | AI51: 27.67 | AJ51: 13.23 | AK51: 23.70 | AL51: 18.47 | AM51: 33.25 | AO51: 3 | AP51: 5 | AQ51: 4.00 | AS51: 0 | AT51: 0 | AU51: 0
A52: 49 | B52: 52 | C52: EM116 | D52: EC 62736 | E52: 100.00 | F52: 88.89 | G52: 94.44 | H52: 77.78 | I52: 100.00 | J52: 88.89 | K52: 5.88 | L52: 66.67 | M52: 100.00 | N52: 83.33 | O52: 11.76 | Q52: 7.67 | R52: 10.67 | S52: 9.17 | T52: 5.33 | U52: 10.33 | V52: 7.83 | W52: 14.55 | Y52: 26.17 | Z52: 29.50 | AA52: 27.83 | AB52: 32.80 | AC52: 22.67 | AD52: 27.73 | AE52: 0.36 | AG52: 30.93 | AH52: 25.40 | AI52: 28.17 | AJ52: 10.40 | AK52: 17.20 | AL52: 13.80 | AM52: 51.01 | AO52: 5 | AP52: 5 | AQ52: 5.00 | AS52: 0 | AT52: 0 | AU52: 0
A53: 50 | B53: 53 | C53: EM 127 | D53: EC 100027 | E53: 88.89 | F53: 66.67 | G53: 77.78 | H53: 66.67 | I53: 0.00 | J53: 33.33 | K53: 57.14 | L53: 66.67 | M53: 66.67 | N53: 66.67 | O53: 14.29 | Q53: 7.00 | R53: 12.00 | S53: 9.50 | T53: 6.00 | U53: 8.33 | V53: 7.17 | W53: 24.56 | Y53: 33.80 | Z53: 42.17 | AA53: 37.98 | AB53: 30.93 | AC53: 22.00 | AD53: 26.47 | AE53: 30.32 | AG53: 35.47 | AH53: 30.63 | AI53: 33.05 | AJ53: 12.50 | AK53: 18.27 | AL53: 15.38 | AM53: 53.45 | AO53: 3 | AP53: 5 | AQ53: 4.00 | AS53: 0 | AT53: 0 | AU53: 0
A54: 51 | B54: 54 | C54: EM 128 | D54: EC 100797 | E54: 100.00 | F54: 100.00 | G54: 100.00 | H54: 77.78 | I54: 100.00 | J54: 88.89 | K54: 11.11 | L54: 55.56 | M54: 66.67 | N54: 61.11 | O54: 38.89 | Q54: 7.67 | R54: 11.33 | S54: 9.50 | T54: 6.00 | U54: 10.00 | V54: 8.00 | W54: 15.79 | Y54: 32.83 | Z54: 34.17 | AA54: 33.50 | AB54: 34.27 | AC54: 16.67 | AD54: 25.47 | AE54: 23.98 | AG54: 35.47 | AH54: 27.00 | AI54: 31.23 | AJ54: 18.47 | AK54: 4.65 | AL54: 11.56 | AM54: 62.99 | AO54: 5 | AP54: 5 | AQ54: 5.00 | AS54: 0 | AT54: 0 | AU54: 0
A55: 52 | B55: 55 | C55: EM 129 | D55: EC 100800 | E55: 100.00 | F55: 100.00 | G55: 100.00 | H55: 100.00 | I55: 100.00 | J55: 100.00 | K55: 0.00 | L55: 100.00 | M55: 77.78 | N55: 88.89 | O55: 11.11 | Q55: 6.67 | R55: 15.50 | S55: 11.08 | T55: 5.33 | U55: 10.67 | V55: 8.00 | W55: 27.82 | Y55: 31.53 | Z55: 48.37 | AA55: 39.95 | AB55: 34.33 | AC55: 18.00 | AD55: 26.17 | AE55: 34.50 | AG55: 32.77 | AH55: 24.15 | AI55: 28.46 | AJ55: 12.30 | AK55: 11.77 | AL55: 12.03 | AM55: 57.72 | AO55: 2 | AP55: 5 | AQ55: 3.50 | AS55: 0 | AT55: 0 | AU55: 0
A56: 53 | B56: 56 | C56: EM 130 | D56: EC 107416 | E56: 88.89 | F56: 88.89 | G56: 88.89 | H56: 33.33 | I56: 66.67 | J56: 50.00 | K56: 43.75 | L56: 33.33 | M56: 55.56 | N56: 44.44 | O56: 50.00 | Q56: 5.67 | R56: 13.00 | S56: 9.33 | T56: 5.33 | U56: 10.00 | V56: 7.67 | W56: 17.86 | Y56: 33.63 | Z56: 32.30 | AA56: 32.97 | AB56: 36.33 | AC56: 20.67 | AD56: 28.50 | AE56: 13.55 | AG56: 29.13 | AH56: 24.87 | AI56: 27.00 | AJ56: 8.13 | AK56: 8.90 | AL56: 8.52 | AM56: 68.46 | AO56: 3 | AP56: 3 | AQ56: 3.00 | AS56: 0 | AT56: 0 | AU56: 0
A57: 54 | B57: 57 | C57: EM 131 | D57: IC 7843 | E57: 66.67 | F57: 66.67 | G57: 66.67 | H57: 66.67 | I57: 0.00 | J57: 33.33 | K57: 50.00 | L57: 22.22 | M57: 55.56 | N57: 38.89 | O57: 41.67 | Q57: 6.00 | R57: 15.33 | S57: 10.67 | T57: 7.00 | U57: 7.00 | V57: 7.00 | W57: 34.38 | Y57: 33.27 | Z57: 48.93 | AA57: 41.10 | AB57: 33.37 | AC57: 31.33 | AD57: 32.35 | AE57: 21.29 | AG57: 32.27 | AH57: 26.50 | AI57: 29.38 | AJ57: 6.63 | AK57: 10.55 | AL57: 8.59 | AM57: 70.76 | AO57: 5 | AP57: 5 | AQ57: 5.00 | AS57: 0 | AT57: 0 | AU57: 0
A58: 55 | B58: 58 | C58: EM 134 | D58: PLSO 39 | E58: 66.67 | F58: 100.00 | G58: 83.33 | H58: 83.33 | I58: 100.00 | J58: 91.67 | K58: -10.00 | L58: 44.44 | M58: 55.56 | N58: 50.00 | O58: 40.00 | Q58: 6.00 | R58: 17.33 | S58: 11.67 | T58: 6.67 | U58: 7.67 | V58: 7.17 | W58: 38.57 | Y58: 28.47 | Z58: 37.63 | AA58: 33.05 | AB58: 33.90 | AC58: 27.00 | AD58: 30.45 | AE58: 7.87 | AG58: 36.13 | AH58: 24.07 | AI58: 30.10 | AJ58: 8.43 | AK58: 18.75 | AL58: 13.59 | AM58: 54.84 | AO58: 2 | AP58: 5 | AQ58: 3.50 | AS58: 0 | AT58: 0 | AU58: 0
A59: 56 | B59: 59 | C59: EM 137 | D59: UPSS 74 | E59: 83.33 | F59: 100.00 | G59: 91.67 | H59: 66.67 | I59: 33.33 | J59: 50.00 | K59: 45.45 | L59: 44.44 | M59: 77.78 | N59: 61.11 | O59: 33.33 | Q59: 5.67 | R59: 13.33 | S59: 9.50 | T59: 5.67 | U59: 8.67 | V59: 7.17 | W59: 24.56 | Y59: 33.23 | Z59: 46.07 | AA59: 39.65 | AB59: 32.80 | AC59: 24.00 | AD59: 28.40 | AE59: 28.37 | AG59: 33.23 | AH59: 29.83 | AI59: 31.53 | AJ59: 9.17 | AK59: 17.70 | AL59: 13.43 | AM59: 57.40 | AO59: 3 | AP59: 3 | AQ59: 3.00 | AS59: 0 | AT59: 0 | AU59: 0
A60: 57 | B60: 60 | C60: EM 139 | D60: PICKET | E60: 0.00 | F60: 88.89 | G60: 44.44 | H60: 0.00 | I60: 100.00 | J60: 50.00 | K60: -12.50 | L60: 0.00 | M60: 100.00 | N60: 50.00 | O60: -12.50 | Q60: 5.00 | R60: 11.67 | S60: 8.33 | T60: 6.67 | U60: 8.00 | V60: 7.33 | W60: 12.00 | Y60: 32.73 | Z60: 35.90 | AA60: 34.32 | AB60: 34.20 | AC60: 18.67 | AD60: 26.43 | AE60: 22.97 | AG60: 30.57 | AH60: 31.57 | AI60: 31.07 | AJ60: 5.77 | AK60: 25.93 | AL60: 15.85 | AM60: 48.98 | AO60: 5 | AP60: 5 | AQ60: 5.00 | AS60: 0 | AT60: 0 | AU60: 0
A61: 58 | B61: 61 | C61: EM 140 | D61: EC 18595 | E61: 44.44 | F61: 100.00 | G61: 72.22 | H61: 22.22 | I61: 66.67 | J61: 44.44 | K61: 38.46 | L61: 33.33 | M61: 66.67 | N61: 50.00 | O61: 30.77 | Q61: 5.00 | R61: 12.00 | S61: 8.50 | T61: 5.00 | U61: 9.00 | V61: 7.00 | W61: 17.65 | Y61: 35.87 | Z61: 39.37 | AA61: 37.62 | AB61: 35.33 | AC61: 10.67 | AD61: 23.00 | AE61: 38.86 | AG61: 34.17 | AH61: 33.55 | AI61: 33.86 | AJ61: 7.37 | AK61: 17.20 | AL61: 12.28 | AM61: 63.72 | AO61: 4 | AP61: 1 | AQ61: 2.50 | AS61: 0 | AT61: 1 | AU61: 0.5
A62: 59 | B62: 62 | C62: EM 142 | D62: IC 2051 | E62: 77.78 | F62: 100.00 | G62: 88.89 | H62: 66.67 | I62: 100.00 | J62: 83.33 | K62: 6.25 | L62: 88.89 | M62: 77.78 | N62: 83.33 | O62: 6.25 | Q62: 5.67 | R62: 15.00 | S62: 10.33 | T62: 7.00 | U62: 10.00 | V62: 8.50 | W62: 17.74 | Y62: 27.53 | Z62: 38.20 | AA62: 32.87 | AB62: 33.20 | AC62: 25.33 | AD62: 29.27 | AE62: 10.95 | AG62: 31.13 | AH62: 27.15 | AI62: 29.14 | AJ62: 11.80 | AK62: 20.00 | AL62: 15.90 | AM62: 45.44 | AO62: 5 | AP62: 5 | AQ62: 5.00 | AS62: 0 | AT62: 0 | AU62: 0
A63: 60 | B63: 63 | C63: EM 145 | D63: IC 15088 | E63: 55.56 | F63: 100.00 | G63: 77.78 | H63: 88.89 | I63: 66.67 | J63: 77.78 | K63: 0.00 | L63: 0.00 | M63: 55.56 | N63: 27.78 | O63: 64.29 | Q63: 6.00 | R63: 8.00 | S63: 7.00 | T63: 6.50 | U63: 9.00 | V63: 7.75 | W63: -10.71 | Y63: 36.67 | Z63: 41.67 | AA63: 39.17 | AB63: 32.50 | AC63: 8.00 | AD63: 20.25 | AE63: 48.30 | AG63: 32.97 | AH63: 32.97 | AI63: 32.97 | AJ63: 8.40 | AK63: 18.80 | AL63: 13.60 | AM63: 58.75 | AO63: 5 | AP63: 5 | AQ63: 5.00 | AS63: 0 | AT63: 0 | AU63: 0
A64: 61 | B64: 64 | C64: EM 148 | D64: EC 11695 | E64: 66.67 | F64: 100.00 | G64: 83.33 | H64: 66.67 | I64: 66.67 | J64: 66.67 | K64: 20.00 | L64: 77.78 | M64: 100.00 | N64: 88.89 | O64: -6.67 | Q64: 7.00 | R64: 13.00 | S64: 10.00 | T64: 6.67 | U64: 8.67 | V64: 7.67 | W64: 23.33 | Y64: 35.57 | Z64: 44.07 | AA64: 39.82 | AB64: 38.27 | AC64: 19.67 | AD64: 28.97 | AE64: 27.25 | AG64: 33.20 | AH64: 31.90 | AI64: 32.55 | AJ64: 10.23 | AK64: 6.93 | AL64: 8.58 | AM64: 73.63 | AO64: 5 | AP64: 5 | AQ64: 5.00 | AS64: 0 | AT64: 0 | AU64: 0
A65: 62 | B65: 65 | C65: EM 150 | D65: IC 9471 | E65: 88.89 | F65: 33.33 | G65: 61.11 | H65: 88.89 | I65: 0.00 | J65: 44.44 | K65: 27.27 | L65: 66.67 | M65: 33.33 | N65: 50.00 | O65: 18.18 | Q65: 7.33 | R65: 15.67 | S65: 11.50 | T65: 7.00 | U65: 13.33 | V65: 10.17 | W65: 11.59 | Y65: 35.50 | Z65: 46.73 | AA65: 41.12 | AB65: 30.40 | AC65: 38.67 | AD65: 34.53 | AE65: 16.01 | AG65: 29.97 | AH65: 27.50 | AI65: 28.73 | AJ65: 12.03 | AK65: 15.73 | AL65: 13.88 | AM65: 51.68 | AO65: 5 | AP65: 5 | AQ65: 5.00 | AS65: 0 | AT65: 0 | AU65: 0
A66: 63 | B66: 66 | C66: EM 151 | D66: IC 13048 | E66: 0.00 | F66: 55.56 | G66: 27.78 | H66: 0.00 | I66: 0.00 | J66: 0.00 | K66: 100.00 | L66: 0.00 | M66: 33.33 | N66: 16.67 | O66: 40.00 | Q66: 6.33 | R66: 14.00 | S66: 10.17 | T66: 8.00 | U66: 10.00 | V66: 9.00 | W66: 11.48 | Y66: 34.43 | Z66: 45.37 | AA66: 39.90 | AB66: 33.20 | AC66: 27.00 | AD66: 30.10 | AE66: 24.56 | AG66: 31.63 | AH66: 26.80 | AI66: 29.22 | AJ66: 9.00 | AK66: 5.67 | AL66: 7.33 | AM66: 74.90 | AO66: 4 | AP66: 5 | AQ66: 4.50 | AS66: 0 | AT66: 0 | AU66: 0
A67: 64 | B67: 67 | C67: EM 163 | D67: EC 14426 | E67: 100.00 | F67: 88.89 | G67: 94.44 | H67: 88.89 | I67: 100.00 | J67: 94.44 | K67: -0.00 | L67: 88.89 | M67: 55.56 | N67: 72.22 | O67: 23.53 | Q67: 5.67 | R67: 12.33 | S67: 9.00 | T67: 7.67 | U67: 12.00 | V67: 9.83 | W67: -9.26 | Y67: 36.63 | Z67: 39.17 | AA67: 37.90 | AB67: 38.73 | AC67: 22.00 | AD67: 30.37 | AE67: 19.88 | AG67: 36.93 | AH67: 28.50 | AI67: 32.72 | AJ67: 8.23 | AK67: 25.10 | AL67: 16.67 | AM67: 49.06 | AO67: 0 | AP67: 0 | AQ67: 0.00 | AS67: 1 | AT67: 1 | AU67: 1
A68: 65 | B68: 68 | C68: EM 165 | D68: EC 14457 | E68: 66.67 | F68: 88.89 | G68: 77.78 | H68: 66.67 | I68: 100.00 | J68: 83.33 | K68: -7.14 | L68: 44.44 | M68: 88.89 | N68: 66.67 | O68: 14.29 | Q68: 6.00 | R68: 13.00 | S68: 9.50 | T68: 5.00 | U68: 7.67 | V68: 6.33 | W68: =((S68-V68)/S68)*100 -> 33.33 | Y68: 36.13 | Z68: 39.97 | AA68: 38.05 | AB68: 32.40 | AC68: 28.00 | AD68: 30.20 | AE68: 20.63 | AG68: 31.83 | AH68: 22.60 | AI68: 27.22 | AJ68: 13.27 | AK68: 14.10 | AL68: 13.68 | AM68: 49.72 | AO68: 1 | AP68: 5 | AQ68: 3.00 | AS68: 0 | AT68: 0 | AU68: 0
A69: 66 | B69: 69 | C69: EM 172 | D69: JS 72 451 | E69: 66.67 | F69: 66.67 | G69: =AVERAGE(E69:F69) -> 66.67 | H69: 11.11 | I69: 100.00 | J69: =AVERAGE(H69:I69) -> 55.56 | K69: 16.67 | L69: 44.44 | M69: 44.44 | N69: =AVERAGE(L69:M69) -> 44.44 | O69: 33.33 | Q69: 6.33 | R69: 12.67 | S69: =AVERAGE(Q69:R69) -> 9.50 | T69: 6.67 | U69: 8.00 | V69: =AVERAGE(T69:U69) -> 7.33 | W69: 22.81 | Y69: 36.33 | Z69: 47.77 | AA69: =AVERAGE(Y69:Z69) -> 42.05 | AB69: 30.10 | AC69: 21.33 | AD69: =AVERAGE(AB69:AC69) -> 25.72 | AE69: =((AA69-AD69)/AA69)*100 -> 38.84 | AG69: 31.00 | AH69: 20.80 | AI69: =AVERAGE(AG69:AH69) -> 25.90 | AJ69: 10.90 | AK69: 13.07 | AL69: =AVERAGE(AJ69:AK69) -> 11.98 | AM69: =((AI69-AL69)/AI69)*100 -> 53.73 | AO69: 2 | AP69: 5 | AQ69: =AVERAGE(AO69:AP69) -> 3.50 | AS69: 0 | AT69: 0 | AU69: =AVERAGE(AS69:AT69) -> 0
A70: 67 | B70: 70 | C70: EM 179 | D70: IC 38312 | E70: 66.67 | F70: 100.00 | G70: 83.33 | H70: 66.67 | I70: 100.00 | J70: 83.33 | K70: 0.00 | L70: 44.44 | M70: 100.00 | N70: 72.22 | O70: 13.33 | Q70: 6.33 | R70: 13.67 | S70: 10.00 | T70: 8.00 | U70: 9.67 | V70: 8.83 | W70: 11.67 | Y70: 34.70 | Z70: 42.03 | AA70: 38.37 | AB70: 37.07 | AC70: 22.67 | AD70: 29.87 | AE70: 22.15 | AG70: 36.67 | AH70: 24.00 | AI70: 30.33 | AJ70: 9.03 | AK70: 17.00 | AL70: 13.02 | AM70: 57.09 | AO70: 1 | AP70: 5 | AQ70: 3.00 | AS70: 0 | AT70: 0 | AU70: 0
A71: 68 | B71: 71 | C71: EM 185 | D71: PK 1029 | E71: 55.56 | F71: 100.00 | G71: 77.78 | H71: 88.89 | I71: 100.00 | J71: 94.44 | K71: -21.43 | L71: 100.00 | M71: 88.89 | N71: 94.44 | O71: -21.43 | Q71: 5.00 | R71: 9.00 | S71: 7.00 | T71: 5.67 | U71: 9.00 | V71: 7.33 | W71: -4.76 | Y71: 32.93 | Z71: 29.43 | AA71: 31.18 | AB71: 34.50 | AC71: 24.00 | AD71: 29.25 | AE71: 6.20 | AG71: 30.17 | AH71: 20.80 | AI71: 25.48 | AJ71: 7.37 | AK71: 11.83 | AL71: 9.60 | AM71: 62.33 | AO71: 1 | AP71: 0 | AQ71: 0.50 | AS71: 0 | AT71: 0 | AU71: 0
A72: 69 | B72: 72 | C72: EM 190 | D72: EC 34389 | E72: 0.00 | F72: 77.78 | G72: 38.89 | H72: 0.00 | I72: 100.00 | J72: 50.00 | K72: -28.57 | L72: 0.00 | M72: 100.00 | N72: 50.00 | O72: -28.57 | Q72: 5.33 | R72: 11.00 | S72: 8.17 | T72: 5.00 | U72: 8.00 | V72: 6.50 | W72: 20.41 | Y72: 33.90 | Z72: 38.40 | AA72: 36.15 | AB72: 31.50 | AC72: 33.87 | AD72: 32.68 | AE72: 9.59 | AG72: 29.23 | AH72: 24.50 | AI72: 26.87 | AJ72: 11.97 | AK72: 16.07 | AL72: 14.02 | AM72: 47.83 | AO72: 1 | AP72: 1 | AQ72: 1.00 | AS72: 0 | AT72: 0 | AU72: 0
A73: 70 | B73: 73 | C73: EM 193 | D73: JS 9971 | E73: 100.00 | F73: 77.78 | G73: 88.89 | H73: 100.00 | I73: 100.00 | J73: 100.00 | K73: -12.50 | L73: 100.00 | M73: 77.78 | N73: 88.89 | O73: -0.00 | Q73: 6.33 | R73: 9.00 | S73: 7.67 | T73: 4.67 | U73: 6.00 | V73: 5.33 | W73: 30.43 | Y73: 35.57 | Z73: 30.07 | AA73: 32.82 | AB73: 33.13 | AC73: 20.00 | AD73: 26.57 | AE73: 19.05 | AG73: 31.77 | AH73: 23.45 | AI73: 27.61 | AJ73: 10.13 | AK73: 21.85 | AL73: 15.99 | AM73: 42.08 | AO73: 1 | AP73: 1 | AQ73: 1.00 | AS73: 0 | AT73: 0 | AU73: 0
A74: 71 | B74: 75 | C74: EM 216 | D74: MACS 37 | E74: 77.78 | F74: 55.56 | G74: 66.67 | H74: 66.67 | I74: 66.67 | J74: 66.67 | K74: -0.00 | L74: 77.78 | M74: 77.78 | N74: 77.78 | O74: -16.67 | Q74: 7.00 | R74: 9.00 | S74: 8.00 | T74: 8.00 | U74: 9.00 | V74: 8.50 | W74: -6.25 | Y74: 34.90 | Z74: 39.90 | AA74: 37.40 | AB74: 33.83 | AC74: 28.00 | AD74: 30.92 | AE74: 17.34 | AG74: 35.70 | AH74: 35.70 | AI74: 35.70 | AJ74: 9.50 | AK74: 9.97 | AL74: 9.73 | AM74: 72.74 | AO74: 0 | AP74: 0 | AQ74: 0.00 | AS74: 1 | AT74: 0 | AU74: 0.5
A75: 72 | B75: 76 | C75: EM 217 | D75: MACS 89 | E75: 0.00 | F75: 100.00 | G75: 50.00 | H75: 0.00 | I75: 66.67 | J75: 33.33 | K75: 33.33 | L75: 0.00 | M75: 77.78 | N75: 38.89 | O75: 22.22 | Q75: 7.33 | R75: 13.00 | S75: 10.17 | T75: 6.50 | U75: 10.00 | V75: 8.25 | W75: 18.85 | Y75: 32.00 | Z75: 34.67 | AA75: 33.33 | AB75: 34.23 | AC75: 29.13 | AD75: 31.68 | AE75: 4.95 | AG75: 33.30 | AH75: 31.10 | AI75: 32.20 | AJ75: 10.57 | AK75: 22.60 | AL75: 16.58 | AM75: 48.50 | AO75: 0 | AP75: 0 | AQ75: 0.00 | AS75: 1 | AT75: 1 | AU75: 1
A76: 73 | B76: 77 | C76: EM 219 | D76: MACS 94 | E76: 100.00 | F76: 88.89 | G76: 94.44 | H76: 77.78 | I76: 66.67 | J76: 72.22 | K76: 23.53 | L76: 55.56 | M76: 100.00 | N76: 77.78 | O76: 17.65 | Q76: 6.00 | R76: 10.00 | S76: 8.00 | T76: 8.00 | U76: 6.00 | V76: 7.00 | W76: 12.50 | Y76: 33.87 | Z76: 37.80 | AA76: 35.83 | AB76: 30.83 | AC76: 24.33 | AD76: 27.58 | AE76: 23.02 | AG76: 34.13 | AH76: 24.90 | AI76: 29.52 | AJ76: 8.33 | AK76: 19.80 | AL76: 14.07 | AM76: 52.34 | AO76: 4 | AP76: 5 | AQ76: 4.50 | AS76: 0 | AT76: 0 | AU76: 0
A77: 74 | B77: 78 | C77: EM 220 | D77: MACS 96 | E77: 55.56 | F77: 100.00 | G77: 77.78 | H77: 100.00 | I77: 100.00 | J77: 100.00 | K77: -28.57 | L77: 100.00 | M77: 77.78 | N77: 88.89 | O77: -14.29 | Q77: 8.33 | R77: 14.33 | S77: 11.33 | T77: 5.00 | U77: 10.67 | V77: 7.83 | W77: 30.88 | Y77: 34.53 | Z77: 46.03 | AA77: 40.28 | AB77: 35.13 | AC77: 23.30 | AD77: 29.22 | AE77: 27.47 | AG77: 31.57 | AH77: 24.70 | AI77: 28.13 | AJ77: 10.07 | AK77: 18.77 | AL77: 14.42 | AM77: 48.76 | AO77: 1 | AP77: 1 | AQ77: 1.00 | AS77: 0 | AT77: 0 | AU77: 0
A78: 75 | B78: 79 | C78: EM 226 | D78: MACS 136 | E78: 100.00 | F78: 77.78 | G78: 88.89 | H78: 44.44 | I78: 33.33 | J78: 38.89 | K78: 56.25 | L78: 66.67 | M78: 66.67 | N78: 66.67 | O78: 25.00 | Q78: 7.67 | R78: 14.67 | S78: 11.17 | T78: 5.33 | U78: 7.00 | V78: 6.17 | W78: 44.78 | Y78: 32.40 | Z78: 39.57 | AA78: 35.98 | AB78: 33.13 | AC78: 21.00 | AD78: 27.07 | AE78: 24.78 | AG78: 36.33 | AH78: 24.83 | AI78: 30.58 | AJ78: 11.27 | AK78: 19.67 | AL78: 15.47 | AM78: 49.43 | AO78: 2 | AP78: 5 | AQ78: 3.50 | AS78: 0 | AT78: 0 | AU78: 0
A79: 76 | B79: 80 | C79: EM 232 | D79: MACS 161 | E79: 88.89 | F79: 100.00 | G79: 94.44 | H79: 77.78 | I79: 100.00 | J79: 88.89 | K79: =((G79-J79)/G79)*100 -> 5.88 | L79: 100.00 | M79: 77.78 | N79: 88.89 | O79: =((G79-N79)/G79)*100 -> 5.88 | Q79: 7.00 | R79: 12.67 | S79: 9.83 | T79: 5.33 | U79: 9.00 | V79: 7.17 | W79: 27.12 | Y79: 36.17 | Z79: 40.97 | AA79: 38.57 | AB79: 26.33 | AC79: 18.67 | AD79: 22.50 | AE79: 41.66 | AG79: 35.80 | AH79: 22.17 | AI79: 28.98 | AJ79: 12.63 | AK79: 16.40 | AL79: 14.52 | AM79: 49.91 | AO79: 0 | AP79: 3 | AQ79: 1.50 | AS79: 1 | AT79: 0 | AU79: 0.5
A80: 77 | B80: 81 | C80: EM 233 | D80: MACS 164 | E80: 88.89 | F80: 88.89 | G80: 88.89 | H80: 77.78 | I80: 33.33 | J80: 55.56 | K80: 37.50 | L80: 88.89 | M80: 77.78 | N80: 83.33 | O80: 6.25 | Q80: 6.33 | R80: 13.00 | S80: 9.67 | T80: 7.00 | U80: 8.33 | V80: 7.67 | W80: 20.69 | Y80: 32.80 | Z80: 42.30 | AA80: 37.55 | AB80: 32.50 | AC80: 23.00 | AD80: 27.75 | AE80: 26.10 | AG80: 35.13 | AH80: 29.40 | AI80: 32.27 | AJ80: 8.17 | AK80: 19.53 | AL80: 13.85 | AM80: 57.08 | AO80: 4 | AP80: 4 | AQ80: 4.00 | AS80: 0 | AT80: 0 | AU80: 0
A81: 78 | B81: 82 | C81: EM 234 | D81: MACS 166 | E81: 83.33 | F81: 88.89 | G81: 86.11 | H81: 100.00 | I81: 0.00 | J81: 50.00 | K81: 41.94 | L81: 83.33 | M81: 88.89 | N81: 86.11 | O81: -0.00 | Q81: 6.00 | R81: 14.50 | S81: 10.25 | T81: 6.50 | U81: 10.67 | V81: 8.58 | W81: 16.26 | Y81: 36.77 | Z81: 55.15 | AA81: 45.96 | AB81: 33.63 | AC81: 25.00 | AD81: 29.32 | AE81: 36.21 | AG81: 31.43 | AH81: 30.15 | AI81: 30.79 | AJ81: 7.70 | AK81: 33.75 | AL81: 20.73 | AM81: 32.69 | AO81: 0 | AP81: 0 | AQ81: 0.00 | AS81: 1 | AT81: 1 | AU81: 1
A82: 79 | B82: 83 | C82: EM 235 | D82: MACS167 | E82: 55.56 | F82: 77.78 | G82: 66.67 | H82: 100.00 | I82: 66.67 | J82: 83.33 | K82: -25.00 | L82: 44.44 | M82: 100.00 | N82: 72.22 | O82: -8.33 | Q82: 6.00 | R82: 11.33 | S82: 8.67 | T82: 7.00 | U82: 10.33 | V82: 8.67 | W82: 0.00 | Y82: 29.47 | Z82: 31.80 | AA82: 30.63 | AB82: 34.13 | AC82: 26.00 | AD82: 30.07 | AE82: 1.85 | AG82: 31.20 | AH82: 21.17 | AI82: 26.18 | AJ82: 13.70 | AK82: 30.60 | AL82: 22.15 | AM82: 15.40 | AO82: 2 | AP82: 0 | AQ82: 1.00 | AS82: 1 | AT82: 1 | AU82: 1
A83: 80 | B83: 84 | C83: EM 237 | D83: MACS 173 | E83: 100.00 | F83: 77.78 | G83: 88.89 | H83: 100.00 | I83: 66.67 | J83: 83.33 | K83: 6.25 | L83: 100.00 | M83: 88.89 | N83: 94.44 | O83: -6.25 | Q83: 6.33 | R83: 13.67 | S83: 10.00 | T83: 5.67 | U83: 9.67 | V83: 7.67 | W83: 23.33 | Y83: 32.90 | Z83: 48.73 | AA83: 40.82 | AB83: 31.27 | AC83: 17.33 | AD83: 24.30 | AE83: 40.47 | AG83: 30.87 | AH83: 28.43 | AI83: 29.65 | AJ83: 11.70 | AK83: 21.30 | AL83: 16.50 | AM83: 44.35 | AO83: 4 | AP83: 0 | AQ83: 2.00 | AS83: 0 | AT83: 0 | AU83: 0
A84: 81 | B84: 85 | C84: EM 242 | D84: MACS 199 | E84: 100.00 | F84: 88.89 | G84: 94.44 | H84: 100.00 | I84: 100.00 | J84: 100.00 | K84: -5.88 | L84: 55.56 | M84: 100.00 | N84: 77.78 | O84: 17.65 | Q84: 5.33 | R84: 13.33 | S84: 9.33 | T84: 8.00 | U84: 6.67 | V84: 7.33 | W84: 21.43 | Y84: 35.57 | Z84: 46.17 | AA84: 40.87 | AB84: 27.23 | AC84: 24.33 | AD84: 25.78 | AE84: 36.91 | AG84: 35.67 | AH84: 26.77 | AI84: 31.22 | AJ84: 7.40 | AK84: 25.10 | AL84: 16.25 | AM84: 47.94 | AO84: 5 | AP84: 0 | AQ84: 2.50 | AS84: 0 | AT84: 0 | AU84: 0
A85: 82 | B85: 86 | C85: EM 244 | D85: MACS 204 | E85: 33.33 | F85: 77.78 | G85: 55.56 | H85: 33.33 | I85: 66.67 | J85: 50.00 | K85: 10.00 | L85: 88.89 | M85: 66.67 | N85: 77.78 | O85: -40.00 | Q85: 5.67 | R85: 12.33 | S85: 9.00 | T85: 6.00 | U85: 10.00 | V85: 8.00 | W85: 11.11 | Y85: 37.23 | Z85: 42.50 | AA85: 39.87 | AB85: 33.27 | AC85: 19.00 | AD85: 26.13 | AE85: 34.45 | AG85: 31.40 | AH85: 26.30 | AI85: 28.85 | AJ85: 12.13 | AK85: 24.27 | AL85: 18.20 | AM85: 36.92 | AO85: 5 | AP85: 0 | AQ85: 2.50 | AS85: 0 | AT85: 1 | AU85: 0.5
A86: 83 | B86: 87 | C86: EM 246 | D86: MACS 221 | E86: 100.00 | F86: 100.00 | G86: 100.00 | H86: 88.89 | I86: 33.33 | J86: 61.11 | K86: 38.89 | L86: 88.89 | M86: 77.78 | N86: 83.33 | O86: 16.67 | Q86: 5.67 | R86: 9.67 | S86: 7.67 | T86: 6.00 | U86: 10.00 | V86: 8.00 | W86: -4.35 | Y86: 31.27 | Z86: 27.03 | AA86: 29.15 | AB86: 32.40 | AC86: 20.33 | AD86: 26.37 | AE86: 9.55 | AG86: 32.93 | AH86: 19.83 | AI86: 26.38 | AJ86: 11.20 | AK86: 35.73 | AL86: 23.47 | AM86: 11.05 | AO86: 4 | AP86: 0 | AQ86: 2.00 | AS86: 0 | AT86: 1 | AU86: 0.5
A87: 84 | B87: 88 | C87: EM 253 | D87: MACS 441 | E87: 66.67 | F87: 88.89 | G87: 77.78 | H87: 66.67 | I87: 100.00 | J87: 83.33 | K87: -7.14 | L87: 55.56 | M87: 77.78 | N87: 66.67 | O87: 14.29 | Q87: 6.00 | R87: 10.00 | S87: 8.00 | T87: 7.00 | U87: 9.00 | V87: 8.00 | W87: 0.00 | Y87: 30.20 | Z87: 25.87 | AA87: 28.03 | AB87: 36.47 | AC87: 31.00 | AD87: 33.73 | AE87: -20.33 | AG87: 27.47 | AH87: 28.03 | AI87: 27.75 | AJ87: 8.20 | AK87: 13.93 | AL87: 11.07 | AM87: 60.12 | AO87: 5 | AP87: 5 | AQ87: 5.00 | AS87: 0 | AT87: 1 | AU87: 0.5
A88: 85 | B88: 89 | C88: EM 254 | D88: MACS 472 | E88: 44.44 | F88: 88.89 | G88: 66.67 | H88: 44.44 | I88: 33.33 | J88: 38.89 | K88: 41.67 | L88: 44.44 | M88: 55.56 | N88: 50.00 | O88: 25.00 | Q88: 7.00 | R88: 13.33 | S88: 10.17 | T88: 4.50 | U88: 7.00 | V88: 5.75 | W88: 43.44 | Y88: 33.43 | Z88: 51.27 | AA88: 42.35 | AB88: 32.83 | AC88: 25.33 | AD88: 29.08 | AE88: 31.33 | AG88: 32.60 | AH88: 23.33 | AI88: 27.97 | AJ88: 10.00 | AK88: 9.75 | AL88: 9.88 | AM88: 64.69 | AO88: 5 | AP88: 5 | AQ88: 5.00 | AS88: 0 | AT88: 0 | AU88: 0
A89: 86 | B89: 90 | C89: EM 255 | D89: MACS 798 | E89: 55.56 | F89: 88.89 | G89: 72.22 | H89: 88.89 | I89: 33.33 | J89: 61.11 | K89: 15.38 | L89: 44.44 | M89: 66.67 | N89: 55.56 | O89: 23.08 | Q89: 6.33 | R89: 13.33 | S89: 9.83 | T89: 5.67 | U89: 9.00 | V89: 7.33 | W89: 25.42 | Y89: 36.03 | Z89: 46.97 | AA89: 41.50 | AB89: 32.00 | AC89: 14.00 | AD89: 23.00 | AE89: 44.58 | AG89: 34.87 | AH89: 27.10 | AI89: 30.98 | AJ89: 14.13 | AK89: 17.15 | AL89: 15.64 | AM89: 49.52 | AO89: 3 | AP89: 2 | AQ89: 2.50 | AS89: 0 | AT89: 0 | AU89: 0
A90: 87 | B90: 91 | C90: EM 284 | D90: MACS 1168 | E90: 100.00 | F90: 88.89 | G90: 94.44 | H90: 88.89 | I90: 100.00 | J90: 94.44 | K90: -0.00 | L90: 77.78 | M90: 88.89 | N90: 83.33 | O90: 11.76 | Q90: 6.33 | R90: 11.33 | S90: 8.83 | T90: 8.00 | U90: 8.00 | V90: 8.00 | W90: 9.43 | Y90: 34.30 | Z90: 38.80 | AA90: 36.55 | AB90: 32.23 | AC90: 28.33 | AD90: 30.28 | AE90: 17.15 | AG90: 32.47 | AH90: 19.83 | AI90: 26.15 | AJ90: 12.20 | AK90: 24.33 | AL90: 18.27 | AM90: 30.15 | AO90: 5 | AP90: 5 | AQ90: 5.00 | AS90: 0 | AT90: 0 | AU90: 0
A91: 88 | B91: 92 | C91: ML8 | D91: EC 2574 | E91: 0.00 | F91: 100.00 | G91: 50.00 | H91: 0.00 | I91: 100.00 | J91: 50.00 | K91: 0.00 | L91: 0.00 | M91: 55.56 | N91: 27.78 | O91: 44.44 | Q91: 6.67 | R91: 14.33 | S91: 10.50 | T91: 6.50 | U91: 8.00 | V91: 7.25 | W91: 30.95 | Y91: 34.93 | Z91: 47.77 | AA91: 41.35 | AB91: 29.50 | AC91: 25.67 | AD91: 27.58 | AE91: 33.29 | AG91: 34.27 | AH91: 24.23 | AI91: 29.25 | AJ91: 12.70 | AK91: 12.67 | AL91: 12.68 | AM91: 56.64 | AO91: 4 | AP91: 5 | AQ91: 4.50 | AS91: 0 | AT91: 0 | AU91: 0
A92: 89 | B92: 93 | C92: ML18 | D92: JS 75 1 | E92: 88.89 | F92: 88.89 | G92: 88.89 | H92: 100.00 | I92: 100.00 | J92: 100.00 | K92: -12.50 | L92: 100.00 | M92: 100.00 | N92: 100.00 | O92: -12.50 | Q92: 7.00 | R92: 10.67 | S92: 8.83 | T92: 8.00 | U92: 6.00 | V92: 7.00 | W92: 20.75 | Y92: 33.80 | Z92: 35.80 | AA92: 34.80 | AB92: 34.50 | AC92: 9.50 | AD92: 22.00 | AE92: 36.78 | AG92: 38.07 | AH92: 24.60 | AI92: 31.33 | AJ92: 13.70 | AK92: 23.65 | AL92: 18.68 | AM92: 40.40 | AO92: 1 | AP92: 0 | AQ92: 0.50 | AS92: 0 | AT92: 1 | AU92: 0.5
A93: 90 | B93: 94 | C93: ML19 | D93: EC 10685 | E93: 100.00 | F93: 88.89 | G93: 94.44 | H93: 100.00 | I93: 0.00 | J93: 50.00 | K93: 47.06 | L93: 88.89 | M93: 100.00 | N93: 94.44 | O93: -0.00 | Q93: 7.33 | R93: 13.33 | S93: 10.33 | T93: 8.00 | U93: 7.00 | V93: 7.50 | W93: 27.42 | Y93: 35.80 | Z93: 44.53 | AA93: 40.17 | AB93: 32.93 | AC93: 31.00 | AD93: 31.97 | AE93: 20.41 | AG93: 33.50 | AH93: 23.23 | AI93: 28.37 | AJ93: 14.63 | AK93: 22.00 | AL93: 18.32 | AM93: 35.43 | AO93: 4 | AP93: 0 | AQ93: 2.00 | AS93: 0 | AT93: 1 | AU93: 0.5
A94: 91 | B94: 95 | C94: ML32 | D94: EC 100022 | E94: 100.00 | F94: 88.89 | G94: 94.44 | H94: 100.00 | I94: 100.00 | J94: 100.00 | K94: -5.88 | L94: 100.00 | M94: 55.56 | N94: 77.78 | O94: 17.65 | Q94: 7.67 | R94: 13.00 | S94: 10.33 | T94: 7.00 | U94: 8.00 | V94: 7.50 | W94: 27.42 | Y94: 37.73 | Z94: 44.97 | AA94: 41.35 | AB94: 33.80 | AC94: 25.73 | AD94: 29.77 | AE94: 28.01 | AG94: 33.53 | AH94: 23.30 | AI94: 28.42 | AJ94: 8.47 | AK94: 26.47 | AL94: 17.47 | AM94: 38.53 | AO94: 3 | AP94: 0 | AQ94: 1.50 | AS94: 1 | AT94: 1 | AU94: 1
A95: 92 | B95: 96 | C95: ML38 | D95: EC 7951 | E95: 88.89 | F95: 88.89 | G95: 88.89 | H95: 88.89 | I95: 100.00 | J95: 94.44 | K95: -6.25 | L95: 22.22 | M95: 100.00 | N95: 61.11 | O95: 31.25 | Q95: 7.00 | R95: 11.00 | S95: 9.00 | T95: 5.00 | U95: 9.00 | V95: 7.00 | W95: 22.22 | Y95: 32.63 | Z95: 34.97 | AA95: 33.80 | AB95: 26.43 | AC95: 25.00 | AD95: 25.72 | AE95: 23.92 | AG95: 31.90 | AH95: 25.25 | AI95: 28.58 | AJ95: 7.30 | AK95: 21.37 | AL95: 14.33 | AM95: 49.84 | AO95: 0 | AP95: 0 | AQ95: 0.00 | AS95: 0 | AT95: 1 | AU95: 0.5
A96: 93 | B96: 97 | C96: ML47 | D96: IC 10678 | E96: 0.00 | F96: 88.89 | G96: 44.44 | H96: 0.00 | I96: 66.67 | J96: 33.33 | K96: 25.00 | L96: 0.00 | M96: 88.89 | N96: 44.44 | O96: -0.00 | Q96: 6.67 | R96: 13.67 | S96: 10.17 | T96: 7.67 | U96: 9.00 | V96: 8.33 | W96: 18.03 | Y96: 34.17 | Z96: 46.40 | AA96: 40.28 | AB96: 33.87 | AC96: 25.33 | AD96: 29.60 | AE96: 26.52 | AG96: 37.03 | AH96: 25.83 | AI96: 31.43 | AJ96: 12.10 | AK96: 27.73 | AL96: 19.92 | AM96: 36.64 | AO96: 2 | AP96: 3 | AQ96: 2.50 | AS96: 0 | AT96: 1 | AU96: 0.5
A97: 94 | B97: 98 | C97: ML54 | D97: EC 168 | E97: 83.33 | F97: 44.44 | G97: 63.89 | H97: 83.33 | I97: 66.67 | J97: 75.00 | K97: -17.39 | L97: 44.44 | M97: 77.78 | N97: 61.11 | O97: 4.35 | Q97: 6.67 | R97: 7.67 | S97: 7.17 | T97: 6.00 | U97: 8.00 | V97: 7.00 | W97: 2.33 | Y97: 33.87 | Z97: 27.93 | AA97: 30.90 | AB97: 37.67 | AC97: 27.03 | AD97: 32.35 | AE97: -4.69 | AG97: 32.43 | AH97: 19.90 | AI97: 26.17 | AJ97: 11.77 | AK97: 21.67 | AL97: 16.72 | AM97: 36.11 | AO97: 4 | AP97: 2 | AQ97: 3.00 | AS97: 0 | AT97: 1 | AU97: 0.5
A98: 95 | B98: 99 | C98: ML58 | D98: EC 216387 | E98: 66.67 | F98: 0.00 | G98: 33.33 | H98: 100.00 | I98: 0.00 | J98: 50.00 | K98: -50.00 | L98: 88.89 | M98: 0.00 | N98: 44.44 | O98: -33.33 | Q98: 6.00 | R98: 12.00 | S98: 9.00 | T98: 8.00 | U98: 8.67 | V98: 8.33 | W98: 7.41 | Y98: 32.30 | Z98: 51.90 | AA98: 42.10 | AB98: 34.03 | AC98: 29.50 | AD98: 31.77 | AE98: 24.54 | AG98: 28.47 | AH98: 24.67 | AI98: 26.57 | AJ98: 8.30 | AK98: 28.20 | AL98: 18.25 | AM98: 31.30 | AO98: 5 | AP98: 0 | AQ98: 2.50 | AS98: 0 | AT98: 1 | AU98: 0.5
A99: 96 | B99: 100 | C99: ML62 | D99: MACS 212 | E99: 77.78 | F99: 88.89 | G99: 83.33 | H99: 100.00 | I99: 0.00 | J99: 50.00 | K99: 40.00 | L99: 88.89 | M99: 44.44 | N99: 66.67 | O99: 20.00 | Q99: 5.00 | R99: 11.33 | S99: 8.17 | T99: 8.00 | U99: 10.33 | V99: 9.17 | W99: -12.24 | Y99: 35.50 | Z99: 47.33 | AA99: 41.42 | AB99: 35.83 | AC99: 31.60 | AD99: 33.72 | AE99: 18.59 | AG99: 32.20 | AH99: 22.20 | AI99: 27.20 | AJ99: 10.07 | AK99: 30.33 | AL99: 20.20 | AM99: 25.74 | AO99: 0 | AP99: 0 | AQ99: 0.00 | AS99: 1 | AT99: 1 | AU99: 1
A100: 97 | B100: 101 | C100: ML80 | D100: G 91 | E100: 0.00 | F100: 77.78 | G100: 38.89 | H100: 0.00 | I100: 66.67 | J100: 33.33 | K100: 14.29 | L100: 0.00 | M100: 88.89 | N100: 44.44 | O100: -14.29 | Q100: 4.67 | R100: 11.00 | S100: 7.83 | T100: 6.50 | U100: 9.00 | V100: 7.75 | W100: =((S100-V100)/S100)*100 -> 1.06 | Y100: 32.93 | Z100: 46.57 | AA100: 39.75 | AB100: 32.07 | AC100: 30.83 | AD100: 31.45 | AE100: 20.88 | AG100: 36.53 | AH100: 27.55 | AI100: 32.04 | AJ100: 11.10 | AK100: 15.60 | AL100: 13.35 | AM100: 58.34 | AO100: 0 | AP100: 5 | AQ100: 2.50 | AS100: 0 | AT100: 0 | AU100: 0
A101: 98 | B101: 102 | C101: ML82 | D101: G 118 | E101: 55.56 | F101: 77.78 | G101: 66.67 | H101: 22.22 | I101: 66.67 | J101: 44.44 | K101: 33.33 | L101: 66.67 | M101: 77.78 | N101: 72.22 | O101: -8.33 | Q101: 7.00 | R101: 11.33 | S101: 9.17 | T101: 5.00 | U101: 8.00 | V101: 6.50 | W101: 29.09 | Y101: 35.97 | Z101: 30.97 | AA101: 33.47 | AB101: 32.87 | AC101: 21.17 | AD101: 27.02 | AE101: 19.27 | AG101: 35.74 | AH101: 19.00 | AI101: 27.37 | AJ101: 13.47 | AK101: 11.15 | AL101: 12.31 | AM101: 55.03 | AO101: 1 | AP101: 0 | AQ101: 0.50 | AS101: 0 | AT101: 1 | AU101: 0.5
A102: 99 | B102: 109 | C102: ML104 | D102: EC 241920 | E102: 55.56 | F102: 66.67 | G102: 61.11 | H102: 33.33 | I102: 0.00 | J102: 16.67 | K102: 72.73 | L102: 33.33 | M102: 77.78 | N102: 55.56 | O102: 9.09 | Q102: 5.00 | R102: 9.00 | S102: 7.00 | T102: 8.00 | U102: 9.00 | V102: 8.50 | W102: -21.43 | Y102: 34.00 | Z102: 39.33 | AA102: 36.67 | AB102: 33.77 | AC102: 26.33 | AD102: 30.05 | AE102: 18.05 | AG102: 31.47 | AH102: 28.10 | AI102: 29.78 | AJ102: 11.73 | AK102: 15.83 | AL102: 13.78 | AM102: 53.72 | AO102: 5 | AP102: 5 | AQ102: 5.00 | AS102: 0 | AT102: 0 | AU102: 0
A103: 100 | B103: 110 | C103: ML111 | D103: EC 389392 | E103: 100.00 | F103: 88.89 | G103: 94.44 | H103: 77.78 | I103: 100.00 | J103: 88.89 | K103: 5.88 | L103: 44.44 | M103: 100.00 | N103: 72.22 | O103: 23.53 | Q103: 6.00 | R103: 14.00 | S103: 10.00 | T103: 7.00 | U103: 7.00 | V103: 7.00 | W103: 30.00 | Y103: 35.10 | Z103: 41.52 | AA103: 38.31 | AB103: 36.27 | AC103: 32.03 | AD103: 34.15 | AE103: 10.85 | AG103: 30.30 | AH103: 16.10 | AI103: 23.20 | AJ103: 9.27 | AK103: 29.80 | AL103: 19.53 | AM103: 15.80 | AO103: 4 | AP103: 4 | AQ103: 4.00 | AS103: 0 | AT103: 0 | AU103: 0
A104: 101 | B104: 111 | C104: ML114 | D104: EC 391181 | E104: 77.78 | F104: 88.89 | G104: 83.33 | H104: 22.22 | I104: 33.33 | J104: 27.78 | K104: 66.67 | L104: 22.22 | M104: 88.89 | N104: 55.56 | O104: 33.33 | Q104: 6.67 | R104: 13.00 | S104: 9.83 | T104: 5.00 | U104: 6.00 | V104: 5.50 | W104: 44.07 | Y104: 35.33 | Z104: 42.33 | AA104: 38.83 | AB104: 36.17 | AC104: 29.00 | AD104: 32.58 | AE104: 16.09 | AG104: 32.50 | AH104: 24.60 | AI104: 28.55 | AJ104: 12.17 | AK104: 2.60 | AL104: 7.38 | AM104: 74.14 | AO104: 3 | AP104: 5 | AQ104: 4.00 | AS104: 0 | AT104: 0 | AU104: 0
A105: 102 | B105: 112 | C105: ML126 | D105: EC 389159 | E105: 33.33 | F105: 88.89 | G105: 61.11 | H105: 33.33 | I105: 100.00 | J105: 66.67 | K105: -9.09 | L105: 0.00 | M105: 88.89 | N105: 44.44 | O105: 27.27 | Q105: 7.67 | R105: 12.67 | S105: 10.17 | T105: 8.00 | U105: 9.00 | V105: 8.50 | W105: 16.39 | Y105: 35.40 | Z105: 39.60 | AA105: 37.50 | AB105: 27.77 | AC105: 23.17 | AD105: 25.47 | AE105: 32.09 | AG105: 34.37 | AH105: 28.53 | AI105: 31.45 | AJ105: 12.43 | AK105: 13.70 | AL105: 13.07 | AM105: 58.45 | AO105: 4 | AP105: 5 | AQ105: 4.50 | AS105: 0 | AT105: 0 | AU105: 0
A106: 103 | B106: 113 | C106: ML127 | D106: EC 251470 | E106: 66.67 | F106: 88.89 | G106: 77.78 | H106: 44.44 | I106: 33.33 | J106: 38.89 | K106: 50.00 | L106: 77.78 | M106: 77.78 | N106: 77.78 | O106: -0.00 | Q106: 7.67 | R106: 12.33 | S106: 10.00 | T106: 8.00 | U106: 9.00 | V106: 8.50 | W106: 15.00 | Y106: 33.17 | Z106: 45.60 | AA106: 39.38 | AB106: 38.20 | AC106: 31.83 | AD106: 35.02 | AE106: 11.09 | AG106: 31.20 | AH106: 28.03 | AI106: 29.62 | AJ106: 10.30 | AK106: 24.77 | AL106: 17.53 | AM106: 40.80 | AO106: 1 | AP106: 1 | AQ106: 1.00 | AS106: 0 | AT106: 0 | AU106: 0
A107: 104 | B107: 114 | C107: ML133 | D107: HIMSO 1600 | E107: 11.11 | F107: 100.00 | G107: 55.56 | H107: 55.56 | I107: 33.33 | J107: 44.44 | K107: 20.00 | L107: 33.33 | M107: 77.78 | N107: 55.56 | O107: 0.00 | Q107: 7.00 | R107: 13.33 | S107: 10.17 | T107: 7.00 | U107: 6.00 | V107: 6.50 | W107: 36.07 | Y107: 36.20 | Z107: 44.37 | AA107: 40.28 | AB107: 34.83 | AC107: 35.67 | AD107: 35.25 | AE107: 12.49 | AG107: 29.30 | AH107: 25.50 | AI107: 27.40 | AJ107: 11.70 | AK107: 13.40 | AL107: 12.55 | AM107: 54.20 | AO107: 4 | AP107: 5 | AQ107: 4.50 | AS107: 0 | AT107: 0 | AU107: 0
A108: 105 | B108: 115 | C108: ML143 | D108: TNAUS 7 | E108: 44.44 | F108: 100.00 | G108: 72.22 | H108: 44.44 | I108: 66.67 | J108: 55.56 | K108: 23.08 | L108: 22.22 | M108: 88.89 | N108: 55.56 | O108: 23.08 | Q108: 5.00 | R108: 15.33 | S108: 10.17 | T108: 8.00 | U108: 9.00 | V108: 8.50 | W108: 16.39 | Y108: 29.03 | Z108: 44.53 | AA108: 36.78 | AB108: 35.13 | AC108: 25.17 | AD108: 30.15 | AE108: 18.03 | AG108: 34.13 | AH108: 22.37 | AI108: 28.25 | AJ108: 8.57 | AK108: 10.87 | AL108: 9.72 | AM108: 65.60 | AO108: 3 | AP108: 5 | AQ108: 4.00 | AS108: 0 | AT108: 1 | AU108: 0.5
A109: 106 | B109: 116 | C109: ML144 | D109: TS 17 | E109: 44.44 | F109: 77.78 | G109: 61.11 | H109: 66.67 | I109: 33.33 | J109: 50.00 | K109: 18.18 | L109: 66.67 | M109: 55.56 | N109: 61.11 | O109: -0.00 | Q109: 4.33 | R109: 13.00 | S109: 8.67 | T109: 5.00 | U109: 7.00 | V109: 6.00 | W109: 30.77 | Y109: 33.77 | Z109: 38.20 | AA109: 35.98 | AB109: 32.80 | AC109: 31.10 | AD109: 31.95 | AE109: 11.21 | AG109: 32.33 | AH109: 23.17 | AI109: 27.75 | AJ109: 11.43 | AK109: 19.40 | AL109: 15.42 | AM109: 44.44 | AO109: 4 | AP109: 5 | AQ109: 4.50 | AS109: 0 | AT109: 0 | AU109: 0
A110: 107 | B110: 117 | C110: ML145 | D110: TS 29 | E110: 77.78 | F110: 77.78 | G110: 77.78 | H110: 66.67 | I110: 66.67 | J110: 66.67 | K110: 14.29 | L110: 77.78 | M110: 33.33 | N110: 55.56 | O110: 28.57 | Q110: 4.33 | R110: 12.67 | S110: 8.50 | T110: 6.00 | U110: 8.00 | V110: 7.00 | W110: 17.65 | Y110: 35.33 | Z110: 40.83 | AA110: 38.08 | AB110: 33.57 | AC110: 25.17 | AD110: 29.37 | AE110: 22.89 | AG110: 30.80 | AH110: 22.25 | AI110: 26.53 | AJ110: 13.47 | AK110: 20.17 | AL110: 16.82 | AM110: 36.60 | AO110: 4 | AP110: 5 | AQ110: 4.50 | AS110: 0 | AT110: 0 | AU110: 0
A111: 108 | B111: 118 | C111: ML165 | D111: TS 42 | E111: 88.89 | F111: 100.00 | G111: 94.44 | H111: 55.56 | I111: 66.67 | J111: 61.11 | K111: =((G111-J111)/G111)*100 -> 35.29 | L111: 66.67 | M111: 55.56 | N111: 61.11 | O111: =((G111-N111)/G111)*100 -> 35.29 | Q111: 5.00 | R111: 14.50 | S111: 9.75 | T111: 7.00 | U111: 9.00 | V111: 8.00 | W111: 17.95 | Y111: 32.77 | Z111: 50.13 | AA111: 41.45 | AB111: 28.80 | AC111: 33.50 | AD111: 31.15 | AE111: 24.85 | AG111: 36.00 | AH111: 23.55 | AI111: 29.78 | AJ111: 11.23 | AK111: 17.63 | AL111: 14.43 | AM111: 51.53 | AO111: 3 | AP111: 5 | AQ111: 4.00 | AS111: 0 | AT111: 0 | AU111: 0
A112: 109 | B112: 119 | C112: ML169 | D112: VLS 67 | E112: 0.00 | F112: 77.78 | G112: 38.89 | H112: 0.00 | I112: 100.00 | J112: 50.00 | K112: -28.57 | L112: 0.00 | M112: 66.67 | N112: 33.33 | O112: 14.29 | Q112: 5.67 | R112: 14.00 | S112: 9.83 | T112: 6.33 | U112: 8.00 | V112: 7.17 | W112: 27.12 | Y112: 33.67 | Z112: 44.70 | AA112: 39.18 | AB112: 32.27 | AC112: 25.17 | AD112: 28.72 | AE112: 26.71 | AG112: 31.47 | AH112: 25.47 | AI112: 28.47 | AJ112: 10.23 | AK112: 13.95 | AL112: 12.09 | AM112: 57.52 | AO112: 2 | AP112: 4 | AQ112: 3.00 | AS112: 0 | AT112: 0 | AU112: 0
A113: 110 | B113: 120 | C113: ML201 | D113: MACS 112 | E113: 77.78 | F113: 77.78 | G113: 77.78 | H113: 55.56 | I113: 100.00 | J113: 77.78 | K113: -0.00 | L113: 44.44 | M113: 66.67 | N113: 55.56 | O113: 28.57 | Q113: 6.33 | R113: 12.33 | S113: 9.33 | T113: 5.00 | U113: 10.67 | V113: 7.83 | W113: 16.07 | Y113: 35.40 | Z113: 46.27 | AA113: 40.83 | AB113: 33.20 | AC113: 32.00 | AD113: 32.60 | AE113: 20.16 | AG113: 31.47 | AH113: 23.87 | AI113: 27.67 | AJ113: 11.37 | AK113: 19.50 | AL113: 15.43 | AM113: 44.22 | AO113: 5 | AP113: 5 | AQ113: 5.00 | AS113: 0 | AT113: 0 | AU113: 0
A114: 111 | B114: 121 | C114: ML208 | D114: MACS 205 | E114: 77.78 | F114: 88.89 | G114: 83.33 | H114: 77.78 | I114: 100.00 | J114: 88.89 | K114: -6.67 | L114: 33.33 | M114: 88.89 | N114: 61.11 | O114: 26.67 | Q114: 7.00 | R114: 13.00 | S114: 10.00 | T114: 7.00 | U114: 8.00 | V114: 7.50 | W114: 25.00 | Y114: 34.73 | Z114: 43.57 | AA114: 39.15 | AB114: 34.07 | AC114: 27.33 | AD114: 30.70 | AE114: 21.58 | AG114: 30.63 | AH114: 26.25 | AI114: 28.44 | AJ114: 11.10 | AK114: 19.33 | AL114: 15.22 | AM114: 46.50 | AO114: 3 | AP114: 2 | AQ114: 2.50 | AS114: 0 | AT114: 1 | AU114: 0.5
A115: 112 | B115: 122 | C115: ML212 | D115: MACS 227 | E115: 0.00 | F115: 88.89 | G115: 44.44 | H115: 0.00 | I115: 66.67 | J115: 33.33 | K115: 25.00 | L115: 0.00 | M115: 66.67 | N115: 33.33 | O115: 25.00 | Q115: 7.33 | R115: 14.00 | S115: 10.67 | T115: 7.00 | U115: 9.67 | V115: 8.33 | W115: 21.88 | Y115: 33.53 | Z115: 49.97 | AA115: 41.75 | AB115: 37.53 | AC115: 26.67 | AD115: 32.10 | AE115: 23.11 | AG115: 32.30 | AH115: 23.37 | AI115: 27.83 | AJ115: 11.43 | AK115: 24.67 | AL115: 18.05 | AM115: 35.15 | AO115: 2 | AP115: 2 | AQ115: 2.00 | AS115: 0 | AT115: 0 | AU115: 0
A116: 113 | B116: 123 | C116: ML216 | D116: MACS 232 | E116: 100.00 | F116: 88.89 | G116: 94.44 | H116: 100.00 | I116: 0.00 | J116: 50.00 | K116: 47.06 | L116: 100.00 | M116: 44.44 | N116: 72.22 | O116: 23.53 | Q116: 7.33 | R116: 14.00 | S116: 10.67 | T116: 5.00 | U116: 9.00 | V116: 7.00 | W116: 34.38 | Y116: 35.17 | Z116: 49.10 | AA116: 42.13 | AB116: 33.67 | AC116: 21.33 | AD116: 27.50 | AE116: 34.73 | AG116: 36.80 | AH116: 27.50 | AI116: 32.15 | AJ116: 10.87 | AK116: 24.43 | AL116: 17.65 | AM116: 45.10 | AO116: 2 | AP116: 0 | AQ116: 1.00 | AS116: 0 | AT116: 1 | AU116: 0.5
A117: 114 | B117: 124 | C117: ML226 | D117: MACS 261 | E117: 0.00 | F117: 88.89 | G117: 44.44 | H117: 0.00 | I117: 0.00 | J117: 0.00 | K117: 100.00 | L117: 0.00 | M117: 66.67 | N117: 33.33 | O117: 25.00 | Q117: 7.67 | R117: 12.00 | S117: 9.83 | T117: 6.00 | U117: 9.00 | V117: 7.50 | W117: 23.73 | Y117: 35.73 | Z117: 43.83 | AA117: 39.78 | AB117: 35.47 | AC117: 18.50 | AD117: 26.98 | AE117: 32.17 | AG117: 36.07 | AH117: 17.80 | AI117: 26.93 | AJ117: 13.10 | AK117: 26.50 | AL117: 19.80 | AM117: 26.49 | AO117: 4 | AP117: 5 | AQ117: 4.50 | AS117: 0 | AT117: 0 | AU117: 0
A118: 115 | B118: 125 | C118: ML231 | D118: MACS 288 | E118: 0.00 | F118: 88.89 | G118: 44.44 | H118: 0.00 | I118: 100.00 | J118: 50.00 | K118: -12.50 | L118: 0.00 | M118: 77.78 | N118: 38.89 | O118: 12.50 | Q118: 7.33 | R118: 8.33 | S118: 7.83 | T118: 8.00 | U118: 8.67 | V118: 8.33 | W118: -6.38 | Y118: 35.10 | Z118: 35.43 | AA118: 35.27 | AB118: 29.17 | AC118: 24.50 | AD118: 26.83 | AE118: 23.91 | AG118: 33.37 | AH118: 30.65 | AI118: 32.01 | AJ118: 13.70 | AK118: 23.20 | AL118: 18.45 | AM118: 42.36 | AO118: 0 | AP118: 0 | AQ118: 0.00 | AS118: 1 | AT118: 1 | AU118: 1
A119: 116 | B119: 126 | C119: ML233 | D119: MACS 291 | E119: 0.00 | F119: 88.89 | G119: 44.44 | H119: 0.00 | I119: 66.67 | J119: 33.33 | K119: 25.00 | L119: 0.00 | M119: 100.00 | N119: 50.00 | O119: -12.50 | Q119: 7.00 | R119: 13.33 | S119: 10.17 | T119: 6.33 | U119: 8.00 | V119: 7.17 | W119: 29.51 | Y119: 34.63 | Z119: 42.47 | AA119: 38.55 | AB119: 31.07 | AC119: 18.83 | AD119: 24.95 | AE119: 35.28 | AG119: 31.97 | AH119: 18.67 | AI119: 25.32 | AJ119: 13.13 | AK119: 12.85 | AL119: 12.99 | AM119: 48.68 | AO119: 2 | AP119: 2 | AQ119: 2.00 | AS119: 0 | AT119: 0 | AU119: 0
A120: 117 | B120: 127 | C120: ML239 | D120: MACS 303 | E120: 0.00 | F120: 88.89 | G120: 44.44 | H120: 0.00 | I120: 66.67 | J120: 33.33 | K120: 25.00 | L120: 0.00 | M120: 88.89 | N120: 44.44 | O120: -0.00 | Q120: 7.00 | R120: 12.00 | S120: 9.50 | T120: 8.00 | U120: 7.67 | V120: 7.83 | W120: 17.54 | Y120: 34.77 | Z120: 51.20 | AA120: 42.98 | AB120: 33.53 | AC120: 27.50 | AD120: 30.52 | AE120: 29.00 | AG120: 29.73 | AH120: 24.77 | AI120: 27.25 | AJ120: 14.47 | AK120: 36.17 | AL120: 25.32 | AM120: 7.09 | AO120: 3 | AP120: 0 | AQ120: 1.50 | AS120: 1 | AT120: 1 | AU120: 1
A121: 118 | B121: 128 | C121: ML250 | D121: MACS 469 | E121: 55.56 | F121: 88.89 | G121: 72.22 | H121: 77.78 | I121: 66.67 | J121: 72.22 | K121: -0.00 | L121: 88.89 | M121: 77.78 | N121: 83.33 | O121: -15.38 | Q121: 6.00 | R121: 12.67 | S121: 9.33 | T121: 6.50 | U121: 9.00 | V121: 7.75 | W121: 16.96 | Y121: 31.13 | Z121: 46.63 | AA121: 38.88 | AB121: 29.27 | AC121: 29.00 | AD121: 29.13 | AE121: 25.08 | AG121: 31.77 | AH121: 24.80 | AI121: 28.28 | AJ121: 11.47 | AK121: 19.25 | AL121: 15.36 | AM121: 45.70 | AO121: 0 | AP121: 0 | AQ121: 0.00 | AS121: 1 | AT121: 1 | AU121: 1
A122: 119 | B122: 129 | C122: MM 10 | D122: IC 10039 | E122: 88.89 | F122: 88.89 | G122: 88.89 | H122: 66.67 | I122: 66.67 | J122: 66.67 | K122: 25.00 | L122: 55.56 | M122: 88.89 | N122: 72.22 | O122: 18.75 | Q122: 5.33 | R122: 12.33 | S122: 8.83 | T122: 7.00 | U122: 8.00 | V122: 7.50 | W122: 15.09 | Y122: 35.20 | Z122: 48.57 | AA122: 41.88 | AB122: 35.13 | AC122: 23.50 | AD122: 29.32 | AE122: 30.00 | AG122: 31.13 | AH122: 24.43 | AI122: 27.78 | AJ122: 11.40 | AK122: 21.73 | AL122: 16.57 | AM122: 40.37 | AO122: 3 | AP122: 3 | AQ122: 3.00 | AS122: 0 | AT122: 1 | AU122: 0.5
A123: 120 | B123: 130 | C123: MM 12 | D123: PLSO 50 | E123: 0.00 | F123: 66.67 | G123: 33.33 | H123: 0.00 | I123: 0.00 | J123: 0.00 | K123: 100.00 | L123: 0.00 | M123: 77.78 | N123: 38.89 | O123: -16.67 | Q123: 6.00 | R123: 11.33 | S123: 8.67 | T123: 6.00 | U123: 7.67 | V123: 6.83 | W123: 21.15 | Y123: 32.13 | Z123: 38.93 | AA123: 35.53 | AB123: 35.40 | AC123: 23.25 | AD123: 29.33 | AE123: 17.47 | AG123: 31.37 | AH123: 28.10 | AI123: 29.73 | AJ123: 11.70 | AK123: 14.25 | AL123: 12.98 | AM123: 56.36 | AO123: 5 | AP123: 5 | AQ123: 5.00 | AS123: 0 | AT123: 0 | AU123: 0
A124: 121 | B124: 131 | C124: MM 21 | D124: EC 34079A | E124: 0.00 | F124: 0.00 | G124: 0.00 | H124: 0.00 | I124: 0.00 | J124: 0.00 | K124: NA | L124: 0.00 | M124: 0.00 | N124: 0.00 | O124: NA | Q124: 6.67 | R124: 10.67 | S124: 8.67 | T124: 5.00 | U124: 9.00 | V124: 7.00 | W124: 19.23 | Y124: 33.93 | Z124: 37.77 | AA124: 35.85 | AB124: 34.17 | AC124: 17.67 | AD124: 25.92 | AE124: 27.71 | AG124: 32.40 | AH124: 14.15 | AI124: 23.28 | AJ124: 10.47 | AK124: 21.20 | AL124: 15.83 | AM124: 31.97 | AO124: 0 | AP124: 0 | AQ124: 0.00 | AS124: 1 | AT124: 1 | AU124: 1
A125: 122 | B125: 132 | C125: MM 22 | D125: EC 34477 | E125: 0.00 | F125: 0.00 | G125: 0.00 | H125: 0.00 | I125: 0.00 | J125: 0.00 | K125: NA | L125: 0.00 | M125: 0.00 | N125: 0.00 | O125: NA | Q125: 6.33 | R125: 12.33 | S125: 9.33 | T125: 8.00 | U125: 6.00 | V125: 7.00 | W125: 25.00 | Y125: 33.93 | Z125: 41.27 | AA125: 37.60 | AB125: 33.53 | AC125: 25.83 | AD125: 29.68 | AE125: 21.05 | AG125: 34.83 | AH125: 24.63 | AI125: 29.73 | AJ125: 8.87 | AK125: 25.93 | AL125: 17.40 | AM125: 41.48 | AO125: 4 | AP125: 5 | AQ125: 4.50 | AS125: 0 | AT125: 0 | AU125: 0
A126: 123 | B126: 133 | C126: MM 30 | D126: EC 39686 | E126: 66.67 | F126: 88.89 | G126: 77.78 | H126: 44.44 | I126: 100.00 | J126: 72.22 | K126: =((G126-J126)/G126)*100 -> 7.14 | L126: 55.56 | M126: 88.89 | N126: 72.22 | O126: =((G126-N126)/G126)*100 -> 7.14 | Q126: 7.00 | R126: 14.00 | S126: 10.50 | T126: 5.00 | U126: 9.00 | V126: 7.00 | W126: 33.33 | Y126: 34.27 | Z126: 44.55 | AA126: 39.41 | AB126: 35.10 | AC126: 25.50 | AD126: 30.30 | AE126: 23.11 | AG126: 34.53 | AH126: 22.75 | AI126: 28.64 | AJ126: 9.77 | AK126: 15.80 | AL126: 12.78 | AM126: 55.37 | AO126: 5 | AP126: 3 | AQ126: 4.00 | AS126: 0 | AT126: 0 | AU126: 0
A127: 124 | B127: 134 | C127: MM 36 | D127: EC 95807 | E127: 33.33 | F127: 55.56 | G127: 44.44 | H127: 33.33 | I127: 0.00 | J127: 16.67 | K127: 62.50 | L127: 55.56 | M127: 55.56 | N127: 55.56 | O127: -25.00 | Q127: 6.00 | R127: 12.33 | S127: 9.17 | T127: 6.00 | U127: 7.00 | V127: 6.50 | W127: 29.09 | Y127: 36.40 | Z127: 44.07 | AA127: 40.23 | AB127: 33.23 | AC127: 18.83 | AD127: 26.03 | AE127: 35.29 | AG127: 32.90 | AH127: 27.77 | AI127: 30.33 | AJ127: 11.03 | AK127: 15.40 | AL127: 13.22 | AM127: 56.43 | AO127: 5 | AP127: 5 | AQ127: 5.00 | AS127: 0 | AT127: 0 | AU127: 0
A128: 125 | B128: 135 | C128: MM 40 | D128: IC 9451 | E128: 88.89 | F128: 77.78 | G128: 83.33 | H128: 55.56 | I128: 0.00 | J128: 27.78 | K128: 66.67 | L128: 66.67 | M128: 77.78 | N128: 72.22 | O128: 13.33 | Q128: 7.67 | R128: 9.67 | S128: 8.67 | T128: 8.00 | U128: 9.00 | V128: 8.50 | W128: 1.92 | Y128: 36.87 | Z128: 54.00 | AA128: 45.43 | AB128: 29.27 | AC128: 23.50 | AD128: 26.38 | AE128: 41.93 | AG128: 31.03 | AH128: 22.53 | AI128: 26.78 | AJ128: 8.73 | AK128: 29.97 | AL128: 19.35 | AM128: 27.75 | AO128: 5 | AP128: 0 | AQ128: 2.50 | AS128: 0 | AT128: 1 | AU128: 0.5
A129: 126 | B129: 136 | C129: MM 44 | D129: HOOD | E129: 44.44 | F129: 88.89 | G129: 66.67 | H129: 44.44 | I129: 66.67 | J129: 55.56 | K129: 16.67 | L129: 33.33 | M129: 66.67 | N129: 50.00 | O129: 25.00 | Q129: 7.00 | R129: 12.33 | S129: 9.67 | T129: 8.00 | U129: 8.00 | V129: 8.00 | W129: 17.24 | Y129: 34.60 | Z129: 39.10 | AA129: 36.85 | AB129: 36.20 | AC129: 19.00 | AD129: 27.60 | AE129: 25.10 | AG129: 32.80 | AH129: 22.33 | AI129: 27.57 | AJ129: 11.43 | AK129: 29.07 | AL129: 20.25 | AM129: 26.54 | AO129: 0 | AP129: 5 | AQ129: 2.50 | AS129: 0 | AT129: 0 | AU129: 0
A130: 127 | B130: 137 | C130: MM 53 | D130: EC 14460 | E130: 88.89 | F130: 100.00 | G130: 94.44 | H130: 22.22 | I130: 66.67 | J130: 44.44 | K130: 52.94 | L130: 66.67 | M130: 88.89 | N130: 77.78 | O130: 17.65 | Q130: 5.50 | R130: 13.00 | S130: 9.25 | T130: 6.50 | U130: 8.00 | V130: 7.25 | W130: 21.62 | Y130: 32.87 | Z130: 39.70 | AA130: 36.28 | AB130: 31.00 | AC130: 21.33 | AD130: 26.17 | AE130: 27.88 | AG130: 29.87 | AH130: 24.57 | AI130: 27.22 | AJ130: 8.50 | AK130: 18.40 | AL130: 13.45 | AM130: 50.58 | AO130: 0 | AP130: 0 | AQ130: 0.00 | AS130: 1 | AT130: 1 | AU130: 1
A131: 128 | B131: 138 | C131: MM 56 | D131: EC 39751 | E131: 66.67 | F131: 88.89 | G131: 77.78 | H131: 77.78 | I131: 66.67 | J131: 72.22 | K131: 7.14 | L131: 77.78 | M131: 88.89 | N131: 83.33 | O131: -7.14 | Q131: 5.67 | R131: 12.00 | S131: 8.83 | T131: 8.00 | U131: 7.00 | V131: 7.50 | W131: 15.09 | Y131: 34.13 | Z131: 47.90 | AA131: 41.02 | AB131: 38.27 | AC131: 21.50 | AD131: 29.88 | AE131: 27.14 | AG131: 33.37 | AH131: 26.53 | AI131: 29.95 | AJ131: 10.53 | AK131: 20.37 | AL131: 15.45 | AM131: 48.41 | AO131: 0 | AP131: 3 | AQ131: 1.50 | AS131: 0 | AT131: 0 | AU131: 0
A132: 129 | B132: 139 | C132: MM 57 | D132: EC 94992 | E132: 77.78 | F132: 100.00 | G132: 88.89 | H132: 77.78 | I132: 100.00 | J132: 88.89 | K132: 0.00 | L132: 66.67 | M132: 100.00 | N132: 83.33 | O132: 6.25 | Q132: 5.00 | R132: 12.67 | S132: 8.83 | T132: 5.00 | U132: 9.00 | V132: 7.00 | W132: =((S132-V132)/S132)*100 -> 20.75 | Y132: 29.20 | Z132: 42.03 | AA132: 35.62 | AB132: 36.83 | AC132: 22.67 | AD132: 29.75 | AE132: 16.47 | AG132: 31.27 | AH132: 28.50 | AI132: 29.88 | AJ132: 10.03 | AK132: 31.30 | AL132: 20.67 | AM132: 30.84 | AO132: 0 | AP132: 0 | AQ132: 0.00 | AS132: 1 | AT132: 1 | AU132: 1
A133: 130 | B133: 140 | C133: MM 61 | D133: EC 18671A | E133: 77.78 | F133: 77.78 | G133: =AVERAGE(E133:F133) -> 77.78 | H133: 77.78 | I133: 0.00 | J133: =AVERAGE(H133:I133) -> 38.89 | K133: 50.00 | L133: 88.89 | M133: 55.56 | N133: =AVERAGE(L133:M133) -> 72.22 | O133: 7.14 | Q133: 5.67 | R133: 13.00 | S133: =AVERAGE(Q133:R133) -> 9.33 | T133: 8.00 | U133: 6.00 | V133: =AVERAGE(T133:U133) -> 7.00 | W133: 25.00 | Y133: 33.17 | Z133: 44.20 | AA133: =AVERAGE(Y133:Z133) -> 38.68 | AB133: 35.63 | AC133: 19.17 | AD133: =AVERAGE(AB133:AC133) -> 27.40 | AE133: =((AA133-AD133)/AA133)*100 -> 29.17 | AG133: 32.13 | AH133: 25.53 | AI133: =AVERAGE(AG133:AH133) -> 28.83 | AJ133: 11.93 | AK133: 18.33 | AL133: =AVERAGE(AJ133:AK133) -> 15.13 | AM133: =((AI133-AL133)/AI133)*100 -> 47.51 | AO133: 3 | AP133: 5 | AQ133: =AVERAGE(AO133:AP133) -> 4.00 | AS133: 0 | AT133: 0 | AU133: =AVERAGE(AS133:AT133) -> 0
A134: 131 | B134: 141 | C134: MM 62 | D134: IC 205 | E134: 100.00 | F134: 88.89 | G134: 94.44 | H134: 66.67 | I134: 0.00 | J134: 33.33 | K134: 64.71 | L134: 88.89 | M134: 88.89 | N134: 88.89 | O134: 5.88 | Q134: 5.33 | R134: 13.67 | S134: 9.50 | T134: 8.00 | U134: 7.00 | V134: 7.50 | W134: 21.05 | Y134: 34.83 | Z134: 46.83 | AA134: 40.83 | AB134: 35.03 | AC134: 23.67 | AD134: 29.35 | AE134: 28.12 | AG134: 31.90 | AH134: 28.30 | AI134: 30.10 | AJ134: 12.37 | AK134: 19.67 | AL134: 16.02 | AM134: 46.79 | AO134: 3 | AP134: 5 | AQ134: 4.00 | AS134: 0 | AT134: 0 | AU134: 0
A135: 132 | B135: 142 | C135: MM 64 | D135: EC 14437 | E135: 0.00 | F135: 100.00 | G135: 50.00 | H135: 0.00 | I135: 100.00 | J135: 50.00 | K135: 0.00 | L135: 0.00 | M135: 88.89 | N135: 44.44 | O135: 11.11 | Q135: 6.00 | R135: 11.67 | S135: 8.83 | T135: 6.00 | U135: 8.00 | V135: 7.00 | W135: 20.75 | Y135: 35.17 | Z135: 52.50 | AA135: 43.83 | AB135: 31.00 | AC135: 21.17 | AD135: 26.08 | AE135: 40.49 | AG135: 32.30 | AH135: 23.70 | AI135: 28.00 | AJ135: 11.00 | AK135: 32.20 | AL135: 21.60 | AM135: 22.86 | AO135: 0 | AP135: 0 | AQ135: 0.00 | AS135: 0 | AT135: 1 | AU135: 0.5
A136: 133 | B136: 143 | C136: MM 70 | D136: EC 39776 | E136: 0.00 | F136: 100.00 | G136: 50.00 | H136: 0.00 | I136: 66.67 | J136: 33.33 | K136: 33.33 | L136: 0.00 | M136: 100.00 | N136: 50.00 | O136: 0.00 | Q136: 7.33 | R136: 11.33 | S136: 9.33 | T136: 7.00 | U136: 9.00 | V136: 8.00 | W136: 14.29 | Y136: 35.20 | Z136: 44.87 | AA136: 40.03 | AB136: 35.73 | AC136: 24.25 | AD136: 29.99 | AE136: 25.08 | AG136: 33.53 | AH136: 22.30 | AI136: 27.92 | AJ136: 11.17 | AK136: 25.45 | AL136: 18.31 | AM136: 34.42 | AO136: 3 | AP136: 0 | AQ136: 1.50 | AS136: 0 | AT136: 1 | AU136: 0.5
A137: 134 | B137: 144 | C137: MM 71 | D137: EC 39795 | E137: 0.00 | F137: 88.89 | G137: 44.44 | H137: 0.00 | I137: 100.00 | J137: 50.00 | K137: -12.50 | L137: 0.00 | M137: 66.67 | N137: 33.33 | O137: 25.00 | Q137: 9.67 | R137: 11.67 | S137: 10.67 | T137: 9.33 | U137: 9.00 | V137: 9.17 | W137: 14.06 | Y137: 35.47 | Z137: 47.63 | AA137: 41.55 | AB137: 35.60 | AC137: 26.83 | AD137: 31.22 | AE137: 24.87 | AG137: 35.10 | AH137: 26.00 | AI137: 30.55 | AJ137: 8.63 | AK137: 28.93 | AL137: 18.78 | AM137: 38.52 | AO137: 0 | AP137: 0 | AQ137: 0.00 | AS137: 0 | AT137: 1 | AU137: 0.5
A138: 135 | B138: 145 | C138: MM 79 | D138: IC 195 | E138: 0.00 | F138: 0.00 | G138: 0.00 | H138: 0.00 | I138: 0.00 | J138: 0.00 | K138: NA | L138: 0.00 | M138: 0.00 | N138: 0.00 | O138: NA | Q138: 9.67 | R138: 11.67 | S138: 10.67 | T138: 9.00 | U138: 9.00 | V138: 9.00 | W138: 15.63 | Y138: 33.80 | Z138: 46.13 | AA138: 39.97 | AB138: 35.27 | AC138: 24.33 | AD138: 29.80 | AE138: 25.44 | AG138: 35.03 | AH138: 25.40 | AI138: 30.22 | AJ138: 11.00 | AK138: 33.17 | AL138: 22.08 | AM138: 26.92 | AO138: 0 | AP138: 0 | AQ138: 0.00 | AS138: 0 | AT138: 1 | AU138: 0.5
A139: 136 | B139: 146 | C139: MM 89 | D139: PLSO 21 | E139: 0.00 | F139: 0.00 | G139: 0.00 | H139: 0.00 | I139: 0.00 | J139: 0.00 | K139: NA | L139: 0.00 | M139: 0.00 | N139: 0.00 | O139: NA | Q139: 10.00 | R139: 12.00 | S139: 11.00 | T139: 7.00 | U139: 9.00 | V139: 8.00 | W139: 27.27 | Y139: 34.77 | Z139: 46.77 | AA139: 40.77 | AB139: 33.67 | AC139: 25.00 | AD139: 29.33 | AE139: 28.05 | AG139: 32.17 | AH139: 20.60 | AI139: 26.38 | AJ139: 14.13 | AK139: 28.27 | AL139: 21.20 | AM139: 19.65 | AO139: 0 | AP139: 0 | AQ139: 0.00 | AS139: 0 | AT139: 1 | AU139: 0.5
A140: 137 | B140: 147 | C140: MM 93 | D140: Green Tur | E140: 0.00 | F140: 88.89 | G140: 44.44 | H140: 0.00 | I140: 66.67 | J140: 33.33 | K140: =((G140-J140)/G140)*100 -> 25.00 | L140: 0.00 | M140: 66.67 | N140: 33.33 | O140: =((G140-N140)/G140)*100 -> 25.00 | Q140: 10.00 | R140: 12.00 | S140: 11.00 | T140: 10.00 | U140: 9.00 | V140: 9.50 | W140: 13.64 | Y140: 29.47 | Z140: 41.47 | AA140: 35.47 | AB140: 37.67 | AC140: 26.83 | AD140: 32.25 | AE140: 9.07 | AG140: 33.50 | AH140: 24.55 | AI140: 29.03 | AJ140: 12.20 | AK140: 23.77 | AL140: 17.98 | AM140: 38.04 | AO140: 0 | AP140: 0 | AQ140: 0.00 | AS140: 0 | AT140: 1 | AU140: 0.5
A141: 138 | B141: 148 | C141: MM 96 | D141: EC 14427 | E141: 33.33 | F141: 100.00 | G141: 66.67 | H141: 77.78 | I141: 100.00 | J141: 88.89 | K141: -33.33 | L141: 55.56 | M141: 77.78 | N141: 66.67 | O141: -0.00 | Q141: 6.33 | R141: 12.00 | S141: 9.17 | T141: 8.00 | U141: 10.00 | V141: 9.00 | W141: 1.82 | Y141: 33.83 | Z141: 45.73 | AA141: 39.78 | AB141: 33.93 | AC141: 23.17 | AD141: 28.55 | AE141: 28.24 | AG141: 32.93 | AH141: 29.57 | AI141: 31.25 | AJ141: 11.17 | AK141: 30.33 | AL141: 20.75 | AM141: 33.60 | AO141: 0 | AP141: 0 | AQ141: 0.00 | AS141: 0 | AT141: 1 | AU141: 0.5
A142: 139 | B142: 149 | C142: MM 114 | D142: IC 202 | E142: 88.89 | F142: 66.67 | G142: 77.78 | H142: 88.89 | I142: 100.00 | J142: 94.44 | K142: -21.43 | L142: 55.56 | M142: 77.78 | N142: 66.67 | O142: 14.29 | Q142: 5.33 | R142: 12.00 | S142: 8.67 | T142: 5.00 | U142: 7.67 | V142: 6.33 | W142: 26.92 | Y142: 33.07 | Z142: 42.57 | AA142: 37.82 | AB142: 36.17 | AC142: 20.00 | AD142: 28.08 | AE142: 25.74 | AG142: 32.20 | AH142: 32.10 | AI142: 32.15 | AJ142: 8.33 | AK142: 24.25 | AL142: 16.29 | AM142: 49.33 | AO142: 2 | AP142: 2 | AQ142: 2.00 | AS142: 0 | AT142: 0 | AU142: 0
A143: 140 | B143: 150 | C143: MM 122 | D143: IC 13053 | E143: 33.33 | F143: 100.00 | G143: 66.67 | H143: 66.67 | I143: 33.33 | J143: 50.00 | K143: 25.00 | L143: 11.11 | M143: 77.78 | N143: 44.44 | O143: 33.33 | Q143: 7.00 | R143: 13.00 | S143: 10.00 | T143: 7.67 | U143: 8.00 | V143: 7.83 | W143: 21.67 | Y143: 35.87 | Z143: 43.23 | AA143: 39.55 | AB143: 33.60 | AC143: 19.50 | AD143: 26.55 | AE143: 32.87 | AG143: 33.57 | AH143: 20.07 | AI143: 26.82 | AJ143: 12.80 | AK143: 19.50 | AL143: 16.15 | AM143: 39.78 | AO143: 5 | AP143: 0 | AQ143: 2.50 | AS143: 0 | AT143: 1 | AU143: 0.5
A144: 141 | B144: 151 | C144: MM 144 | D144: EC 216376 | E144: 44.44 | F144: 77.78 | G144: 61.11 | H144: 11.11 | I144: 66.67 | J144: 38.89 | K144: 36.36 | L144: 22.22 | M144: 77.78 | N144: 50.00 | O144: 18.18 | Q144: 6.33 | R144: 12.33 | S144: 9.33 | T144: 7.00 | U144: 9.00 | V144: 8.00 | W144: 14.29 | Y144: 33.87 | Z144: 43.00 | AA144: 38.43 | AB144: 34.27 | AC144: 25.00 | AD144: 29.63 | AE144: 22.90 | AG144: 34.47 | AH144: 27.00 | AI144: 30.73 | AJ144: 10.53 | AK144: 22.90 | AL144: 16.72 | AM144: 45.61 | AO144: 4 | AP144: 2 | AQ144: 3.00 | AS144: 0 | AT144: 1 | AU144: 0.5
A145: 142 | B145: 152 | C145: MM 177 | D145: EC 77214 | E145: 66.67 | F145: 100.00 | G145: 83.33 | H145: 55.56 | I145: 100.00 | J145: 77.78 | K145: 6.67 | L145: 22.22 | M145: 100.00 | N145: 61.11 | O145: 26.67 | Q145: 7.00 | R145: 14.33 | S145: 10.67 | T145: 6.00 | U145: 8.00 | V145: 7.00 | W145: 34.38 | Y145: 33.00 | Z145: 37.67 | AA145: 35.33 | AB145: 31.00 | AC145: 20.97 | AD145: 25.98 | AE145: 26.46 | AG145: 33.03 | AH145: 25.80 | AI145: 29.42 | AJ145: 9.47 | AK145: 19.50 | AL145: 14.48 | AM145: 50.76 | AO145: 2 | AP145: 0 | AQ145: 1.00 | AS145: 0 | AT145: 0 | AU145: 0
A146: 143 | B146: 153 | C146: MM 188 | D146: JS 335 | E146: 77.78 | F146: 66.67 | G146: 72.22 | H146: 66.67 | I146: 66.67 | J146: 66.67 | K146: 7.69 | L146: 22.22 | M146: 100.00 | N146: 61.11 | O146: 15.38 | Q146: 6.33 | R146: 14.00 | S146: 10.17 | T146: 8.00 | U146: 8.00 | V146: 8.00 | W146: 21.31 | Y146: 37.33 | Z146: 56.50 | AA146: 46.92 | AB146: 33.53 | AC146: 16.00 | AD146: 24.77 | AE146: 47.21 | AG146: 30.13 | AH146: 28.00 | AI146: 29.07 | AJ146: 8.03 | AK146: 30.35 | AL146: 19.19 | AM146: 33.97 | AO146: 2 | AP146: 5 | AQ146: 3.50 | AS146: 0 | AT146: 0 | AU146: 0
A147: 144 | B147: 154 | C147: MM 242 | D147: DS 2309 | E147: 88.89 | F147: 100.00 | G147: 94.44 | H147: 55.56 | I147: 66.67 | J147: 61.11 | K147: 35.29 | L147: 33.33 | M147: 88.89 | N147: 61.11 | O147: 35.29 | Q147: 7.33 | R147: 11.67 | S147: 9.50 | T147: 4.67 | U147: 7.00 | V147: 5.83 | W147: 38.60 | Y147: 34.87 | Z147: 35.37 | AA147: 35.12 | AB147: 33.57 | AC147: 19.33 | AD147: 26.45 | AE147: 24.68 | AG147: 28.27 | AH147: 25.20 | AI147: 26.73 | AJ147: 11.40 | AK147: 20.33 | AL147: 15.87 | AM147: 40.65 | AO147: 5 | AP147: 5 | AQ147: 5.00 | AS147: 0 | AT147: 0 | AU147: 0
A148: 145 | B148: 155 | C148: MM-285 | D148: MACS 160 | E148: 100.00 | F148: 88.89 | G148: 94.44 | H148: 44.44 | I148: 100.00 | J148: 72.22 | K148: 23.53 | L148: 66.67 | M148: 100.00 | N148: 83.33 | O148: 11.76 | Q148: 7.67 | R148: 10.33 | S148: 9.00 | T148: 8.00 | U148: 8.00 | V148: 8.00 | W148: 11.11 | Y148: 32.80 | Z148: 43.93 | AA148: 38.37 | AB148: 34.33 | AC148: 23.83 | AD148: 29.08 | AE148: 24.20 | AG148: 29.10 | AH148: 24.13 | AI148: 26.62 | AJ148: 14.17 | AK148: 27.90 | AL148: 21.03 | AM148: 20.98 | AO148: 0 | AP148: 0 | AQ148: 0.00 | AS148: 1 | AT148: 1 | AU148: 1
A149: 146 | B149: 156 | C149: MM-391 | D149: MACS 1115 0 21 9 | E149: 0.00 | F149: 0.00 | G149: 0.00 | H149: 0.00 | I149: 0.00 | J149: 0.00 | K149: NA | L149: 0.00 | M149: 0.00 | N149: 0.00 | O149: NA | Q149: 10.00 | R149: 12.33 | S149: 11.17 | T149: 9.00 | U149: 6.00 | V149: 7.50 | W149: 32.84 | Y149: 27.63 | Z149: 46.97 | AA149: 37.30 | AB149: 25.00 | AC149: 23.75 | AD149: 24.38 | AE149: 34.65 | AG149: 31.97 | AH149: 23.97 | AI149: 27.97 | AJ149: 7.73 | AK149: 24.65 | AL149: 16.19 | AM149: 42.10 | AO149: 5 | AP149: 5 | AQ149: 5.00 | AS149: 0 | AT149: 0 | AU149: 0
A150: 147 | B150: 157 | C150: MM-299 | D150: MACS 224 | E150: 88.89 | F150: 100.00 | G150: 94.44 | H150: 77.78 | I150: 100.00 | J150: 88.89 | K150: =((G150-J150)/G150)*100 -> 5.88 | L150: 44.44 | M150: 88.89 | N150: 66.67 | O150: =((G150-N150)/G150)*100 -> 29.41 | Q150: 6.33 | R150: 12.33 | S150: 9.33 | T150: 5.00 | U150: 7.00 | V150: 6.00 | W150: 35.71 | Y150: 35.87 | Z150: 46.30 | AA150: 41.08 | AB150: 36.97 | AC150: 26.67 | AD150: 31.82 | AE150: 22.56 | AG150: 33.37 | AH150: 19.10 | AI150: 26.23 | AJ150: 11.27 | AK150: 26.97 | AL150: 19.12 | AM150: 27.13 | AO150: 4 | AP150: 0 | AQ150: 2.00 | AS150: 0 | AT150: 1 | AU150: 0.5
A151: 148 | B151: 158 | C151: MM-300 | D151: NRC 142 | E151: 44.44 | F151: 77.78 | G151: 61.11 | H151: 11.11 | I151: 66.67 | J151: 38.89 | K151: 36.36 | L151: 11.11 | M151: 55.56 | N151: 33.33 | O151: 45.45 | Q151: 6.33 | R151: 11.00 | S151: 8.67 | T151: 7.00 | U151: 6.00 | V151: 6.50 | W151: 25.00 | Y151: 37.07 | Z151: 40.62 | AA151: 38.84 | AB151: 36.33 | AC151: 16.33 | AD151: 26.33 | AE151: 32.20 | AG151: 31.40 | AH151: 21.30 | AI151: 26.35 | AJ151: 12.20 | AK151: 32.05 | AL151: 22.13 | AM151: 16.03 | AO151: 5 | AP151: 5 | AQ151: 5.00 | AS151: 0 | AT151: 0 | AU151: 0
A152: 149 | B152: 159 | C152: MM-301 | D152: NRC 147 | E152: 88.89 | F152: 77.78 | G152: 83.33 | H152: 66.67 | I152: 33.33 | J152: 50.00 | K152: 40.00 | L152: 66.67 | M152: 66.67 | N152: 66.67 | O152: 20.00 | Q152: 6.33 | R152: 11.00 | S152: 8.67 | T152: 6.00 | U152: 6.00 | V152: 6.00 | W152: 30.77 | Y152: 28.50 | Z152: 40.25 | AA152: 34.38 | AB152: 33.33 | AC152: 19.00 | AD152: 26.17 | AE152: 23.88 | AG152: 31.57 | AH152: 22.85 | AI152: 27.21 | AJ152: 11.83 | AK152: 26.05 | AL152: 18.94 | AM152: 30.38 | AO152: 5 | AP152: 5 | AQ152: 5.00 | AS152: 0 | AT152: 0 | AU152: 0
A153: 150 | B153: 160 | C153: PC1 | D153: AGS 25 | E153: 0.00 | F153: 88.89 | G153: 44.44 | H153: 0.00 | I153: 33.33 | J153: 16.67 | K153: 62.50 | L153: 0.00 | M153: 88.89 | N153: 44.44 | O153: -0.00 | Q153: 6.33 | R153: 13.33 | S153: 9.83 | T153: 8.00 | U153: 7.00 | V153: 7.50 | W153: 23.73 | Y153: 32.60 | Z153: 42.43 | AA153: 37.52 | AB153: 34.50 | AC153: 25.33 | AD153: 29.92 | AE153: 20.26 | AG153: 32.40 | AH153: 23.10 | AI153: 27.75 | AJ153: 8.83 | AK153: 19.57 | AL153: 14.20 | AM153: 48.83 | AO153: 5 | AP153: 5 | AQ153: 5.00 | AS153: 0 | AT153: 0 | AU153: 0
A154: 151 | B154: 161 | C154: PC2 | D154: ANKUR | E154: 33.33 | F154: 100.00 | G154: 66.67 | H154: 66.67 | I154: 100.00 | J154: 83.33 | K154: -25.00 | L154: 11.11 | M154: 100.00 | N154: 55.56 | O154: 16.67 | Q154: 5.00 | R154: 11.00 | S154: 8.00 | T154: 5.00 | U154: 6.00 | V154: 5.50 | W154: 31.25 | Y154: 34.13 | Z154: 45.97 | AA154: 40.05 | AB154: 34.93 | AC154: 21.00 | AD154: 27.97 | AE154: 30.17 | AG154: 30.37 | AH154: 15.45 | AI154: 22.91 | AJ154: 13.20 | AK154: 21.83 | AL154: 17.52 | AM154: 23.54 | AO154: 5 | AP154: 5 | AQ154: 5.00 | AS154: 0 | AT154: 0 | AU154: 0
A155: 152 | B155: 162 | C155: PC3 | D155: BHATT | E155: 66.67 | F155: 77.78 | G155: 72.22 | H155: 55.56 | I155: 100.00 | J155: 77.78 | K155: -7.69 | L155: 66.67 | M155: 100.00 | N155: 83.33 | O155: -15.38 | Q155: 6.00 | R155: 10.33 | S155: 8.17 | T155: 8.00 | U155: 8.00 | V155: 8.00 | W155: 2.04 | Y155: 29.07 | Z155: 33.40 | AA155: 31.23 | AB155: 35.87 | AC155: 24.67 | AD155: 30.27 | AE155: 3.09 | AG155: 29.93 | AH155: 24.57 | AI155: 27.25 | AJ155: 11.20 | AK155: 29.00 | AL155: 20.10 | AM155: 26.24 | AO155: 0 | AP155: 0 | AQ155: 0.00 | AS155: 0 | AT155: 1 | AU155: 0.5
A156: 153 | B156: 163 | C156: PC4 | D156: BRAGG | E156: 44.44 | F156: 66.67 | G156: 55.56 | H156: 77.78 | I156: 33.33 | J156: 55.56 | K156: -0.00 | L156: 33.33 | M156: 66.67 | N156: 50.00 | O156: 10.00 | Q156: 6.67 | R156: 10.00 | S156: 8.33 | T156: 5.00 | U156: 8.00 | V156: 6.50 | W156: 22.00 | Y156: 29.63 | Z156: 33.78 | AA156: 31.71 | AB156: 34.87 | AC156: 21.67 | AD156: 28.27 | AE156: 10.85 | AG156: 27.50 | AH156: 22.20 | AI156: 24.85 | AJ156: 11.13 | AK156: 28.83 | AL156: 19.98 | AM156: 19.58 | AO156: 5 | AP156: 5 | AQ156: 5.00 | AS156: 0 | AT156: 0 | AU156: 0
A157: 154 | B157: 164 | C157: PC5 | D157: CAT II47 | E157: 88.89 | F157: 100.00 | G157: 94.44 | H157: 88.89 | I157: 100.00 | J157: 94.44 | K157: 0.00 | L157: 66.67 | M157: 88.89 | N157: 77.78 | O157: 17.65 | Q157: 7.00 | R157: 11.67 | S157: 9.33 | T157: 7.00 | U157: 6.00 | V157: 6.50 | W157: 30.36 | Y157: 35.87 | Z157: 48.87 | AA157: 42.37 | AB157: 36.40 | AC157: 34.00 | AD157: 35.20 | AE157: 16.92 | AG157: 33.00 | AH157: 30.80 | AI157: 31.90 | AJ157: 10.00 | AK157: 17.70 | AL157: 13.85 | AM157: 56.58 | AO157: 4 | AP157: 3 | AQ157: 3.50 | AS157: 0 | AT157: 0 | AU157: 0
A158: 155 | B158: 165 | C158: PC6 | D158: DS 228 | E158: 88.89 | F158: 100.00 | G158: 94.44 | H158: 66.67 | I158: 66.67 | J158: 66.67 | K158: 29.41 | L158: 66.67 | M158: 88.89 | N158: 77.78 | O158: 17.65 | Q158: 6.00 | R158: 13.67 | S158: 9.83 | T158: 8.00 | U158: 7.00 | V158: 7.50 | W158: 23.73 | Y158: 36.20 | Z158: 39.53 | AA158: 37.87 | AB158: 34.97 | AC158: 23.67 | AD158: 29.32 | AE158: 22.58 | AG158: 28.60 | AH158: 30.33 | AI158: 29.47 | AJ158: 12.27 | AK158: 26.97 | AL158: 19.62 | AM158: 33.43 | AO158: 0 | AP158: 0 | AQ158: 0.00 | AS158: 0 | AT158: 1 | AU158: 0.5
A159: 156 | B159: 166 | C159: PC8 | D159: DSB 19 | E159: 66.67 | F159: 55.56 | G159: 61.11 | H159: 77.78 | I159: 66.67 | J159: 72.22 | K159: -18.18 | L159: 66.67 | M159: 55.56 | N159: 61.11 | O159: -0.00 | Q159: 6.67 | R159: 12.33 | S159: 9.50 | T159: 5.00 | U159: 8.00 | V159: 6.50 | W159: 31.58 | Y159: 35.17 | Z159: 40.23 | AA159: 37.70 | AB159: 34.00 | AC159: 20.17 | AD159: 27.08 | AE159: 28.16 | AG159: 33.33 | AH159: 26.50 | AI159: 29.92 | AJ159: 11.60 | AK159: 26.47 | AL159: 19.03 | AM159: 36.38 | AO159: 3 | AP159: 0 | AQ159: 1.50 | AS159: 0 | AT159: 1 | AU159: 0.5
A160: 157 | B160: 167 | C160: PC9 | D160: DSB 23-2 | E160: 88.89 | F160: 88.89 | G160: 88.89 | H160: 55.56 | I160: 100.00 | J160: 77.78 | K160: 12.50 | L160: 33.33 | M160: 88.89 | N160: 61.11 | O160: 31.25 | Q160: 7.33 | R160: 13.00 | S160: 10.17 | T160: 5.00 | U160: 8.00 | V160: 6.50 | W160: 36.07 | Y160: 32.93 | Z160: 43.67 | AA160: 38.30 | AB160: 37.47 | AC160: 27.50 | AD160: 32.48 | AE160: 15.19 | AG160: 32.90 | AH160: 28.53 | AI160: 30.72 | AJ160: 9.87 | AK160: 17.40 | AL160: 13.63 | AM160: 55.62 | AO160: 4 | AP160: 5 | AQ160: 4.50 | AS160: 0 | AT160: 0 | AU160: 0
A161: 158 | B161: 168 | C161: PC10 | D161: DSB 283 | E161: 88.89 | F161: 88.89 | G161: 88.89 | H161: 55.56 | I161: 100.00 | J161: 77.78 | K161: 12.50 | L161: 11.11 | M161: 100.00 | N161: 55.56 | O161: 37.50 | Q161: 7.33 | R161: 12.00 | S161: 9.67 | T161: 5.00 | U161: 8.00 | V161: 6.50 | W161: 32.76 | Y161: 36.33 | Z161: 47.17 | AA161: 41.75 | AB161: 33.00 | AC161: 29.33 | AD161: 31.17 | AE161: 25.35 | AG161: 33.70 | AH161: 27.17 | AI161: 30.43 | AJ161: 8.20 | AK161: 14.35 | AL161: 11.28 | AM161: 62.95 | AO161: 5 | AP161: 5 | AQ161: 5.00 | AS161: 0 | AT161: 0 | AU161: 0
A162: 159 | B162: 169 | C162: PC13 | D162: HIMSO 1563 | E162: 55.56 | F162: 44.44 | G162: 50.00 | H162: 11.11 | I162: 0.00 | J162: 5.56 | K162: 88.89 | L162: 33.33 | M162: 33.33 | N162: 33.33 | O162: 33.33 | Q162: 7.33 | R162: 11.33 | S162: 9.33 | T162: 8.00 | U162: 9.00 | V162: 8.50 | W162: 8.93 | Y162: 29.20 | Z162: 30.03 | AA162: 29.62 | AB162: 32.83 | AC162: 20.33 | AD162: 26.58 | AE162: 10.24 | AG162: 29.00 | AH162: 25.40 | AI162: 27.20 | AJ162: 6.90 | AK162: 33.30 | AL162: 20.10 | AM162: 26.10 | AO162: 4 | AP162: 0 | AQ162: 2.00 | AS162: 0 | AT162: 1 | AU162: 0.5
A163: 160 | B163: 170 | C163: PC17 | D163: JS 72280 | E163: 100.00 | F163: 77.78 | G163: 88.89 | H163: 100.00 | I163: 100.00 | J163: 100.00 | K163: -12.50 | L163: 77.78 | M163: 100.00 | N163: 88.89 | O163: -0.00 | Q163: 7.00 | R163: 11.00 | S163: 9.00 | T163: 7.00 | U163: 7.00 | V163: 7.00 | W163: 22.22 | Y163: 36.33 | Z163: 40.80 | AA163: 38.57 | AB163: 32.23 | AC163: 24.33 | AD163: 28.28 | AE163: 26.66 | AG163: 36.40 | AH163: 13.65 | AI163: 25.03 | AJ163: 8.63 | AK163: 27.27 | AL163: 17.95 | AM163: 28.27 | AO163: 5 | AP163: 5 | AQ163: 5.00 | AS163: 0 | AT163: 0 | AU163: 0
A164: 161 | B164: 171 | C164: PC18 | D164: JS 7244 | E164: 77.78 | F164: 66.67 | G164: 72.22 | H164: 77.78 | I164: 66.67 | J164: 72.22 | K164: -0.00 | L164: 88.89 | M164: 66.67 | N164: 77.78 | O164: -7.69 | Q164: 6.33 | R164: 11.33 | S164: 8.83 | T164: 8.00 | U164: 9.00 | V164: 8.50 | W164: =((S164-V164)/S164)*100 -> 3.77 | Y164: 34.93 | Z164: 36.90 | AA164: 35.92 | AB164: 32.93 | AC164: 23.33 | AD164: 28.13 | AE164: 21.67 | AG164: 32.67 | AH164: 23.97 | AI164: 28.32 | AJ164: 10.90 | AK164: 30.43 | AL164: 20.67 | AM164: 27.02 | AO164: 0 | AP164: 0 | AQ164: 0.00 | AS164: 0 | AT164: 1 | AU164: 0.5
A165: 162 | B165: 172 | C165: PC20 | D165: JS 8021 | E165: 66.67 | F165: 100.00 | G165: 83.33 | H165: 100.00 | I165: 100.00 | J165: 100.00 | K165: -20.00 | L165: 33.33 | M165: 88.89 | N165: 61.11 | O165: 26.67 | Q165: 5.67 | R165: 13.33 | S165: 9.50 | T165: 6.00 | U165: 8.00 | V165: 7.00 | W165: 26.32 | Y165: 34.97 | Z165: 42.00 | AA165: 38.48 | AB165: 31.67 | AC165: 25.97 | AD165: 28.82 | AE165: 25.12 | AG165: 31.97 | AH165: 27.27 | AI165: 29.62 | AJ165: 9.23 | AK165: 24.85 | AL165: 17.04 | AM165: 42.46 | AO165: 5 | AP165: 5 | AQ165: 5.00 | AS165: 0 | AT165: 0 | AU165: 0
A166: 163 | B166: 173 | C166: PC21 | D166: JS 9305 | E166: 88.89 | F166: 77.78 | G166: 83.33 | H166: 66.67 | I166: 66.67 | J166: 66.67 | K166: 20.00 | L166: 88.89 | M166: 66.67 | N166: 77.78 | O166: 6.67 | Q166: 4.67 | R166: 10.67 | S166: 7.67 | T166: 8.00 | U166: 9.00 | V166: 8.50 | W166: -10.87 | Y166: 36.20 | Z166: 35.87 | AA166: 36.03 | AB166: 33.33 | AC166: 19.00 | AD166: 26.17 | AE166: 27.38 | AG166: 33.90 | AH166: 22.65 | AI166: 28.28 | AJ166: 12.40 | AK166: 25.17 | AL166: 18.78 | AM166: 33.57 | AO166: 5 | AP166: 0 | AQ166: 2.50 | AS166: 0 | AT166: 1 | AU166: 0.5
A167: 164 | B167: 174 | C167: PC24 | D167: JSSH 9337 | E167: 77.78 | F167: 77.78 | G167: 77.78 | H167: 66.67 | I167: 100.00 | J167: 83.33 | K167: -7.14 | L167: 44.44 | M167: 88.89 | N167: 66.67 | O167: 14.29 | Q167: 5.33 | R167: 13.00 | S167: 9.17 | T167: 5.00 | U167: 8.00 | V167: 6.50 | W167: 29.09 | Y167: 31.77 | Z167: 48.67 | AA167: 40.22 | AB167: 29.60 | AC167: 28.33 | AD167: 28.97 | AE167: 27.97 | AG167: 31.13 | AH167: 26.87 | AI167: 29.00 | AJ167: 11.60 | AK167: 21.80 | AL167: 16.70 | AM167: 42.41 | AO167: 4 | AP167: 0 | AQ167: 2.00 | AS167: 0 | AT167: 1 | AU167: 0.5
A168: 165 | B168: 175 | C168: PC25 | D168: KALITUR | E168: 100.00 | F168: 88.89 | G168: 94.44 | H168: 100.00 | I168: 66.67 | J168: 83.33 | K168: 11.76 | L168: 88.89 | M168: 88.89 | N168: 88.89 | O168: 5.88 | Q168: 6.33 | R168: 13.33 | S168: 9.83 | T168: 8.00 | U168: 9.67 | V168: 8.83 | W168: 10.17 | Y168: 33.80 | Z168: 44.23 | AA168: 39.02 | AB168: 35.17 | AC168: 28.00 | AD168: 31.58 | AE168: 19.05 | AG168: 33.73 | AH168: 29.60 | AI168: 31.67 | AJ168: 16.33 | AK168: 25.30 | AL168: 20.82 | AM168: 34.26 | AO168: 5 | AP168: 0 | AQ168: 2.50 | AS168: 0 | AT168: 1 | AU168: 0.5
A169: 166 | B169: 176 | C169: PC27 | D169: KDS 344 | E169: 33.33 | F169: 83.33 | G169: 58.33 | H169: 66.67 | I169: 100.00 | J169: 83.33 | K169: -42.86 | L169: 44.44 | M169: 100.00 | N169: 72.22 | O169: -23.81 | Q169: 6.00 | R169: 11.00 | S169: 8.50 | T169: 5.00 | U169: 8.00 | V169: 6.50 | W169: 23.53 | Y169: 36.20 | Z169: 36.87 | AA169: 36.53 | AB169: 32.20 | AC169: 29.83 | AD169: 31.02 | AE169: 15.10 | AG169: 33.37 | AH169: 19.97 | AI169: 26.67 | AJ169: 10.07 | AK169: 18.75 | AL169: 14.41 | AM169: 45.97 | AO169: 3 | AP169: 1 | AQ169: 2.00 | AS169: 0 | AT169: 0 | AU169: 0
A170: 167 | B170: 177 | C170: PC33 | D170: LEE | E170: 77.78 | F170: 77.78 | G170: 77.78 | H170: 44.44 | I170: 66.67 | J170: 55.56 | K170: 28.57 | L170: 55.56 | M170: 77.78 | N170: 66.67 | O170: 14.29 | Q170: 5.33 | R170: 13.00 | S170: 9.17 | T170: 5.33 | U170: 6.67 | V170: 6.00 | W170: 34.55 | Y170: 32.00 | Z170: 33.10 | AA170: 32.55 | AB170: 30.00 | AC170: 21.05 | AD170: 25.53 | AE170: 21.58 | AG170: 32.30 | AH170: 25.80 | AI170: 29.05 | AJ170: 9.77 | AK170: 27.50 | AL170: 18.63 | AM170: 35.86 | AO170: 5 | AP170: 5 | AQ170: 5.00 | AS170: 0 | AT170: 0 | AU170: 0
A171: 168 | B171: 178 | C171: PC34 | D171: MACS 1037 | E171: 100.00 | F171: 88.89 | G171: 94.44 | H171: 88.89 | I171: 100.00 | J171: 94.44 | K171: -0.00 | L171: 88.89 | M171: 88.89 | N171: 88.89 | O171: 5.88 | Q171: 7.00 | R171: 8.67 | S171: 7.83 | T171: 5.67 | U171: 8.00 | V171: 6.83 | W171: 12.77 | Y171: 33.67 | Z171: 28.83 | AA171: 31.25 | AB171: 34.80 | AC171: 31.00 | AD171: 32.90 | AE171: -5.28 | AG171: 32.50 | AH171: 20.40 | AI171: 26.45 | AJ171: 11.90 | AK171: 21.33 | AL171: 16.62 | AM171: 37.18 | AO171: 4 | AP171: 1 | AQ171: 2.50 | AS171: 0 | AT171: 1 | AU171: 0.5
A172: 169 | B172: 179 | C172: PC37 | D172: MACS 1140 | E172: 77.78 | F172: 77.78 | G172: 77.78 | H172: 77.78 | I172: 66.67 | J172: 72.22 | K172: 7.14 | L172: 77.78 | M172: 88.89 | N172: 83.33 | O172: -7.14 | Q172: 6.67 | R172: 13.00 | S172: 9.83 | T172: 5.00 | U172: 6.00 | V172: 5.50 | W172: 44.07 | Y172: 33.53 | Z172: 41.87 | AA172: 37.70 | AB172: 31.47 | AC172: 29.50 | AD172: 30.48 | AE172: 19.14 | AG172: 36.37 | AH172: 10.20 | AI172: 23.28 | AJ172: 11.80 | AK172: 18.23 | AL172: 15.02 | AM172: 35.50 | AO172: 0 | AP172: 0 | AQ172: 0.00 | AS172: 0 | AT172: 0 | AU172: 0
A173: 170 | B173: 180 | C173: PC38 | D173: MACS 1188 | E173: 100.00 | F173: 77.78 | G173: 88.89 | H173: 88.89 | I173: 66.67 | J173: 77.78 | K173: 12.50 | L173: 88.89 | M173: 55.56 | N173: 72.22 | O173: 18.75 | Q173: 6.67 | R173: 8.33 | S173: 7.50 | T173: 7.00 | U173: 4.00 | V173: 5.50 | W173: 26.67 | Y173: 34.53 | Z173: 24.87 | AA173: 29.70 | AB173: 37.40 | AC173: 15.00 | AD173: 26.20 | AE173: 11.78 | AG173: 33.50 | AH173: 10.90 | AI173: 22.20 | AJ173: 9.63 | AK173: 1.95 | AL173: 5.79 | AM173: 73.91 | AO173: 3 | AP173: 5 | AQ173: 4.00 | AS173: 0 | AT173: 0 | AU173: 0
A174: 171 | B174: 181 | C174: PC39 | D174: MACS 1259 | E174: 88.89 | F174: 100.00 | G174: 94.44 | H174: 100.00 | I174: 66.67 | J174: 83.33 | K174: 11.76 | L174: 55.56 | M174: 100.00 | N174: 77.78 | O174: 17.65 | Q174: 6.33 | R174: 11.00 | S174: 8.67 | T174: 5.00 | U174: 8.00 | V174: 6.50 | W174: 25.00 | Y174: 32.80 | Z174: 38.13 | AA174: 35.47 | AB174: 28.23 | AC174: 20.33 | AD174: 24.28 | AE174: 31.53 | AG174: 29.50 | AH174: 18.65 | AI174: 24.08 | AJ174: 11.70 | AK174: 21.33 | AL174: 16.52 | AM174: 31.39 | AO174: 5 | AP174: 5 | AQ174: 5.00 | AS174: 0 | AT174: 0 | AU174: 0
A175: 172 | B175: 182 | C175: PC41 | D175: MACS 1281 | E175: 88.89 | F175: 100.00 | G175: 94.44 | H175: 88.89 | I175: 100.00 | J175: 94.44 | K175: 0.00 | L175: 77.78 | M175: 88.89 | N175: 83.33 | O175: 11.76 | Q175: 6.67 | R175: 8.67 | S175: 7.67 | T175: 6.50 | U175: 8.00 | V175: 7.25 | W175: 5.43 | Y175: 27.83 | Z175: 17.67 | AA175: 22.75 | AB175: 30.53 | AC175: 24.00 | AD175: 27.27 | AE175: -19.85 | AG175: 31.57 | AH175: 12.40 | AI175: 21.98 | AJ175: 10.83 | AK175: 20.63 | AL175: 15.73 | AM175: 28.43 | AO175: 4 | AP175: 0 | AQ175: 2.00 | AS175: 0 | AT175: 1 | AU175: 0.5
A176: 173 | B176: 183 | C176: PC42 | D176: MACS 13 | E176: 0.00 | F176: 88.89 | G176: 44.44 | H176: 0.00 | I176: 66.67 | J176: 33.33 | K176: 25.00 | L176: 0.00 | M176: 44.44 | N176: 22.22 | O176: 50.00 | Q176: 7.00 | R176: 11.00 | S176: 9.00 | T176: 5.00 | U176: 6.00 | V176: 5.50 | W176: 38.89 | Y176: 37.33 | Z176: 41.67 | AA176: 39.50 | AB176: 32.07 | AC176: 17.50 | AD176: 24.78 | AE176: 37.26 | AG176: 29.53 | AH176: 29.53 | AI176: 29.53 | AJ176: 6.13 | AK176: 28.57 | AL176: 17.35 | AM176: 41.25 | AO176: 5 | AP176: 0 | AQ176: 2.50 | AS176: 0 | AT176: 0 | AU176: 0
A177: 174 | B177: 184 | C177: PC43 | D177: MACS 1340 | E177: 88.89 | F177: 88.89 | G177: 88.89 | H177: 66.67 | I177: 33.33 | J177: 50.00 | K177: 43.75 | L177: 77.78 | M177: 44.44 | N177: 61.11 | O177: 31.25 | Q177: 6.67 | R177: 10.33 | S177: 8.50 | T177: 5.00 | U177: 7.00 | V177: 6.00 | W177: 29.41 | Y177: 30.50 | Z177: 22.42 | AA177: 26.46 | AB177: 36.73 | AC177: 28.67 | AD177: 32.70 | AE177: -23.59 | AG177: 32.90 | AH177: 28.55 | AI177: 30.73 | AJ177: 10.47 | AK177: 21.67 | AL177: 16.07 | AM177: 47.71 | AO177: 0 | AP177: 0 | AQ177: 0.00 | AS177: 0 | AT177: 0 | AU177: 0
A178: 175 | B178: 185 | C178: PC44 | D178: MACS 1370 | E178: 44.44 | F178: 55.56 | G178: 50.00 | H178: 33.33 | I178: 33.33 | J178: 33.33 | K178: 33.33 | L178: 33.33 | M178: 66.67 | N178: 50.00 | O178: -0.00 | Q178: 7.00 | R178: 11.00 | S178: 9.00 | T178: 8.00 | U178: 8.00 | V178: 8.00 | W178: 11.11 | Y178: 33.73 | Z178: 35.65 | AA178: 34.69 | AB178: 35.20 | AC178: 31.33 | AD178: 33.27 | AE178: 4.11 | AG178: 30.77 | AH178: 19.10 | AI178: 24.93 | AJ178: 10.10 | AK178: 22.63 | AL178: 16.37 | AM178: 34.36 | AO178: 4 | AP178: 0 | AQ178: 2.00 | AS178: 0 | AT178: 1 | AU178: 0.5
A179: 176 | B179: 186 | C179: PC45 | D179: MACS 1407 | E179: 88.89 | F179: 88.89 | G179: 88.89 | H179: 66.67 | I179: 33.33 | J179: 50.00 | K179: 43.75 | L179: 55.56 | M179: 77.78 | N179: 66.67 | O179: 25.00 | Q179: 5.67 | R179: 7.67 | S179: 6.67 | T179: 5.00 | U179: 6.00 | V179: 5.50 | W179: 17.50 | Y179: 34.87 | Z179: 44.20 | AA179: 39.53 | AB179: 31.47 | AC179: 19.33 | AD179: 25.40 | AE179: 35.75 | AG179: 32.70 | AH179: 32.70 | AI179: 32.70 | AJ179: 12.40 | AK179: 16.50 | AL179: 14.45 | AM179: 55.81 | AO179: 4 | AP179: 5 | AQ179: 4.50 | AS179: 0 | AT179: 0 | AU179: 0
A180: 177 | B180: 187 | C180: PC49 | D180: MACS 450 | E180: 77.78 | F180: 100.00 | G180: 88.89 | H180: 44.44 | I180: 66.67 | J180: 55.56 | K180: 37.50 | L180: 55.56 | M180: 88.89 | N180: 72.22 | O180: 18.75 | Q180: 6.67 | R180: 9.00 | S180: 7.83 | T180: 6.00 | U180: 4.00 | V180: 5.00 | W180: 36.17 | Y180: 33.53 | Z180: 25.20 | AA180: 29.37 | AB180: 34.10 | AC180: 21.00 | AD180: 27.55 | AE180: 6.19 | AG180: 33.17 | AH180: 30.10 | AI180: 31.63 | AJ180: 14.97 | AK180: 25.83 | AL180: 20.40 | AM180: 35.51 | AO180: 4 | AP180: 5 | AQ180: 4.50 | AS180: 0 | AT180: 0 | AU180: 0
A181: 178 | B181: 188 | C181: PC51 | D181: MACS 57 | E181: 77.78 | F181: 100.00 | G181: 88.89 | H181: 100.00 | I181: 33.33 | J181: 66.67 | K181: 25.00 | L181: 66.67 | M181: 66.67 | N181: 66.67 | O181: 25.00 | Q181: 7.00 | R181: 9.00 | S181: 8.00 | T181: 8.00 | U181: 7.67 | V181: 7.83 | W181: 2.08 | Y181: 35.43 | Z181: 45.10 | AA181: 40.27 | AB181: 33.43 | AC181: 30.00 | AD181: 31.72 | AE181: 21.23 | AG181: 34.30 | AH181: 34.30 | AI181: 34.30 | AJ181: 12.70 | AK181: 14.00 | AL181: 13.35 | AM181: 61.08 | AO181: 4 | AP181: 5 | AQ181: 4.50 | AS181: 0 | AT181: 0 | AU181: 0
A182: 179 | B182: 189 | C182: PC61 | D182: MONETTA | E182: 33.33 | F182: 88.89 | G182: 61.11 | H182: 33.33 | I182: 33.33 | J182: 33.33 | K182: =((G182-J182)/G182)*100 -> 45.45 | L182: 55.56 | M182: 77.78 | N182: 66.67 | O182: =((G182-N182)/G182)*100 -> -9.09 | Q182: 6.67 | R182: 11.00 | S182: 8.83 | T182: 7.00 | U182: 9.00 | V182: 8.00 | W182: 9.43 | Y182: 33.47 | Z182: 31.47 | AA182: 32.47 | AB182: 32.87 | AC182: 28.50 | AD182: 30.68 | AE182: 5.49 | AG182: 31.37 | AH182: 22.73 | AI182: 27.05 | AJ182: 10.17 | AK182: 16.70 | AL182: 13.43 | AM182: 50.34 | AO182: 0 | AP182: 5 | AQ182: 2.50 | AS182: 0 | AT182: 0 | AU182: 0
A183: 180 | B183: 190 | C183: PC67 | D183: NRC 150 | E183: 11.11 | F183: 55.56 | G183: 33.33 | H183: 55.56 | I183: 0.00 | J183: 27.78 | K183: 16.67 | L183: 0.00 | M183: 44.44 | N183: 22.22 | O183: 33.33 | Q183: 6.67 | R183: 12.33 | S183: 9.50 | T183: 8.00 | U183: 7.67 | V183: 7.83 | W183: 17.54 | Y183: 29.53 | Z183: 38.37 | AA183: 33.95 | AB183: 35.60 | AC183: 14.00 | AD183: 24.80 | AE183: 26.95 | AG183: 31.33 | AH183: 24.80 | AI183: 28.07 | AJ183: 14.03 | AK183: 13.70 | AL183: 13.87 | AM183: 50.59 | AO183: 4 | AP183: 5 | AQ183: 4.50 | AS183: 0 | AT183: 0 | AU183: 0
A184: 181 | B184: 191 | C184: PC68 | D184: NRC 37 | E184: 66.67 | F184: 88.89 | G184: 77.78 | H184: 66.67 | I184: 100.00 | J184: 83.33 | K184: -7.14 | L184: 66.67 | M184: 88.89 | N184: 77.78 | O184: -0.00 | Q184: 7.67 | R184: 11.67 | S184: 9.67 | T184: 6.00 | U184: 7.00 | V184: 6.50 | W184: 32.76 | Y184: 30.47 | Z184: 32.63 | AA184: 31.55 | AB184: 35.13 | AC184: 18.33 | AD184: 26.73 | AE184: 15.27 | AG184: 31.87 | AH184: 21.70 | AI184: 26.78 | AJ184: 9.40 | AK184: 7.00 | AL184: 8.20 | AM184: 69.38 | AO184: 4 | AP184: 5 | AQ184: 4.50 | AS184: 0 | AT184: 0 | AU184: 0
A185: 182 | B185: 192 | C185: PC71 | D185: PK 1042 | E185: 66.67 | F185: 100.00 | G185: 83.33 | H185: 100.00 | I185: 100.00 | J185: 100.00 | K185: -20.00 | L185: 55.56 | M185: 77.78 | N185: 66.67 | O185: 20.00 | Q185: 7.33 | R185: 11.67 | S185: 9.50 | T185: 5.00 | U185: 4.67 | V185: 4.83 | W185: 49.12 | Y185: 33.00 | Z185: 36.00 | AA185: 34.50 | AB185: 30.00 | AC185: 27.00 | AD185: 28.50 | AE185: 17.39 | AG185: 31.30 | AH185: 21.80 | AI185: 26.55 | AJ185: 11.80 | AK185: 17.85 | AL185: 14.83 | AM185: 44.16 | AO185: 4 | AP185: 5 | AQ185: 4.50 | AS185: 0 | AT185: 0 | AU185: 0
A186: 183 | B186: 193 | C186: PC73 | D186: PK 416 | E186: 100.00 | F186: 88.89 | G186: 94.44 | H186: 66.67 | I186: 33.33 | J186: 50.00 | K186: 47.06 | L186: 0.00 | M186: 77.78 | N186: 38.89 | O186: 58.82 | Q186: 6.33 | R186: 12.00 | S186: 9.17 | T186: 8.00 | U186: 6.00 | V186: 7.00 | W186: 23.64 | Y186: 36.07 | Z186: 42.73 | AA186: 39.40 | AB186: 36.40 | AC186: 24.17 | AD186: 30.28 | AE186: 23.14 | AG186: 28.83 | AH186: 21.07 | AI186: 24.95 | AJ186: 12.00 | AK186: 9.00 | AL186: 10.50 | AM186: 57.92 | AO186: 5 | AP186: 5 | AQ186: 5.00 | AS186: 0 | AT186: 0 | AU186: 0
A187: 184 | B187: 194 | C187: PC75 | D187: PK 472 | E187: 11.11 | F187: 88.89 | G187: 50.00 | H187: 55.56 | I187: 0.00 | J187: 27.78 | K187: 44.44 | L187: 0.00 | M187: 66.67 | N187: 33.33 | O187: 33.33 | Q187: 5.67 | R187: 11.33 | S187: 8.50 | T187: 8.00 | U187: 6.00 | V187: 7.00 | W187: 17.65 | Y187: 29.47 | Z187: 34.30 | AA187: 31.88 | AB187: 28.80 | AC187: 15.50 | AD187: 22.15 | AE187: 30.53 | AG187: 35.13 | AH187: 20.20 | AI187: 27.67 | AJ187: 11.10 | AK187: 31.53 | AL187: 21.32 | AM187: 22.95 | AO187: 5 | AP187: 0 | AQ187: 2.50 | AS187: 0 | AT187: 1 | AU187: 0.5
A188: 185 | B188: 195 | C188: PC77 | D188: PUNJAB 1 | E188: 66.67 | F188: 100.00 | G188: 83.33 | H188: 66.67 | I188: 0.00 | J188: 33.33 | K188: 60.00 | L188: 66.67 | M188: 77.78 | N188: 72.22 | O188: 13.33 | Q188: 6.00 | R188: 8.67 | S188: 7.33 | T188: 5.67 | U188: 4.67 | V188: 5.17 | W188: 29.55 | Y188: 32.73 | Z188: 28.07 | AA188: 30.40 | AB188: 35.80 | AC188: 24.50 | AD188: 30.15 | AE188: 0.82 | AG188: 32.77 | AH188: 21.45 | AI188: 27.11 | AJ188: 17.27 | AK188: 21.00 | AL188: 19.13 | AM188: 29.42 | AO188: 5 | AP188: 5 | AQ188: 5.00 | AS188: 0 | AT188: 0 | AU188: 0
A189: 186 | B189: 196 | C189: PC78 | D189: PUSA 40 | E189: 66.67 | F189: 100.00 | G189: 83.33 | H189: 100.00 | I189: 100.00 | J189: 100.00 | K189: -20.00 | L189: 55.56 | M189: 66.67 | N189: 61.11 | O189: 26.67 | Q189: 6.50 | R189: 9.33 | S189: 7.92 | T189: 5.67 | U189: 10.00 | V189: 7.83 | W189: 1.05 | Y189: 35.80 | Z189: 30.47 | AA189: 33.13 | AB189: 32.47 | AC189: 26.00 | AD189: 29.23 | AE189: 11.77 | AG189: 30.50 | AH189: 24.43 | AI189: 27.47 | AJ189: 16.27 | AK189: 33.43 | AL189: 24.85 | AM189: 9.53 | AO189: 3 | AP189: 0 | AQ189: 1.50 | AS189: 0 | AT189: 1 | AU189: 0.5
A190: 187 | B190: 197 | C190: PC80 | D190: RSC 1046 | E190: 100.00 | F190: 88.89 | G190: 94.44 | H190: 66.67 | I190: 66.67 | J190: 66.67 | K190: 29.41 | L190: 0.00 | M190: 66.67 | N190: 33.33 | O190: 64.71 | Q190: 7.33 | R190: 13.00 | S190: 10.17 | T190: 5.00 | U190: 8.00 | V190: 6.50 | W190: 36.07 | Y190: 32.47 | Z190: 42.63 | AA190: 37.55 | AB190: 33.60 | AC190: 28.17 | AD190: 30.88 | AE190: 17.75 | AG190: 33.33 | AH190: 20.30 | AI190: 26.82 | AJ190: 15.83 | AK190: 17.60 | AL190: 16.72 | AM190: 37.66 | AO190: 5 | AP190: 0 | AQ190: 2.50 | AS190: 0 | AT190: 1 | AU190: 0.5
A191: 188 | B191: 198 | C191: PC82 | D191: SL 955 | E191: 11.11 | F191: 100.00 | G191: 55.56 | H191: 55.56 | I191: 100.00 | J191: 77.78 | K191: -40.00 | L191: 0.00 | M191: 77.78 | N191: 38.89 | O191: 30.00 | Q191: 6.00 | R191: 9.00 | S191: 7.50 | T191: 5.00 | U191: 6.00 | V191: 5.50 | W191: 26.67 | Y191: 31.67 | Z191: 33.17 | AA191: 32.42 | AB191: 30.53 | AC191: 30.00 | AD191: 30.27 | AE191: 6.63 | AG191: 27.40 | AH191: 22.40 | AI191: 24.90 | AJ191: 13.20 | AK191: 21.77 | AL191: 17.48 | AM191: 29.79 | AO191: 2 | AP191: 2 | AQ191: 2.00 | AS191: 0 | AT191: 0 | AU191: 0
A192: 189 | B192: 199 | C192: PC84 | D192: SL 958 | E192: 66.67 | F192: 77.78 | G192: 72.22 | H192: 66.67 | I192: 66.67 | J192: 66.67 | K192: 7.69 | L192: 66.67 | M192: 44.44 | N192: 55.56 | O192: 23.08 | Q192: 7.00 | R192: 13.00 | S192: 10.00 | T192: 7.00 | U192: 6.00 | V192: 6.50 | W192: 35.00 | Y192: 36.27 | Z192: 36.77 | AA192: 36.52 | AB192: 38.13 | AC192: 24.25 | AD192: 31.19 | AE192: 14.58 | AG192: 31.13 | AH192: 16.25 | AI192: 23.69 | AJ192: 10.43 | AK192: 27.67 | AL192: 19.05 | AM192: 19.59 | AO192: 5 | AP192: 5 | AQ192: 5.00 | AS192: 0 | AT192: 0 | AU192: 0
A193: 190 | B193: 200 | C193: PC85 | D193: SUMMER KING | E193: 66.67 | F193: 100.00 | G193: 83.33 | H193: 100.00 | I193: 100.00 | J193: 100.00 | K193: -20.00 | L193: 55.56 | M193: 100.00 | N193: 77.78 | O193: 6.67 | Q193: 6.67 | R193: 12.00 | S193: 9.33 | T193: 5.00 | U193: 5.00 | V193: 5.00 | W193: 46.43 | Y193: 36.23 | Z193: 41.43 | AA193: 38.83 | AB193: 35.33 | AC193: 24.00 | AD193: 29.67 | AE193: 23.61 | AG193: 30.53 | AH193: 24.47 | AI193: 27.50 | AJ193: 13.97 | AK193: 24.43 | AL193: 19.20 | AM193: 30.18 | AO193: 0 | AP193: 0 | AQ193: 0.00 | AS193: 0 | AT193: 1 | AU193: 0.5
A194: 191 | B194: 201 | C194: PC86 | D194: TAMS 38 | E194: 100.00 | F194: 77.78 | G194: 88.89 | H194: 66.67 | I194: 100.00 | J194: 83.33 | K194: 6.25 | L194: 0.00 | M194: 100.00 | N194: 50.00 | O194: 43.75 | Q194: 6.67 | R194: 9.67 | S194: 8.17 | T194: 8.00 | U194: 6.00 | V194: 7.00 | W194: 14.29 | Y194: 38.50 | Z194: 40.17 | AA194: 39.33 | AB194: 32.87 | AC194: 28.67 | AD194: 30.77 | AE194: 21.78 | AG194: 31.37 | AH194: 20.63 | AI194: 26.00 | AJ194: 14.70 | AK194: 22.87 | AL194: 18.78 | AM194: 27.76 | AO194: 5 | AP194: 5 | AQ194: 5.00 | AS194: 0 | AT194: 0 | AU194: 0
A195: 192 | B195: 202 | C195: PC87 | D195: TAMS 9821 | E195: 44.44 | F195: 88.89 | G195: 66.67 | H195: 44.44 | I195: 100.00 | J195: 72.22 | K195: -8.33 | L195: 66.67 | M195: 100.00 | N195: 83.33 | O195: -25.00 | Q195: 6.33 | R195: 9.00 | S195: 7.67 | T195: 6.00 | U195: 9.00 | V195: 7.50 | W195: 2.17 | Y195: 37.47 | Z195: 30.97 | AA195: 34.22 | AB195: 35.60 | AC195: 22.25 | AD195: 28.93 | AE195: 15.47 | AG195: 31.47 | AH195: 23.65 | AI195: 27.56 | AJ195: 10.73 | AK195: 33.20 | AL195: 21.97 | AM195: 20.29 | AO195: 0 | AP195: 0 | AQ195: 0.00 | AS195: 0 | AT195: 1 | AU195: 0.5
A196: 193 | B196: 203 | C196: PC88 | D196: TS 9976 | E196: 0.00 | F196: 77.78 | G196: 38.89 | H196: 0.00 | I196: 66.67 | J196: 33.33 | K196: 14.29 | L196: 0.00 | M196: 77.78 | N196: 38.89 | O196: -0.00 | Q196: 6.00 | R196: 14.00 | S196: 10.00 | T196: 6.00 | U196: 7.00 | V196: 6.50 | W196: =((S196-V196)/S196)*100 -> 35.00 | Y196: 35.07 | Z196: 42.27 | AA196: 38.67 | AB196: 32.77 | AC196: 23.50 | AD196: 28.13 | AE196: 27.24 | AG196: 33.43 | AH196: 19.13 | AI196: 26.28 | AJ196: 12.33 | AK196: 16.50 | AL196: 14.42 | AM196: 45.15 | AO196: 4 | AP196: 5 | AQ196: 4.50 | AS196: 0 | AT196: 0 | AU196: 0
A197: 194 | B197: 204 | C197: PC89 | D197: VLC 47 (ALMOR) | E197: 77.78 | F197: 100.00 | G197: =AVERAGE(E197:F197) -> 88.89 | H197: 77.78 | I197: 100.00 | J197: =AVERAGE(H197:I197) -> 88.89 | K197: 0.00 | L197: 22.22 | M197: 100.00 | N197: =AVERAGE(L197:M197) -> 61.11 | O197: 31.25 | Q197: 6.50 | R197: 13.33 | S197: =AVERAGE(Q197:R197) -> 9.92 | T197: 8.00 | U197: 8.00 | V197: =AVERAGE(T197:U197) -> 8.00 | W197: 19.33 | Y197: 36.97 | Z197: 35.47 | AA197: =AVERAGE(Y197:Z197) -> 36.22 | AB197: 32.93 | AC197: 16.83 | AD197: =AVERAGE(AB197:AC197) -> 24.88 | AE197: =((AA197-AD197)/AA197)*100 -> 31.29 | AG197: 31.37 | AH197: 22.35 | AI197: =AVERAGE(AG197:AH197) -> 26.86 | AJ197: 11.43 | AK197: 39.47 | AL197: =AVERAGE(AJ197:AK197) -> 25.45 | AM197: =((AI197-AL197)/AI197)*100 -> 5.24 | AO197: 1 | AP197: 0 | AQ197: =AVERAGE(AO197:AP197) -> 0.50 | AS197: 0 | AT197: 1 | AU197: =AVERAGE(AS197:AT197) -> 0.5
A198: 195 | B198: 205 | C198: PC90 | D198: VLC 86 | E198: 77.78 | F198: 66.67 | G198: 72.22 | H198: 100.00 | I198: 0.00 | J198: 50.00 | K198: 30.77 | L198: 66.67 | M198: 66.67 | N198: 66.67 | O198: 7.69 | Q198: 7.00 | R198: 8.50 | S198: 7.75 | T198: 8.00 | U198: 7.00 | V198: 7.50 | W198: 3.23 | Y198: 32.47 | Z198: 25.27 | AA198: 28.87 | AB198: 36.57 | AC198: 25.97 | AD198: 31.27 | AE198: -8.31 | AG198: 32.17 | AH198: 18.40 | AI198: 25.28 | AJ198: 9.37 | AK198: 22.37 | AL198: 15.87 | AM198: 37.24 | AO198: 3 | AP198: 3 | AQ198: 3.00 | AS198: 0 | AT198: 0 | AU198: 0
A199: 196 | B199: 206 | C199: PC91 | D199: VLS 65 (ALMOR) | E199: 0.00 | F199: 55.56 | G199: 27.78 | H199: 0.00 | I199: 0.00 | J199: 0.00 | K199: 100.00 | L199: 0.00 | M199: 44.44 | N199: 22.22 | O199: 20.00 | Q199: 7.00 | R199: 9.00 | S199: 8.00 | T199: 7.00 | U199: 7.00 | V199: 7.00 | W199: 12.50 | Y199: 37.47 | Z199: 36.80 | AA199: 37.13 | AB199: 37.07 | AC199: 25.67 | AD199: 31.37 | AE199: 15.53 | AG199: 29.97 | AH199: 23.17 | AI199: 26.57 | AJ199: 11.50 | AK199: 24.83 | AL199: 18.17 | AM199: 31.62 | AO199: 4 | AP199: 5 | AQ199: 4.50 | AS199: 0 | AT199: 0 | AU199: 0
A200: 197 | B200: 207 | C200: PC94 | D200: YVMVR 1 | E200: 44.44 | F200: 88.89 | G200: 66.67 | H200: 66.67 | I200: 66.67 | J200: 66.67 | K200: -0.00 | L200: 33.33 | M200: 77.78 | N200: 55.56 | O200: 16.67 | Q200: 5.67 | R200: 6.00 | S200: 5.83 | T200: 6.33 | U200: 6.00 | V200: 6.17 | W200: -5.71 | Y200: 38.40 | Z200: 29.23 | AA200: 33.82 | AB200: 30.93 | AC200: 12.00 | AD200: 21.47 | AE200: 36.52 | AG200: 31.67 | AH200: 23.30 | AI200: 27.48 | AJ200: 16.77 | AK200: 18.20 | AL200: 17.48 | AM200: 36.39 | AO200: 4 | AP200: 5 | AQ200: 4.50 | AS200: 0 | AT200: 0 | AU200: 0
... 1 more rows

Sheet Table S3
A1: Table S3 Eigenvalues and eigenvectors of the quantitative traits at the seedling stage at a NaCl concentration of 200 mM.
A2: Parameters | B2: Eigenvalue | C2: Percentage | D2: Eigenvectors
D3: PC1 | E3: PC2
A4: NL_MEAN_200mM | B4: 1.195304 | C4: 39.84 | D4: 0.71172 | E4: 0.01783
A5: SL_MEAN_200mM | B5: 1.005313 | C5: 33.51 | D5: 0.32069 | E5: 0.88118
A6: SPAD_MEAN_200mM | B6: 0.799382 | C6: 26.65 | D6: 0.62499 | E6: -0.47245

Sheet Table S4
A1: Table S4 List of significant marker‒trait associations with -log10 (P) ≥ 3.0 for germination and seedling stage traits of 198 soybean accessions grown in E1 and E2 analyzed via the FarmCPU and BLINK GWASs.
A2: Stage | B2: Traits | C2: Experiment and Treatment | D2: Model | E2: SNP | F2: Chr. | G2: Position | H2: P-value | I2: -log10 (P) | J2: MAF | K2: SNP Effect | L2: PVE (%)
A3: Germination | B3: Δ%_GP_100mM | C3: E1&E2(100mM) | D3: FarmCPU | E3: rs.Gm07.39079550 | F3: GM07 | G3: 39079550 | H3: 1.577591582e-05 | I3: =-LOG10(H3) -> 4.80 | J3: 0.08115183246 | K3: -18.39182752 | L3: -
E4: rs.Gm07.39090791 | F4: GM07 | G4: 39090791 | H4: 6.14530558e-06 | I4: 5.21 | J4: 0.06806282723 | K4: -20.3839626 | L4: -
E5: rs.Gm11.33334736 | F5: GM11 | G5: 33334736 | H5: 9.594826904e-05 | I5: 4.02 | J5: 0.1910994764 | K5: -12.30697892 | L5: -
E6: rs.Gm16.6978282 | F6: GM16 | G6: 6978282 | H6: 2.868316146e-06 | I6: 5.54 | J6: 0.07329842932 | K6: -20.17588331 | L6: -
D7: BLINK | E7: rs.Gm07.39079550 | F7: GM07 | G7: 39079550 | H7: 8.797441854e-06 | I7: 5.06 | J7: 0.08115183246 | K7: -18.39182752 | L7: -
E8: rs.Gm07.39090791 | F8: GM07 | G8: 39090791 | H8: 3.260456581e-06 | I8: 5.49 | J8: 0.06806282723 | K8: -20.3839626 | L8: -
E9: rs.Gm11.33334736 | F9: GM11 | G9: 33334736 | H9: 5.885881101e-05 | I9: 4.23 | J9: 0.1910994764 | K9: -12.30697892 | L9: -
E10: rs.Gm16.6978282 | F10: GM16 | G10: 6978282 | H10: 1.461784007e-06 | I10: 5.84 | J10: 0.07329842932 | K10: -20.17588331 | L10: 35.21
E11: rs.Gm16.13340148 | F11: GM16 | G11: 13340148 | H11: 7.927518603e-05 | I11: 4.10 | J11: 0.2434554974 | K11: 18.1411312 | L11: -
E12: rs.Gm16.14202231 | F12: GM16 | G12: 14202231 | H12: 6.646007108e-05 | I12: 4.18 | J12: 0.3115183246 | K12: 18.87393826 | L12: -
B13: Δ%_GP_200mM | C13: E1&E2(200mM) | D13: FarmCPU | E13: rs.Gm05.9457555 | F13: GM05 | G13: 9457555 | H13: 6.627877272e-05 | I13: 4.18 | J13: 0.09947643979 | K13: 17.21992844 | L13: -
E14: rs.Gm10.35460454 | F14: GM10 | G14: 35460454 | H14: 3.136803138e-05 | I14: 4.50 | J14: 0.08376963351 | K14: 21.37268997 | L14: -
E15: rs.Gm18.1916285 | F15: GM18 | G15: 1916285 | H15: 9.792630542e-05 | I15: 4.01 | J15: 0.05235602094 | K15: 22.88619477 | L15: -
E16: rs.Gm20.45859448 | F16: GM20 | G16: 45859448 | H16: 9.114458839e-05 | I16: 4.04 | J16: 0.05759162304 | K16: 22.68244475 | L16: -
D17: BLINK | E17: rs.Gm05.9457555 | F17: GM05 | G17: 9457555 | H17: 3.607139082e-05 | I17: 4.44 | J17: 0.09947643979 | K17: 17.21992844 | L17: -
E18: rs.Gm10.35460454 | F18: GM10 | G18: 35460454 | H18: 1.628295804e-05 | I18: 4.79 | J18: 0.08376963351 | K18: 21.37268997 | L18: -
E19: rs.Gm18.1916285 | F19: GM18 | G19: 1916285 | H19: 5.462692335e-05 | I19: 4.26 | J19: 0.05235602094 | K19: 22.88619477 | L19: -
E20: rs.Gm20.45859448 | F20: GM20 | G20: 45859448 | H20: 5.061363143e-05 | I20: 4.30 | J20: 0.05759162304 | K20: 22.68244475 | L20: -
A21: Seedling | B21: Δ%_NL_200mM | C21: E1&E2(200mM) | D21: FarmCPU | E21: rs.Gm01.3888173 | F21: GM01 | G21: 3888173 | H21: 0.000379192851 | I21: 3.42 | J21: 0.2121212121 | K21: -9.553848336 | L21: -
E22: rs.Gm01.5695112 | F22: GM01 | G22: 5695112 | H22: 0.0009109080468 | I22: 3.04 | J22: 0.1035353535 | K22: 7.16103392 | L22: -
E23: rs.Gm01.5695181 | F23: GM01 | G23: 5695181 | H23: 0.0008685502832 | I23: 3.06 | J23: 0.101010101 | K23: 7.231625983 | L23: -
E24: rs.Gm06.12647562 | F24: GM06 | G24: 12647562 | H24: 0.0001211454808 | I24: 3.92 | J24: 0.1767676768 | K24: -7.761388781 | L24: -
E25: rs.Gm06.12769083 | F25: GM06 | G25: 12769083 | H25: 0.000106881716 | I25: 3.97 | J25: 0.1843434343 | K25: -7.541027124 | L25: -
E26: rs.Gm13.11959852 | F26: GM13 | G26: 11959852 | H26: 0.0006050365591 | I26: 3.22 | J26: 0.1994949495 | K26: 5.659054017 | L26: -
E27: rs.Gm18.47911124 | F27: GM18 | G27: 47911124 | H27: 0.000382607414 | I27: 3.42 | J27: 0.08838383838 | K27: -12.43426155 | L27: -
D28: BLINK | E28: rs.Gm01.3888173 | F28: GM01 | G28: 3888173 | H28: 0.0002512998751 | I28: 3.60 | J28: 0.2121212121 | K28: -9.553848336 | L28: -
E29: rs.Gm06.12647562 | F29: GM06 | G29: 12647562 | H29: 7.564134917e-05 | I29: 4.12 | J29: 0.1767676768 | K29: -7.761388781 | L29: -
E30: rs.Gm06.12769083 | F30: GM06 | G30: 12769083 | H30: 6.630010963e-05 | I30: 4.18 | J30: 0.1843434343 | K30: -7.541027124 | L30: -
E31: rs.Gm18.47911124 | F31: GM18 | G31: 47911124 | H31: 0.000253681523 | I31: 3.60 | J31: 0.08838383838 | K31: -12.43426155 | L31: -
B32: Δ%_SL_200mM | C32: E1&E2(200mM) | D32: FarmCPU | E32: rs.Gm01.6204693 | F32: GM01 | G32: 6204693 | H32: 6.837867508e-05 | I32: 4.17 | J32: 0.1439393939 | K32: 6.869889138 | L32: -
E33: rs.Gm01.6305657 | F33: GM01 | G33: 6305657 | H33: 0.0006725430237 | I33: 3.17 | J33: 0.1085858586 | K33: 5.133360456 | L33: -
E34: rs.Gm01.27321577 | F34: GM01 | G34: 27321577 | H34: 0.0006105545286 | I34: 3.21 | J34: 0.2348484848 | K34: 4.181793932 | L34: -
E35: rs.Gm01.27321652 | F35: GM01 | G35: 27321652 | H35: 0.0006105545286 | I35: =-LOG10(H35) -> 3.21 | J35: 0.2348484848 | K35: 4.181793932 | L35: -
E36: rs.Gm01.27321672 | F36: GM01 | G36: 27321672 | H36: 0.0006105545286 | I36: 3.21 | J36: 0.2348484848 | K36: 4.181793932 | L36: -
E37: rs.Gm11.37428096 | F37: GM11 | G37: 37428096 | H37: 0.0008619073518 | I37: 3.06 | J37: 0.4393939394 | K37: -9.09535521 | L37: -
E38: rs.Gm11.37469933 | F38: GM11 | G38: 37469933 | H38: 0.000133502751 | I38: 3.87 | J38: 0.1212121212 | K38: 5.773809199 | L38: -
E39: rs.Gm14.7300104 | F39: GM14 | G39: 7300104 | H39: 0.0004544587703 | I39: 3.34 | J39: 0.404040404 | K39: 3.784589147 | L39: -
E40: rs.Gm14.41787022 | F40: GM14 | G40: 41787022 | H40: 0.0003995040529 | I40: 3.40 | J40: 0.297979798 | K40: 4.560450953 | L40: -
E41: rs.Gm15.27233669 | F41: GM15 | G41: 27233669 | H41: 0.0007310873707 | I41: 3.14 | J41: 0.2853535354 | K41: 4.695636268 | L41: -
E42: rs.Gm20.30040900 | F42: GM20 | G42: 30040900 | H42: 0.0001110406365 | I42: 3.95 | J42: 0.1439393939 | K42: 6.614451715 | L42: -
D43: BLINK | E43: rs.Gm01.6204693 | F43: GM01 | G43: 6204693 | H43: 4.539052501e-05 | I43: 4.34 | J43: 0.1439393939 | K43: 6.869889138 | L43: -
E44: rs.Gm11.37469933 | F44: GM11 | G44: 37469933 | H44: 9.119047845e-05 | I44: 4.04 | J44: 0.1212121212 | K44: 5.773809199 | L44: -
E45: rs.Gm14.41787022 | F45: GM14 | G45: 41787022 | H45: 0.0002859691429 | I45: 3.54 | J45: 0.297979798 | K45: 4.560450953 | L45: -
E46: rs.Gm20.30040900 | F46: GM20 | G46: 30040900 | H46: 7.525282732e-05 | I46: 4.12 | J46: 0.1439393939 | K46: 6.614451715 | L46: -
B47: Δ%_SPAD_200mM | C47: E1&E2(200mM) | D47: FarmCPU | E47: rs.Gm01.43332855 | F47: GM01 | G47: 43332855 | H47: 0.000350675255 | I47: 3.46 | J47: 0.4419191919 | K47: 6.000468108 | L47: -
E48: rs.Gm03.38716419 | F48: GM03 | G48: 38716419 | H48: 0.00030906317 | I48: 3.51 | J48: 0.07070707071 | K48: 8.886880448 | L48: -
E49: rs.Gm03.39710939 | F49: GM03 | G49: 39710939 | H49: 0.0003428610709 | I49: 3.46 | J49: 0.2070707071 | K49: 6.663933888 | L49: -
D50: BLINK | E50: rs.Gm01.43332855 | F50: GM01 | G50: 43332855 | H50: 0.0002352120517 | I50: 3.63 | J50: 0.4419191919 | K50: 6.000468108 | L50: -
E51: rs.Gm03.38716419 | F51: GM03 | G51: 38716419 | H51: 0.0002059908084 | I51: 3.69 | J51: 0.07070707071 | K51: 8.886880448 | L51: -
E52: rs.Gm03.39710939 | F52: GM03 | G52: 39710939 | H52: 0.0002297107511 | I52: 3.64 | J52: 0.2070707071 | K52: 6.663933888 | L52: -
B53: LSS_MEAN | C53: E1&E2(200mM) | D53: FarmCPU | E53: rs.Gm03.39710939 | F53: GM03 | G53: 39710939 | H53: 1.194112818e-07 | I53: 6.92 | J53: 0.2070707071 | K53: 0.643090711 | L53: -
E54: rs.Gm09.843177 | F54: GM09 | G54: 843177 | H54: 7.045339683e-08 | I54: 7.15 | J54: 0.1035353535 | K54: -1.09782324 | L54: -
E55: rs.Gm11.32960053 | F55: GM11 | G55: 32960053 | H55: 8.851392482e-05 | I55: 4.05 | J55: 0.2398989899 | K55: 0.558245475 | L55: -
E56: rs.Gm13.25913943 | F56: GM13 | G56: 25913943 | H56: 2.334789179e-05 | I56: 4.63 | J56: 0.07828282828 | K56: 1.077417739 | L56: -
E57: rs.Gm18.5784618 | F57: GM18 | G57: 5784618 | H57: 1.770873786e-08 | I57: 7.75 | J57: 0.07575757576 | K57: -1.058875969 | L57: -
D58: BLINK | E58: rs.Gm03.39710939 | F58: GM03 | G58: 39710939 | H58: 3.109632198e-11 | I58: 10.51 | J58: 0.2070707071 | K58: 0.971831812 | L58: 35.07
E59: rs.Gm09.843177 | F59: GM09 | G59: 843177 | H59: 2.516475233e-06 | I59: 5.60 | J59: 0.1035353535 | K59: -1.149426519 | L59: -
E60: rs.Gm12.22215839 | F60: GM12 | G60: 22215839 | H60: 9.888187005e-05 | I60: 4.00 | J60: 0.2297979798 | K60: -0.689469478 | L60: -
B61: SFS_MEAN | C61: E1&E2(200mM) | D61: FarmCPU | E61: rs.Gm03.39710939 | F61: GM03 | G61: 39710939 | H61: 1.182682296e-07 | I61: 6.93 | J61: 0.2070707071 | K61: -0.126525416 | L61: -
E62: rs.Gm07.18104975 | F62: GM07 | G62: 18104975 | H62: 2.045060532e-05 | I62: 4.69 | J62: 0.3383838384 | K62: -0.102958163 | L62: -
E63: rs.Gm10.44534986 | F63: GM10 | G63: 44534986 | H63: 1.371979931e-05 | I63: 4.86 | J63: 0.05808080808 | K63: -0.197772154 | L63: -
E64: rs.Gm18.1266012 | F64: GM18 | G64: 1266012 | H64: 2.945621359e-05 | I64: 4.53 | J64: 0.1388888889 | K64: 0.082338988 | L64: -
E65: rs.Gm18.6028270 | F65: GM18 | G65: 6028270 | H65: 5.800078593e-07 | I65: 6.24 | J65: 0.1616161616 | K65: -0.110071615 | L65: -
E66: rs.Gm18.25872461 | F66: GM18 | G66: 25872461 | H66: 1.354698841e-05 | I66: 4.87 | J66: 0.1313131313 | K66: 0.129732886 | L66: -
D67: BLINK | E67: rs.Gm03.39710939 | F67: GM03 | G67: 39710939 | H67: 7.49008268e-09 | I67: =-LOG10(H67) -> 8.13 | J67: 0.2070707071 | K67: -0.153670199 | L67: 43.75
E68: rs.Gm04.44237901 | F68: GM04 | G68: 44237901 | H68: 1.526042647e-05 | I68: 4.82 | J68: 0.1060606061 | K68: -0.121177149 | L68: -
H70: NOTE: | I70: Here, eight SNPs exhibited –log10(P) values ≥ 5.67

Sheet Table S5
A1: Table S5 Epistatic SNP × SNP interactions for germination and seedling stage traits of 198 soybean accessions grown in E1 and E2.
A2: Stage | B2: Trait | C2: Main effect SNP | D2: CHR | E2: SNP | F2: BEST_CHISQ | G2: BEST_CHR | H2: BEST_SNP
A3: Germination | B3: Δ%_GP_100mM | C3: rs.Gm16.6978282 | D3: GM06 | E3: rs.Gm06.7970298 | F3: 5.235 | G3: GM16 | H3: rs.Gm16.6978282
D4: GM10 | E4: rs.Gm10.3085804 | F4: 9.152 | G4: GM16 | H4: rs.Gm16.6978282
D5: GM10 | E5: rs.Gm10.3086065 | F5: 8.393 | G5: GM16 | H5: rs.Gm16.6978282
D6: GM10 | E6: rs.Gm10.39192045 | F6: 10.91 | G6: GM16 | H6: rs.Gm16.6978282
D7: GM16 | E7: rs.Gm16.4513774 | F7: 6.844 | G7: GM16 | H7: rs.Gm16.6978282
D8: GM16 | E8: rs.Gm16.4548727 | F8: 7.541 | G8: GM16 | H8: rs.Gm16.6978282
D9: GM16 | E9: rs.Gm16.4558926 | F9: 7.207 | G9: GM16 | H9: rs.Gm16.6978282
D10: GM16 | E10: rs.Gm16.4603145 | F10: 6.501 | G10: GM16 | H10: rs.Gm16.6978282
D11: GM16 | E11: rs.Gm16.4606640 | F11: 6.236 | G11: GM16 | H11: rs.Gm16.6978282
D12: GM16 | E12: rs.Gm16.4606656 | F12: 7.838 | G12: GM16 | H12: rs.Gm16.6978282
D13: GM16 | E13: rs.Gm16.6978282 | F13: 18.62 | G13: GM02 | H13: rs.Gm02.14916620
D14: GM17 | E14: rs.Gm17.6721446 | F14: 6.917 | G14: GM16 | H14: rs.Gm16.6978282
D15: GM17 | E15: rs.Gm17.6721716 | F15: 6.386 | G15: GM16 | H15: rs.Gm16.6978282
D16: GM17 | E16: rs.Gm17.6754718 | F16: 5.187 | G16: GM16 | H16: rs.Gm16.6978282
D17: GM17 | E17: rs.Gm17.6754754 | F17: 6.541 | G17: GM16 | H17: rs.Gm16.6978282
D18: GM17 | E18: rs.Gm17.6893709 | F18: 6.268 | G18: GM16 | H18: rs.Gm16.6978282
D19: GM18 | E19: rs.Gm18.55166402 | F19: 5.17 | G19: GM16 | H19: rs.Gm16.6978282
D20: GM18 | E20: rs.Gm18.55843916 | F20: 5.746 | G20: GM16 | H20: rs.Gm16.6978282
D21: GM20 | E21: rs.Gm20.42209722 | F21: 11.81 | G21: GM16 | H21: rs.Gm16.6978282
D22: GM20 | E22: rs.Gm20.42835805 | F22: 6.547 | G22: GM16 | H22: rs.Gm16.6978282
D23: GM20 | E23: rs.Gm20.42946208 | F23: 6.533 | G23: GM16 | H23: rs.Gm16.6978282
D24: GM20 | E24: rs.Gm20.42957419 | F24: 9.339 | G24: GM16 | H24: rs.Gm16.6978282
D25: GM20 | E25: rs.Gm20.43004755 | F25: 6.099 | G25: GM16 | H25: rs.Gm16.6978282
D26: GM20 | E26: rs.Gm20.43004767 | F26: 6.099 | G26: GM16 | H26: rs.Gm16.6978282
D27: GM20 | E27: rs.Gm20.43228974 | F27: 7.242 | G27: GM16 | H27: rs.Gm16.6978282
C28: rs.Gm07.39090791 | D28: GM06 | E28: rs.Gm06.48612463 | F28: 7.297 | G28: GM07 | H28: rs.Gm07.39090791
D29: GM06 | E29: rs.Gm06.48615662 | F29: 7.116 | G29: GM07 | H29: rs.Gm07.39090791
D30: GM07 | E30: rs.Gm07.39090791 | F30: 11.18 | G30: GM09 | H30: rs.Gm09.21628729
C31: rs.Gm07.39079550 | D31: GM02 | E31: rs.Gm02.15324687 | F31: 7.962 | G31: GM07 | H31: rs.Gm07.39079550
D32: GM07 | E32: rs.Gm07.39079550 | F32: 11.08 | G32: GM09 | H32: rs.Gm20.41547780
C33: rs.Gm11.33334736 | D33: GM11 | E33: rs.Gm11.33334736 | F33: 17.5 | G33: GM18 | H33: rs.Gm18.56023158
D34: GM18 | E34: rs.Gm18.55556316 | F34: 16.23 | G34: GM11 | H34: rs.Gm11.33334736
D35: GM18 | E35: rs.Gm18.55611498 | F35: 13.85 | G35: GM11 | H35: rs.Gm11.33334736
D36: GM18 | E36: rs.Gm18.56023158 | F36: 17.5 | G36: GM11 | H36: rs.Gm11.33334736
B37: Δ%_GP_200mM | C37: rs.Gm10.35460454 | D37: GM02 | E37: rs.Gm02.6940219 | F37: 49.02 | G37: GM10 | H37: rs.Gm10.35460454
D38: GM02 | E38: rs.Gm02.6940226 | F38: 49.22 | G38: GM10 | H38: rs.Gm10.35460454
D39: GM02 | E39: rs.Gm02.6940238 | F39: 49.22 | G39: GM10 | H39: rs.Gm10.35460454
D40: GM02 | E40: rs.Gm02.6940249 | F40: 49.02 | G40: GM10 | H40: rs.Gm10.35460454
D41: GM02 | E41: rs.Gm02.6940269 | F41: 49.02 | G41: GM10 | H41: rs.Gm10.35460454
D42: GM02 | E42: rs.Gm02.6940274 | F42: 49.02 | G42: GM10 | H42: rs.Gm10.35460454
D43: GM02 | E43: rs.Gm02.6940322 | F43: 49.02 | G43: GM10 | H43: rs.Gm10.35460454
D44: GM02 | E44: rs.Gm02.22556387 | F44: 9.42 | G44: GM10 | H44: rs.Gm10.35460454
D45: GM03 | E45: rs.Gm03.1097866 | F45: 4.75 | G45: GM10 | H45: rs.Gm10.35460454
D46: GM03 | E46: rs.Gm03.5145053 | F46: 42.76 | G46: GM10 | H46: rs.Gm10.35460454
D47: GM03 | E47: rs.Gm03.8289431 | F47: 19.09 | G47: GM10 | H47: rs.Gm10.35460454
D48: GM03 | E48: rs.Gm03.9204241 | F48: 19.15 | G48: GM10 | H48: rs.Gm10.35460454
D49: GM03 | E49: rs.Gm03.9204254 | F49: 19.15 | G49: GM10 | H49: rs.Gm10.35460454
D50: GM03 | E50: rs.Gm03.10934827 | F50: 19.28 | G50: GM10 | H50: rs.Gm10.35460454
D51: GM03 | E51: rs.Gm03.12959045 | F51: 18.89 | G51: GM10 | H51: rs.Gm10.35460454
D52: GM03 | E52: rs.Gm03.14148452 | F52: 18.36 | G52: GM10 | H52: rs.Gm10.35460454
D53: GM03 | E53: rs.Gm03.14509804 | F53: 18.01 | G53: GM10 | H53: rs.Gm10.35460454
D54: GM03 | E54: rs.Gm03.15348162 | F54: 19.03 | G54: GM10 | H54: rs.Gm10.35460454
D55: GM03 | E55: rs.Gm03.15895982 | F55: 19.2 | G55: GM10 | H55: rs.Gm10.35460454
D56: GM03 | E56: rs.Gm03.15907257 | F56: 18.94 | G56: GM10 | H56: rs.Gm10.35460454
D57: GM03 | E57: rs.Gm03.15907258 | F57: 17.67 | G57: GM10 | H57: rs.Gm10.35460454
D58: GM03 | E58: rs.Gm03.16310027 | F58: 22.21 | G58: GM10 | H58: rs.Gm10.35460454
D59: GM03 | E59: rs.Gm03.16310056 | F59: 20.44 | G59: GM10 | H59: rs.Gm10.35460454
D60: GM06 | E60: rs.Gm06.8988432 | F60: 38.85 | G60: GM10 | H60: rs.Gm10.35460454
D61: GM06 | E61: rs.Gm06.18522579 | F61: 8.791 | G61: GM10 | H61: rs.Gm10.35460454
D62: GM07 | E62: rs.Gm07.36830929 | F62: 16.87 | G62: GM10 | H62: rs.Gm10.35460454
D63: GM08 | E63: rs.Gm08.7897143 | F63: 67.49 | G63: GM10 | H63: rs.Gm10.35460454
D64: GM08 | E64: rs.Gm08.8235583 | F64: 9.299 | G64: GM10 | H64: rs.Gm10.35460454
D65: GM10 | E65: rs.Gm10.17001194 | F65: 40.53 | G65: GM10 | H65: rs.Gm10.35460454
D66: GM10 | E66: rs.Gm10.32971008 | F66: 7.555 | G66: GM10 | H66: rs.Gm10.35460454
D67: GM10 | E67: rs.Gm10.33047563 | F67: 11.17 | G67: GM10 | H67: rs.Gm10.35460454
D68: GM10 | E68: rs.Gm10.33061258 | F68: 11.17 | G68: GM10 | H68: rs.Gm10.35460454
D69: GM10 | E69: rs.Gm10.33123843 | F69: 4.925 | G69: GM10 | H69: rs.Gm10.35460454
D70: GM10 | E70: rs.Gm10.33163817 | F70: 10.89 | G70: GM10 | H70: rs.Gm10.35460454
D71: GM10 | E71: rs.Gm10.33199707 | F71: 7.736 | G71: GM10 | H71: rs.Gm10.35460454
D72: GM10 | E72: rs.Gm10.33199741 | F72: 7.736 | G72: GM10 | H72: rs.Gm10.35460454
D73: GM10 | E73: rs.Gm10.33199808 | F73: 7.736 | G73: GM10 | H73: rs.Gm10.35460454
D74: GM10 | E74: rs.Gm10.33397424 | F74: 11.1 | G74: GM10 | H74: rs.Gm10.35460454
D75: GM10 | E75: rs.Gm10.33647097 | F75: 11.05 | G75: GM10 | H75: rs.Gm10.35460454
D76: GM10 | E76: rs.Gm10.34901268 | F76: 4.76 | G76: GM10 | H76: rs.Gm10.35460454
D77: GM10 | E77: rs.Gm10.35160141 | F77: 5.259 | G77: GM10 | H77: rs.Gm10.35460454
D78: GM10 | E78: rs.Gm10.35460454 | F78: 433.7 | G78: GM16 | H78: rs.Gm16.33616912
D79: GM10 | E79: rs.Gm10.35696063 | F79: 11.17 | G79: GM10 | H79: rs.Gm10.35460454
D80: GM13 | E80: rs.Gm13.17076959 | F80: 27.02 | G80: GM10 | H80: rs.Gm10.35460454
D81: GM13 | E81: rs.Gm13.17984829 | F81: 18.93 | G81: GM10 | H81: rs.Gm10.35460454
D82: GM13 | E82: rs.Gm13.33406206 | F82: 171.2 | G82: GM10 | H82: rs.Gm10.35460454
D83: GM13 | E83: rs.Gm13.33406224 | F83: 171.2 | G83: GM10 | H83: rs.Gm10.35460454
D84: GM15 | E84: rs.Gm15.36338445 | F84: 11.98 | G84: GM10 | H84: rs.Gm10.35460454
D85: GM16 | E85: rs.Gm16.9190116 | F85: 43.64 | G85: GM10 | H85: rs.Gm10.35460454
D86: GM16 | E86: rs.Gm16.9362876 | F86: 45.36 | G86: GM10 | H86: rs.Gm10.35460454
D87: GM16 | E87: rs.Gm16.9420603 | F87: 53.62 | G87: GM10 | H87: rs.Gm10.35460454
D88: GM16 | E88: rs.Gm16.9420628 | F88: 53.85 | G88: GM10 | H88: rs.Gm10.35460454
D89: GM16 | E89: rs.Gm16.10856615 | F89: 34.33 | G89: GM10 | H89: rs.Gm10.35460454
D90: GM16 | E90: rs.Gm16.28210148 | F90: 14.23 | G90: GM10 | H90: rs.Gm10.35460454
D91: GM16 | E91: rs.Gm16.32673974 | F91: 32.5 | G91: GM10 | H91: rs.Gm10.35460454
D92: GM16 | E92: rs.Gm16.32673986 | F92: 32.99 | G92: GM10 | H92: rs.Gm10.35460454
D93: GM16 | E93: rs.Gm16.32674034 | F93: 32.69 | G93: GM10 | H93: rs.Gm10.35460454
D94: GM16 | E94: rs.Gm16.37107284 | F94: 11.65 | G94: GM10 | H94: rs.Gm10.35460454
D95: GM17 | E95: rs.Gm17.38641819 | F95: 36.68 | G95: GM10 | H95: rs.Gm10.35460454
D96: GM19 | E96: rs.Gm19.29898424 | F96: 21.1 | G96: GM10 | H96: rs.Gm10.35460454
D97: GM20 | E97: rs.Gm20.15968704 | F97: 18.78 | G97: GM10 | H97: rs.Gm10.35460454
C98: rs.Gm05.9457555 | D98: GM03 | E98: rs.Gm03.35224551 | F98: 33.04 | G98: GM05 | H98: rs.Gm05.9457555
D99: GM04 | E99: rs.Gm04.7188693 | F99: 67.85 | G99: GM05 | H99: rs.Gm05.9457555
D100: GM04 | E100: rs.Gm04.14018076 | F100: 10.72 | G100: GM05 | H100: rs.Gm05.9457555
D101: GM05 | E101: rs.Gm05.9457555 | F101: 458.4 | G101: GM10 | H101: rs.Gm10.21857428
D102: GM10 | E102: rs.Gm10.13902274 | F102: 93.16 | G102: GM05 | H102: rs.Gm05.9457555
D103: GM18 | E103: rs.Gm18.41485683 | F103: 7.227 | G103: GM05 | H103: rs.Gm05.9457555
C104: rs.Gm20.45859448 | D104: GM01 | E104: rs.Gm01.18785533 | F104: 86.03 | G104: GM20 | H104: rs.Gm20.45859448
D105: GM01 | E105: rs.Gm01.19585499 | F105: 23.65 | G105: GM20 | H105: rs.Gm20.45859448
D106: GM01 | E106: rs.Gm01.22895793 | F106: 25.14 | G106: GM20 | H106: rs.Gm20.45859448
D107: GM01 | E107: rs.Gm01.22895812 | F107: 25.14 | G107: GM20 | H107: rs.Gm20.45859448
D108: GM01 | E108: rs.Gm01.22895827 | F108: 25.14 | G108: GM20 | H108: rs.Gm20.45859448
D109: GM01 | E109: rs.Gm01.23501556 | F109: 22.87 | G109: GM20 | H109: rs.Gm20.45859448
D110: GM02 | E110: rs.Gm02.11915636 | F110: 7.972 | G110: GM20 | H110: rs.Gm20.45859448
D111: GM02 | E111: rs.Gm02.11915669 | F111: 7.972 | G111: GM20 | H111: rs.Gm20.45859448
D112: GM02 | E112: rs.Gm02.21551802 | F112: 388.1 | G112: GM20 | H112: rs.Gm20.45859448
D113: GM02 | E113: rs.Gm02.21551844 | F113: 388.1 | G113: GM20 | H113: rs.Gm20.45859448
D114: GM02 | E114: rs.Gm02.21551849 | F114: 388.1 | G114: GM20 | H114: rs.Gm20.45859448
D115: GM02 | E115: rs.Gm02.29905282 | F115: 14.65 | G115: GM20 | H115: rs.Gm20.45859448
D116: GM02 | E116: rs.Gm02.36313783 | F116: 404.3 | G116: GM20 | H116: rs.Gm20.45859448
D117: GM02 | E117: rs.Gm02.40547055 | F117: 390.4 | G117: GM20 | H117: rs.Gm20.45859448
D118: GM02 | E118: rs.Gm02.40547090 | F118: 390.4 | G118: GM20 | H118: rs.Gm20.45859448
D119: GM02 | E119: rs.Gm02.40547095 | F119: 390 | G119: GM20 | H119: rs.Gm20.45859448
D120: GM02 | E120: rs.Gm02.40547144 | F120: 390.4 | G120: GM20 | H120: rs.Gm20.45859448
D121: GM03 | E121: rs.Gm03.11862564 | F121: 354 | G121: GM20 | H121: rs.Gm20.45859448
D122: GM03 | E122: rs.Gm03.11862570 | F122: 354 | G122: GM20 | H122: rs.Gm20.45859448
D123: GM03 | E123: rs.Gm03.11862605 | F123: 354 | G123: GM20 | H123: rs.Gm20.45859448
D124: GM03 | E124: rs.Gm03.18867283 | F124: 54.73 | G124: GM20 | H124: rs.Gm20.45859448
D125: GM03 | E125: rs.Gm03.27292156 | F125: 19.74 | G125: GM20 | H125: rs.Gm20.45859448
D126: GM04 | E126: rs.Gm04.6987433 | F126: 46.26 | G126: GM20 | H126: rs.Gm20.45859448
D127: GM04 | E127: rs.Gm04.8529407 | F127: 17.9 | G127: GM20 | H127: rs.Gm20.45859448
D128: GM04 | E128: rs.Gm04.8559991 | F128: 14.09 | G128: GM20 | H128: rs.Gm20.45859448
D129: GM04 | E129: rs.Gm04.9708243 | F129: 24.72 | G129: GM20 | H129: rs.Gm20.45859448
D130: GM04 | E130: rs.Gm04.10169865 | F130: 32.33 | G130: GM20 | H130: rs.Gm20.45859448
D131: GM04 | E131: rs.Gm04.13396413 | F131: 20.21 | G131: GM20 | H131: rs.Gm20.45859448
D132: GM04 | E132: rs.Gm04.13442417 | F132: 20.92 | G132: GM20 | H132: rs.Gm20.45859448
D133: GM04 | E133: rs.Gm04.13565357 | F133: 24.05 | G133: GM20 | H133: rs.Gm20.45859448
D134: GM04 | E134: rs.Gm04.13585599 | F134: 23.47 | G134: GM20 | H134: rs.Gm20.45859448
D135: GM04 | E135: rs.Gm04.13629961 | F135: 22.38 | G135: GM20 | H135: rs.Gm20.45859448
D136: GM04 | E136: rs.Gm04.13630004 | F136: 24.74 | G136: GM20 | H136: rs.Gm20.45859448
D137: GM04 | E137: rs.Gm04.13729422 | F137: 23.85 | G137: GM20 | H137: rs.Gm20.45859448
D138: GM04 | E138: rs.Gm04.13735007 | F138: 22.16 | G138: GM20 | H138: rs.Gm20.45859448
D139: GM04 | E139: rs.Gm04.13757006 | F139: 22.23 | G139: GM20 | H139: rs.Gm20.45859448
D140: GM04 | E140: rs.Gm04.17387998 | F140: 20.97 | G140: GM20 | H140: rs.Gm20.45859448
D141: GM04 | E141: rs.Gm04.17519417 | F141: 20.95 | G141: GM20 | H141: rs.Gm20.45859448
D142: GM04 | E142: rs.Gm04.17683740 | F142: 25.16 | G142: GM20 | H142: rs.Gm20.45859448
D143: GM04 | E143: rs.Gm04.17683745 | F143: 25.16 | G143: GM20 | H143: rs.Gm20.45859448
D144: GM04 | E144: rs.Gm04.17683871 | F144: 25.2 | G144: GM20 | H144: rs.Gm20.45859448
D145: GM04 | E145: rs.Gm04.17685139 | F145: 25.73 | G145: GM20 | H145: rs.Gm20.45859448
D146: GM04 | E146: rs.Gm04.17685231 | F146: 23.15 | G146: GM20 | H146: rs.Gm20.45859448
D147: GM04 | E147: rs.Gm04.17860727 | F147: 22.36 | G147: GM20 | H147: rs.Gm20.45859448
D148: GM04 | E148: rs.Gm04.17860764 | F148: 22.36 | G148: GM20 | H148: rs.Gm20.45859448
D149: GM04 | E149: rs.Gm04.17883717 | F149: 22.7 | G149: GM20 | H149: rs.Gm20.45859448
D150: GM04 | E150: rs.Gm04.17883743 | F150: 22.7 | G150: GM20 | H150: rs.Gm20.45859448
D151: GM04 | E151: rs.Gm04.17896352 | F151: 22.08 | G151: GM20 | H151: rs.Gm20.45859448
D152: GM04 | E152: rs.Gm04.17896451 | F152: 22.08 | G152: GM20 | H152: rs.Gm20.45859448
D153: GM04 | E153: rs.Gm04.17980863 | F153: 27.44 | G153: GM20 | H153: rs.Gm20.45859448
D154: GM04 | E154: rs.Gm04.18700500 | F154: 25.41 | G154: GM20 | H154: rs.Gm20.45859448
D155: GM04 | E155: rs.Gm04.18786069 | F155: 26.71 | G155: GM20 | H155: rs.Gm20.45859448
D156: GM04 | E156: rs.Gm04.21415892 | F156: 24.35 | G156: GM20 | H156: rs.Gm20.45859448
D157: GM04 | E157: rs.Gm04.22750708 | F157: 42.12 | G157: GM20 | H157: rs.Gm20.45859448
D158: GM04 | E158: rs.Gm04.22750746 | F158: 43.31 | G158: GM20 | H158: rs.Gm20.45859448
D159: GM04 | E159: rs.Gm04.25682319 | F159: 24.67 | G159: GM20 | H159: rs.Gm20.45859448
D160: GM04 | E160: rs.Gm04.32011756 | F160: 21.62 | G160: GM20 | H160: rs.Gm20.45859448
D161: GM04 | E161: rs.Gm04.37108976 | F161: 23.55 | G161: GM20 | H161: rs.Gm20.45859448
D162: GM04 | E162: rs.Gm04.37428976 | F162: 23.58 | G162: GM20 | H162: rs.Gm20.45859448
D163: GM04 | E163: rs.Gm04.45276840 | F163: 66.16 | G163: GM20 | H163: rs.Gm20.45859448
D164: GM04 | E164: rs.Gm04.45276971 | F164: 60.7 | G164: GM20 | H164: rs.Gm20.45859448
D165: GM04 | E165: rs.Gm04.45299427 | F165: 56.62 | G165: GM20 | H165: rs.Gm20.45859448
D166: GM04 | E166: rs.Gm04.45299446 | F166: 34.45 | G166: GM20 | H166: rs.Gm20.45859448
D167: GM04 | E167: rs.Gm04.45307601 | F167: 38.33 | G167: GM20 | H167: rs.Gm20.45859448
D168: GM04 | E168: rs.Gm04.45317454 | F168: 38.36 | G168: GM20 | H168: rs.Gm20.45859448
D169: GM04 | E169: rs.Gm04.45355592 | F169: 67.25 | G169: GM20 | H169: rs.Gm20.45859448
D170: GM04 | E170: rs.Gm04.45355622 | F170: 67.25 | G170: GM20 | H170: rs.Gm20.45859448
D171: GM04 | E171: rs.Gm04.45498452 | F171: 61.16 | G171: GM20 | H171: rs.Gm20.45859448
D172: GM04 | E172: rs.Gm04.45889632 | F172: 39.16 | G172: GM20 | H172: rs.Gm20.45859448
D173: GM04 | E173: rs.Gm04.46236833 | F173: 65.82 | G173: GM20 | H173: rs.Gm20.45859448
D174: GM04 | E174: rs.Gm04.46236906 | F174: 63.04 | G174: GM20 | H174: rs.Gm20.45859448
D175: GM04 | E175: rs.Gm04.46239110 | F175: 62.16 | G175: GM20 | H175: rs.Gm20.45859448
D176: GM04 | E176: rs.Gm04.46419002 | F176: 63.73 | G176: GM20 | H176: rs.Gm20.45859448
D177: GM04 | E177: rs.Gm04.46436661 | F177: 56.04 | G177: GM20 | H177: rs.Gm20.45859448
D178: GM04 | E178: rs.Gm04.46436694 | F178: 56.04 | G178: GM20 | H178: rs.Gm20.45859448
D179: GM04 | E179: rs.Gm04.46625655 | F179: 50.64 | G179: GM20 | H179: rs.Gm20.45859448
D180: GM04 | E180: rs.Gm04.46627334 | F180: 54.85 | G180: GM20 | H180: rs.Gm20.45859448
D181: GM04 | E181: rs.Gm04.46681848 | F181: 61.41 | G181: GM20 | H181: rs.Gm20.45859448
D182: GM04 | E182: rs.Gm04.46777190 | F182: 67.94 | G182: GM20 | H182: rs.Gm20.45859448
D183: GM05 | E183: rs.Gm05.22772856 | F183: 4.336 | G183: GM20 | H183: rs.Gm20.45859448
D184: GM05 | E184: rs.Gm05.23282636 | F184: 59.12 | G184: GM20 | H184: rs.Gm20.45859448
D185: GM07 | E185: rs.Gm07.11690453 | F185: 369.5 | G185: GM20 | H185: rs.Gm20.45859448
D186: GM07 | E186: rs.Gm07.15205816 | F186: 47.01 | G186: GM20 | H186: rs.Gm20.45859448
D187: GM07 | E187: rs.Gm07.20157387 | F187: 16.91 | G187: GM20 | H187: rs.Gm20.45859448
D188: GM07 | E188: rs.Gm07.20175365 | F188: 18.74 | G188: GM20 | H188: rs.Gm20.45859448
D189: GM07 | E189: rs.Gm07.20243316 | F189: 18.67 | G189: GM20 | H189: rs.Gm20.45859448
D190: GM07 | E190: rs.Gm07.20425509 | F190: 17.35 | G190: GM20 | H190: rs.Gm20.45859448
D191: GM07 | E191: rs.Gm07.20469321 | F191: 18.72 | G191: GM20 | H191: rs.Gm20.45859448
D192: GM07 | E192: rs.Gm07.20469423 | F192: 18.92 | G192: GM20 | H192: rs.Gm20.45859448
D193: GM07 | E193: rs.Gm07.21585870 | F193: 19 | G193: GM20 | H193: rs.Gm20.45859448
D194: GM07 | E194: rs.Gm07.21585896 | F194: 19 | G194: GM20 | H194: rs.Gm20.45859448
D195: GM07 | E195: rs.Gm07.22585639 | F195: 19.48 | G195: GM20 | H195: rs.Gm20.45859448
D196: GM07 | E196: rs.Gm07.22660527 | F196: 15.04 | G196: GM20 | H196: rs.Gm20.45859448
D197: GM07 | E197: rs.Gm07.22810750 | F197: 19.15 | G197: GM20 | H197: rs.Gm20.45859448
D198: GM07 | E198: rs.Gm07.23396910 | F198: 19.15 | G198: GM20 | H198: rs.Gm20.45859448
D199: GM07 | E199: rs.Gm07.25202010 | F199: 19.43 | G199: GM20 | H199: rs.Gm20.45859448
D200: GM07 | E200: rs.Gm07.25374403 | F200: 15.3 | G200: GM20 | H200: rs.Gm20.45859448
... 755 more rows

Sheet Table S6
A1: Table S6 KASP assay primer information.
A2: Assay name | B2: rs_Gm03_39710939
A3: Allele 1 | B3: T
A4: Allele 2 | B4: A
A5: Sequence | B5: TTCTCAATCCAACGGTTCATATTTATTTAGCTATGTTTAGAACAAAAAAA[T/A]TGGCACATAGAATTAAACAAATTGCATGGTTGAATTCTATCTTGAAACCG
A6: Forward Primer- F1 | B6: CATGCAATTTGTTTAATTCTATGTGCCAT
A7: Forward Primer-F2 | B7: CATGCAATTTGTTTAATTCTATGTGCCAA
A8: Common reverse primer-R | B8: CCAACGGTTCATATTTATTTAGCTATGTTT

Sheet Table S7
A1: Table S7 Duplicate KASP genotyping results with associated phenotypes and genotypic calls.
A2: SFS/LSS/SPAD: Gm03.39710939 (T/A) (T:Homozygous Allele 1/Allele 1, A:Homozygous Allele 2/Allele 2)
A3: Sr.No. | B3: Genotype Line no | C3: Code | D3: Genotype | E3: Replication 1 | F3: Replication 2 | G3: SPAD_MEAN_200mM | H3: LSS_MEAN | I3: SFS_MEAN | J3: Genotype
A4: 1 | B4: 1 | C4: ARI 13 | D4: MACS 330 | E4: Homozygous Allele 1/Allele 1 | F4: Homozygous Allele 1/Allele 1 | G4: 13.85 | H4: 5 | I4: 0 | J4: N
A5: 2 | B5: 2 | C5: ARI 6 | D5: EC 38828 | E5: Homozygous Allele 1/Allele 1 | F5: Homozygous Allele 1/Allele 1 | G5: 11.07 | H5: 1 | I5: 0 | J5: T
A6: 3 | B6: 3 | C6: FC3 | D6: JS 9560 | E6: Homozygous Allele 1/Allele 1 | F6: Homozygous Allele 1/Allele 1 | G6: 16.85 | H6: 2 | I6: 0 | J6: T
A7: 4 | B7: 4 | C7: FC4 | D7: JS 9752 | E7: Undetermined | F7: Undetermined | G7: 20.53 | H7: 2 | I7: 0 | J7: T
A8: 5 | B8: 5 | C8: FC6 | D8: RVSM 1135 | E8: Homozygous Allele 1/Allele 1 | F8: Homozygous Allele 1/Allele 1 | G8: 18.08 | H8: 3.5 | I8: 0.5 | J8: T
A9: 6 | B9: 6 | C9: FC7 | D9: BLACK BOLD (PRIVATE) | E9: Homozygous Allele 2/Allele 2 | F9: Homozygous Allele 2/Allele 2 | G9: 23.18 | H9: 1 | I9: 1 | J9: N
A10: 7 | B10: 7 | C10: FC8 | D10: TS 213 (PRIVATE) | E10: Homozygous Allele 1/Allele 1 | F10: Homozygous Allele 1/Allele 1 | G10: 14.29 | H10: 1.5 | I10: 0 | J10: T
A11: 8 | B11: 8 | C11: FC9 | D11: BANDAGE FARMER COLLECTION | E11: Homozygous Allele 1/Allele 1 | F11: Homozygous Allele 1/Allele 1 | G11: 11.93 | H11: 4 | I11: 0 | J11: T
A12: 9 | B12: 9 | C12: FC10 | D12: ARANI | E12: Homozygous Allele 1/Allele 1 | F12: Homozygous Allele 1/Allele 1 | G12: 12.22 | H12: 3.5 | I12: 0 | J12: T
A13: 10 | B13: 10 | C13: FC11 | D13: SAMRUDHI | E13: Homozygous Allele 1/Allele 1 | F13: Homozygous Allele 1/Allele 1 | G13: 14.48 | H13: 0 | I13: 0 | J13: N
A14: 11 | B14: 12 | C14: FC14 | D14: DSB 23 | E14: Homozygous Allele 1/Allele 1 | F14: Homozygous Allele 1/Allele 1 | G14: 25.52 | H14: 4 | I14: 0 | J14: T
A15: 12 | B15: 13 | C15: FC15 | D15: KDS 726 | E15: Homozygous Allele 1/Allele 1 | F15: Homozygous Allele 1/Allele 1 | G15: 18.75 | H15: 5 | I15: 0.5 | J15: T
A16: 13 | B16: 14 | C16: FC16 | D16: KDS 753 | E16: Homozygous Allele 1/Allele 1 | F16: Homozygous Allele 1/Allele 1 | G16: 16.22 | H16: 1.5 | I16: 0.5 | J16: T
A17: 14 | B17: 15 | C17: FC17 | D17: KDS 992 | E17: Homozygous Allele 1/Allele 1 | F17: Homozygous Allele 1/Allele 1 | G17: 19.35 | H17: 4 | I17: 0 | J17: T
A18: 15 | B18: 16 | C18: EM1 | D18: EC 14477 | E18: Homozygous Allele 1/Allele 1 | F18: Homozygous Allele 1/Allele 1 | G18: 10.07 | H18: 4 | I18: 0 | J18: T
A19: 16 | B19: 17 | C19: EM3 | D19: EC 16111 | E19: Homozygous Allele 2/Allele 2 | F19: Homozygous Allele 2/Allele 2 | G19: 19.22 | H19: 1.5 | I19: 0 | J19: A
A20: 17 | B20: 18 | C20: EM6 | D20: EC 30195 | E20: Homozygous Allele 1/Allele 1 | F20: Homozygous Allele 1/Allele 1 | G20: 11.28 | H20: 2.5 | I20: 0.5 | J20: T
A21: 18 | B21: 19 | C21: EM9 | D21: EC 39488 | E21: Homozygous Allele 2/Allele 2 | F21: Homozygous Allele 2/Allele 2 | G21: 16.53 | H21: 2.5 | I21: 0 | J21: T
A22: 19 | B22: 20 | C22: EM10 | D22: EC 39490 | E22: Homozygous Allele 1/Allele 1 | F22: Homozygous Allele 1/Allele 1 | G22: 10.28 | H22: 3.5 | I22: 0 | J22: T
A23: 20 | B23: 22 | C23: EM15 | D23: EC 95297 | E23: Homozygous Allele 1/Allele 1 | F23: Homozygous Allele 1/Allele 1 | G23: 12.05 | H23: 4 | I23: 0 | J23: T
A24: 21 | B24: 23 | C24: EM18 | D24: EC 100029 | E24: Homozygous Allele 2/Allele 2 | F24: Homozygous Allele 1/Allele 1 | G24: 10.43 | H24: 5 | I24: 0 | J24: A
A25: 22 | B25: 24 | C25: EM22 | D25: PLSO 23 | E25: Homozygous Allele 1/Allele 1 | F25: Homozygous Allele 1/Allele 1 | G25: 13.05 | H25: 2.5 | I25: 0 | J25: T
A26: 23 | B26: 25 | C26: EM26 | D26: HILL | E26: Homozygous Allele 1/Allele 1 | F26: Homozygous Allele 1/Allele 1 | G26: 13.32 | H26: 2.5 | I26: 0 | J26: T
A27: 24 | B27: 26 | C27: EM31 | D27: EC 100780 | E27: Homozygous Allele 1/Allele 1 | F27: Homozygous Allele 1/Allele 1 | G27: 10.60 | H27: 5 | I27: 0.5 | J27: T
A28: 25 | B28: 27 | C28: EM34 | D28: IC 33776 | E28: Homozygous Allele 1/Allele 1 | F28: Homozygous Allele 1/Allele 1 | G28: 17.52 | H28: 0.5 | I28: 0 | J28: T
A29: 26 | B29: 28 | C29: EM35 | D29: IC 34382 | E29: Homozygous Allele 2/Allele 2 | F29: Homozygous Allele 2/Allele 2 | G29: 12.72 | H29: 1 | I29: 0 | J29: A
A30: 27 | B30: 29 | C30: EM45 | D30: EC 18207 | E30: Homozygous Allele 1/Allele 1 | F30: Homozygous Allele 1/Allele 1 | G30: 13.53 | H30: 2.5 | I30: 0 | J30: T
A31: 28 | B31: 30 | C31: EM51 | D31: IC 13050 | E31: Homozygous Allele 2/Allele 2 | F31: Homozygous Allele 2/Allele 2 | G31: 18.48 | H31: 0 | I31: 0.5 | J31: N
A32: 29 | B32: 31 | C32: EM53 | D32: G 76 | E32: Homozygous Allele 1/Allele 1 | F32: Homozygous Allele 1/Allele 1 | G32: 16.47 | H32: 4.5 | I32: 0 | J32: T
A33: 30 | B33: 32 | C33: EM57 | D33: G 142 | E33: Homozygous Allele 1/Allele 1 | F33: Heterozygous Allele 1/Allele 2 | G33: 10.37 | H33: 4.5 | I33: 0 | J33: T
A34: 31 | B34: 33 | C34: EM65 | D34: JS 97 52 | E34: Homozygous Allele 1/Allele 1 | F34: Homozygous Allele 1/Allele 1 | G34: 15.72 | H34: 3.5 | I34: 0 | J34: T
A35: 32 | B35: 34 | C35: EM67 | D35: MRSB 352 | E35: Homozygous Allele 1/Allele 1 | F35: Homozygous Allele 1/Allele 1 | G35: 18.55 | H35: 2.5 | I35: 0.5 | J35: N
A36: 33 | B36: 35 | C36: EM68 | D36: PS 1370 | E36: Homozygous Allele 1/Allele 1 | F36: Homozygous Allele 1/Allele 1 | G36: 14.57 | H36: 4.5 | I36: 0 | J36: T
A37: 34 | B37: 36 | C37: EM69 | D37: RKS 18 | E37: Homozygous Allele 1/Allele 1 | F37: Heterozygous Allele 1/Allele 2 | G37: 15.67 | H37: 3.5 | I37: 0 | J37: N
A38: 35 | B38: 37 | C38: EM70 | D38: MACS 708 | E38: Heterozygous Allele 1/Allele 2 | F38: Heterozygous Allele 1/Allele 2 | G38: 8.89 | H38: 4 | I38: 0 | J38: N
A39: 36 | B39: 38 | C39: EM76 | D39: JS (SH) 99 14 | E39: Homozygous Allele 2/Allele 2 | F39: Homozygous Allele 2/Allele 2 | G39: 25.07 | H39: 0 | I39: 0.5 | J39: N
A40: 37 | B40: 39 | C40: EM78 | D40: MACS 985 | E40: Homozygous Allele 1/Allele 1 | F40: Heterozygous Allele 1/Allele 2 | G40: 17.47 | H40: 3.5 | I40: 0 | J40: T
A41: 38 | B41: 40 | C41: EM79 | D41: MACS 998 | E41: Homozygous Allele 1/Allele 1 | F41: Undetermined | G41: 10.47 | H41: 3 | I41: 0 | J41: T
A42: 39 | B42: 41 | C42: ARI 1 | D42: AMS 1002 | E42: Homozygous Allele 1/Allele 1 | F42: Homozygous Allele 1/Allele 1 | G42: 12.55 | H42: 3 | I42: 0 | J42: T
A43: 40 | B43: 42 | C43: ARI 7 | D43: HARDEE | E43: Homozygous Allele 1/Allele 1 | F43: Homozygous Allele 1/Allele 1 | G43: 18.10 | H43: 3 | I43: 0 | J43: T
A44: 41 | B44: 43 | C44: ARI 12 | D44: MACS 1460 | E44: Homozygous Allele 1/Allele 1 | F44: Homozygous Allele 1/Allele 1 | G44: 15.97 | H44: 1 | I44: 0 | J44: T
A45: 42 | B45: 44 | C45: PC53 | D45: MACS 58 | E45: Homozygous Allele 1/Allele 1 | F45: Homozygous Allele 1/Allele 1 | G45: 12.03 | H45: 5 | I45: 0 | J45: T
A46: 43 | B46: 45 | C46: ARI 16 | D46: MACS NRC 1667 | E46: Homozygous Allele 1/Allele 1 | F46: Homozygous Allele 1/Allele 1 | G46: 16.43 | H46: 0.5 | I46: 0 | J46: T
A47: 44 | B47: 46 | C47: ARI 19 | D47: PS 1347 | E47: Homozygous Allele 1/Allele 1 | F47: Homozygous Allele 1/Allele 1 | G47: 11.35 | H47: 5 | I47: 0 | J47: T
A48: 45 | B48: 48 | C48: EM80 | D48: PS 1374 | E48: Homozygous Allele 1/Allele 1 | F48: Homozygous Allele 1/Allele 1 | G48: 16.68 | H48: 3.5 | I48: 0 | J48: T
A49: 46 | B49: 49 | C49: EM82 | D49: MACS 1010 | E49: Homozygous Allele 1/Allele 1 | F49: Homozygous Allele 1/Allele 1 | G49: 17.73 | H49: 3.5 | I49: 0 | J49: T
A50: 47 | B50: 50 | C50: EM91 | D50: SL 710 | E50: Homozygous Allele 1/Allele 1 | F50: Homozygous Allele 1/Allele 1 | G50: 13.62 | H50: 1.5 | I50: 0.5 | J50: T
A51: 48 | B51: 51 | C51: EM112 | D51: EC 36362 | E51: Homozygous Allele 1/Allele 1 | F51: Homozygous Allele 1/Allele 1 | G51: 18.47 | H51: 4 | I51: 0 | J51: T
A52: 49 | B52: 52 | C52: EM116 | D52: EC 62736 | E52: Homozygous Allele 1/Allele 1 | F52: Homozygous Allele 1/Allele 1 | G52: 13.80 | H52: 5 | I52: 0 | J52: T
A53: 50 | B53: 53 | C53: EM 127 | D53: EC 100027 | E53: Homozygous Allele 1/Allele 1 | F53: Homozygous Allele 1/Allele 1 | G53: 15.38 | H53: 4 | I53: 0 | J53: T
A54: 51 | B54: 54 | C54: EM 128 | D54: EC 100797 | E54: Homozygous Allele 1/Allele 1 | F54: Homozygous Allele 1/Allele 1 | G54: 11.56 | H54: 5 | I54: 0 | J54: T
A55: 52 | B55: 55 | C55: EM 129 | D55: EC 100800 | E55: Homozygous Allele 1/Allele 1 | F55: Homozygous Allele 1/Allele 1 | G55: 12.03 | H55: 3.5 | I55: 0 | J55: T
A56: 53 | B56: 56 | C56: EM 130 | D56: EC 107416 | E56: Homozygous Allele 1/Allele 1 | F56: Homozygous Allele 1/Allele 1 | G56: 8.52 | H56: 3 | I56: 0 | J56: T
A57: 54 | B57: 57 | C57: EM 131 | D57: IC 7843 | E57: Homozygous Allele 1/Allele 1 | F57: Homozygous Allele 1/Allele 1 | G57: 8.59 | H57: 5 | I57: 0 | J57: T
A58: 55 | B58: 58 | C58: EM 134 | D58: PLSO 39 | E58: Homozygous Allele 1/Allele 1 | F58: Homozygous Allele 1/Allele 1 | G58: 13.59 | H58: 3.5 | I58: 0 | J58: T
A59: 56 | B59: 59 | C59: EM 137 | D59: UPSS 74 | E59: Homozygous Allele 1/Allele 1 | F59: Homozygous Allele 1/Allele 1 | G59: 13.43 | H59: 3 | I59: 0 | J59: T
A60: 57 | B60: 60 | C60: EM 139 | D60: PICKET | E60: Homozygous Allele 1/Allele 1 | F60: Homozygous Allele 1/Allele 1 | G60: 15.85 | H60: 5 | I60: 0 | J60: T
A61: 58 | B61: 61 | C61: EM 140 | D61: EC 18595 | E61: Homozygous Allele 1/Allele 1 | F61: Homozygous Allele 1/Allele 1 | G61: 12.28 | H61: 2.5 | I61: 0.5 | J61: T
A62: 59 | B62: 62 | C62: EM 142 | D62: IC 2051 | E62: Homozygous Allele 1/Allele 1 | F62: Homozygous Allele 1/Allele 1 | G62: 15.90 | H62: 5 | I62: 0 | J62: T
A63: 60 | B63: 63 | C63: EM 145 | D63: IC 15088 | E63: Homozygous Allele 1/Allele 1 | F63: Homozygous Allele 1/Allele 1 | G63: 13.60 | H63: 5 | I63: 0 | J63: T
A64: 61 | B64: 64 | C64: EM 148 | D64: EC 11695 | E64: Homozygous Allele 1/Allele 1 | F64: Homozygous Allele 1/Allele 1 | G64: 8.58 | H64: 5 | I64: 0 | J64: T
A65: 62 | B65: 65 | C65: EM 150 | D65: IC 9471 | E65: Homozygous Allele 1/Allele 1 | F65: Homozygous Allele 1/Allele 1 | G65: 13.88 | H65: 5 | I65: 0 | J65: T
A66: 63 | B66: 66 | C66: EM 151 | D66: IC 13048 | E66: Homozygous Allele 1/Allele 1 | F66: Homozygous Allele 1/Allele 1 | G66: 7.33 | H66: 4.5 | I66: 0 | J66: T
A67: 64 | B67: 67 | C67: EM 163 | D67: EC 14426 | E67: Homozygous Allele 2/Allele 2 | F67: Homozygous Allele 2/Allele 2 | G67: 16.67 | H67: 0 | I67: 1 | J67: N
A68: 65 | B68: 68 | C68: EM 165 | D68: EC 14457 | E68: Homozygous Allele 1/Allele 1 | F68: Homozygous Allele 1/Allele 1 | G68: 13.68 | H68: 3 | I68: 0 | J68: T
A69: 66 | B69: 69 | C69: EM 172 | D69: JS 72 451 | E69: Homozygous Allele 1/Allele 1 | F69: Homozygous Allele 1/Allele 1 | G69: 11.98 | H69: 3.5 | I69: 0 | J69: T
A70: 67 | B70: 70 | C70: EM 179 | D70: IC 38312 | E70: Homozygous Allele 1/Allele 1 | F70: Homozygous Allele 1/Allele 1 | G70: 13.02 | H70: 3 | I70: 0 | J70: T
A71: 68 | B71: 71 | C71: EM 185 | D71: PK 1029 | E71: Homozygous Allele 1/Allele 1 | F71: Homozygous Allele 1/Allele 1 | G71: 9.60 | H71: 0.5 | I71: 0 | J71: T
A72: 69 | B72: 72 | C72: EM 190 | D72: EC 34389 | E72: Homozygous Allele 1/Allele 1 | F72: Homozygous Allele 1/Allele 1 | G72: 14.02 | H72: 1 | I72: 0 | J72: T
A73: 70 | B73: 73 | C73: EM 193 | D73: JS 9971 | E73: Homozygous Allele 1/Allele 1 | F73: Homozygous Allele 1/Allele 1 | G73: 15.99 | H73: 1 | I73: 0 | J73: T
A74: 71 | B74: 75 | C74: EM 216 | D74: MACS 37 | E74: Homozygous Allele 1/Allele 1 | F74: Homozygous Allele 1/Allele 1 | G74: 9.73 | H74: 0 | I74: 0.5 | J74: T
A75: 72 | B75: 76 | C75: EM 217 | D75: MACS 89 | E75: Homozygous Allele 2/Allele 2 | F75: Homozygous Allele 2/Allele 2 | G75: 16.58 | H75: 0 | I75: 1 | J75: A
A76: 73 | B76: 77 | C76: EM 219 | D76: MACS 94 | E76: Homozygous Allele 1/Allele 1 | F76: - | G76: 14.07 | H76: 4.5 | I76: 0 | J76: T
A77: 74 | B77: 78 | C77: EM 220 | D77: MACS 96 | E77: Homozygous Allele 1/Allele 1 | F77: Homozygous Allele 1/Allele 1 | G77: 14.42 | H77: 1 | I77: 0 | J77: T
A78: 75 | B78: 79 | C78: EM 226 | D78: MACS 136 | E78: Homozygous Allele 1/Allele 1 | F78: Homozygous Allele 1/Allele 1 | G78: 15.47 | H78: 3.5 | I78: 0 | J78: T
A79: 76 | B79: 80 | C79: EM 232 | D79: MACS 161 | E79: Homozygous Allele 1/Allele 1 | F79: Homozygous Allele 1/Allele 1 | G79: 14.52 | H79: 1.5 | I79: 0.5 | J79: T
A80: 77 | B80: 81 | C80: EM 233 | D80: MACS 164 | E80: Undetermined | F80: Heterozygous Allele 1/Allele 2 | G80: 13.85 | H80: 4 | I80: 0 | J80: T
A81: 78 | B81: 82 | C81: EM 234 | D81: MACS 166 | E81: Homozygous Allele 2/Allele 2 | F81: Homozygous Allele 2/Allele 2 | G81: 20.73 | H81: 0 | I81: 1 | J81: A
A82: 79 | B82: 83 | C82: EM 235 | D82: MACS167 | E82: Homozygous Allele 2/Allele 2 | F82: Homozygous Allele 2/Allele 2 | G82: 22.15 | H82: 1 | I82: 1 | J82: A
A83: 80 | B83: 84 | C83: EM 237 | D83: MACS 173 | E83: Homozygous Allele 2/Allele 2 | F83: Homozygous Allele 2/Allele 2 | G83: 16.50 | H83: 2 | I83: 0 | J83: A
A84: 81 | B84: 85 | C84: EM 242 | D84: MACS 199 | E84: Homozygous Allele 1/Allele 1 | F84: Homozygous Allele 1/Allele 1 | G84: 16.25 | H84: 2.5 | I84: 0 | J84: T
A85: 82 | B85: 86 | C85: EM 244 | D85: MACS 204 | E85: Homozygous Allele 1/Allele 1 | F85: Homozygous Allele 1/Allele 1 | G85: 18.20 | H85: 2.5 | I85: 0.5 | J85: T
A86: 83 | B86: 87 | C86: EM 246 | D86: MACS 221 | E86: Homozygous Allele 2/Allele 2 | F86: Homozygous Allele 2/Allele 2 | G86: 23.47 | H86: 2 | I86: 0.5 | J86: N
A87: 84 | B87: 88 | C87: EM 253 | D87: MACS 441 | E87: Homozygous Allele 1/Allele 1 | F87: Homozygous Allele 1/Allele 1 | G87: 11.07 | H87: 5 | I87: 0.5 | J87: T
A88: 85 | B88: 89 | C88: EM 254 | D88: MACS 472 | E88: Homozygous Allele 1/Allele 1 | F88: Undetermined | G88: 9.88 | H88: 5 | I88: 0 | J88: T
A89: 86 | B89: 90 | C89: EM 255 | D89: MACS 798 | E89: Homozygous Allele 1/Allele 1 | F89: Homozygous Allele 1/Allele 1 | G89: 15.64 | H89: 2.5 | I89: 0 | J89: T
A90: 87 | B90: 91 | C90: EM 284 | D90: MACS 1168 | E90: Homozygous Allele 1/Allele 1 | F90: - | G90: 18.27 | H90: 5 | I90: 0 | J90: T
A91: 88 | B91: 92 | C91: ML8 | D91: EC 2574 | E91: Homozygous Allele 1/Allele 1 | F91: Homozygous Allele 1/Allele 1 | G91: 12.68 | H91: 4.5 | I91: 0 | J91: N
A92: 89 | B92: 93 | C92: ML18 | D92: JS 75 1 | E92: Homozygous Allele 1/Allele 1 | F92: Homozygous Allele 1/Allele 1 | G92: 18.68 | H92: 0.5 | I92: 0.5 | J92: T
A93: 90 | B93: 94 | C93: ML19 | D93: EC 10685 | E93: Homozygous Allele 1/Allele 1 | F93: Homozygous Allele 1/Allele 1 | G93: 18.32 | H93: 2 | I93: 0.5 | J93: T
A94: 91 | B94: 95 | C94: ML32 | D94: EC 100022 | E94: Undetermined | F94: Undetermined | G94: 17.47 | H94: 1.5 | I94: 1 | J94: A
A95: 92 | B95: 96 | C95: ML38 | D95: EC 7951 | E95: Homozygous Allele 1/Allele 1 | F95: Homozygous Allele 1/Allele 1 | G95: 14.33 | H95: 0 | I95: 0.5 | J95: N
A96: 93 | B96: 97 | C96: ML47 | D96: IC 10678 | E96: Homozygous Allele 2/Allele 2 | F96: Homozygous Allele 2/Allele 2 | G96: 19.92 | H96: 2.5 | I96: 0.5 | J96: A
A97: 94 | B97: 98 | C97: ML54 | D97: EC 168 | E97: Homozygous Allele 1/Allele 1 | F97: Homozygous Allele 1/Allele 1 | G97: 16.72 | H97: 3 | I97: 0.5 | J97: T
A98: 95 | B98: 99 | C98: ML58 | D98: EC 216387 | E98: Undetermined | F98: - | G98: 18.25 | H98: 2.5 | I98: 0.5 | J98: T
A99: 96 | B99: 100 | C99: ML62 | D99: MACS 212 | E99: Homozygous Allele 2/Allele 2 | F99: Heterozygous Allele 1/Allele 2 | G99: 20.20 | H99: 0 | I99: 1 | J99: A
A100: 97 | B100: 101 | C100: ML80 | D100: G 91 | E100: Homozygous Allele 1/Allele 1 | F100: - | G100: 13.35 | H100: 2.5 | I100: 0 | J100: T
A101: 98 | B101: 102 | C101: ML82 | D101: G 118 | E101: Homozygous Allele 1/Allele 1 | F101: Homozygous Allele 1/Allele 1 | G101: 12.31 | H101: 0.5 | I101: 0.5 | J101: T
A102: 99 | B102: 109 | C102: ML104 | D102: EC 241920 | E102: Homozygous Allele 1/Allele 1 | F102: Homozygous Allele 1/Allele 1 | G102: 13.78 | H102: 5 | I102: 0 | J102: T
A103: 100 | B103: 110 | C103: ML111 | D103: EC 389392 | E103: Homozygous Allele 1/Allele 1 | F103: Homozygous Allele 1/Allele 1 | G103: 19.53 | H103: 4 | I103: 0 | J103: T
A104: 101 | B104: 111 | C104: ML114 | D104: EC 391181 | E104: Homozygous Allele 1/Allele 1 | F104: Homozygous Allele 1/Allele 1 | G104: 7.38 | H104: 4 | I104: 0 | J104: T
A105: 102 | B105: 112 | C105: ML126 | D105: EC 389159 | E105: Homozygous Allele 1/Allele 1 | F105: Homozygous Allele 1/Allele 1 | G105: 13.07 | H105: 4.5 | I105: 0 | J105: T
A106: 103 | B106: 113 | C106: ML127 | D106: EC 251470 | E106: Homozygous Allele 2/Allele 2 | F106: Homozygous Allele 2/Allele 2 | G106: 17.53 | H106: 1 | I106: 0 | J106: A
A107: 104 | B107: 114 | C107: ML133 | D107: HIMSO 1600 | E107: Homozygous Allele 1/Allele 1 | F107: Homozygous Allele 1/Allele 1 | G107: 12.55 | H107: 4.5 | I107: 0 | J107: T
A108: 105 | B108: 115 | C108: ML143 | D108: TNAUS 7 | E108: Homozygous Allele 1/Allele 1 | F108: Homozygous Allele 1/Allele 1 | G108: 9.72 | H108: 4 | I108: 0.5 | J108: T
A109: 106 | B109: 116 | C109: ML144 | D109: TS 17 | E109: Homozygous Allele 1/Allele 1 | F109: Undetermined | G109: 15.42 | H109: 4.5 | I109: 0 | J109: T
A110: 107 | B110: 117 | C110: ML145 | D110: TS 29 | E110: Homozygous Allele 1/Allele 1 | F110: Homozygous Allele 1/Allele 1 | G110: 16.82 | H110: 4.5 | I110: 0 | J110: T
A111: 108 | B111: 118 | C111: ML165 | D111: TS 42 | E111: Homozygous Allele 1/Allele 1 | F111: Homozygous Allele 1/Allele 1 | G111: 14.43 | H111: 4 | I111: 0 | J111: T
A112: 109 | B112: 119 | C112: ML169 | D112: VLS 67 | E112: Homozygous Allele 1/Allele 1 | F112: Homozygous Allele 1/Allele 1 | G112: 12.09 | H112: 3 | I112: 0 | J112: T
A113: 110 | B113: 120 | C113: ML201 | D113: MACS 112 | E113: Homozygous Allele 1/Allele 1 | F113: Homozygous Allele 1/Allele 1 | G113: 15.43 | H113: 5 | I113: 0 | J113: T
A114: 111 | B114: 121 | C114: ML208 | D114: MACS 205 | E114: Homozygous Allele 1/Allele 1 | F114: Homozygous Allele 1/Allele 1 | G114: 15.22 | H114: 2.5 | I114: 0.5 | J114: T
A115: 112 | B115: 122 | C115: ML212 | D115: MACS 227 | E115: Homozygous Allele 2/Allele 2 | F115: Homozygous Allele 2/Allele 2 | G115: 18.05 | H115: 2 | I115: 0 | J115: N
A116: 113 | B116: 123 | C116: ML216 | D116: MACS 232 | E116: Homozygous Allele 2/Allele 2 | F116: Homozygous Allele 2/Allele 2 | G116: 17.65 | H116: 1 | I116: 0.5 | J116: N
A117: 114 | B117: 124 | C117: ML226 | D117: MACS 261 | E117: Homozygous Allele 1/Allele 1 | F117: Homozygous Allele 1/Allele 1 | G117: 19.80 | H117: 4.5 | I117: 0 | J117: T
A118: 115 | B118: 125 | C118: ML231 | D118: MACS 288 | E118: Homozygous Allele 2/Allele 2 | F118: Homozygous Allele 2/Allele 2 | G118: 18.45 | H118: 0 | I118: 1 | J118: A
A119: 116 | B119: 126 | C119: ML233 | D119: MACS 291 | E119: Homozygous Allele 1/Allele 1 | F119: Homozygous Allele 1/Allele 1 | G119: 12.99 | H119: 2 | I119: 0 | J119: T
A120: 117 | B120: 127 | C120: ML239 | D120: MACS 303 | E120: Homozygous Allele 2/Allele 2 | F120: Homozygous Allele 2/Allele 2 | G120: 25.32 | H120: 1.5 | I120: 1 | J120: A
A121: 118 | B121: 128 | C121: ML250 | D121: MACS 469 | E121: Homozygous Allele 2/Allele 2 | F121: Homozygous Allele 2/Allele 2 | G121: 15.36 | H121: 0 | I121: 1 | J121: A
A122: 119 | B122: 129 | C122: MM 10 | D122: IC 10039 | E122: Homozygous Allele 1/Allele 1 | F122: Homozygous Allele 1/Allele 1 | G122: 16.57 | H122: 3 | I122: 0.5 | J122: T
A123: 120 | B123: 130 | C123: MM 12 | D123: PLSO 50 | E123: Homozygous Allele 1/Allele 1 | F123: Homozygous Allele 1/Allele 1 | G123: 12.98 | H123: 5 | I123: 0 | J123: T
A124: 121 | B124: 131 | C124: MM 21 | D124: EC 34079A | E124: Homozygous Allele 2/Allele 2 | F124: Homozygous Allele 2/Allele 2 | G124: 15.83 | H124: 0 | I124: 1 | J124: N
A125: 122 | B125: 132 | C125: MM 22 | D125: EC 34477 | E125: Homozygous Allele 1/Allele 1 | F125: Homozygous Allele 1/Allele 1 | G125: 17.40 | H125: 4.5 | I125: 0 | J125: T
A126: 123 | B126: 133 | C126: MM 30 | D126: EC 39686 | E126: Homozygous Allele 1/Allele 1 | F126: Homozygous Allele 1/Allele 1 | G126: 12.78 | H126: 4 | I126: 0 | J126: T
A127: 124 | B127: 134 | C127: MM 36 | D127: EC 95807 | E127: Homozygous Allele 1/Allele 1 | F127: Homozygous Allele 1/Allele 1 | G127: 13.22 | H127: 5 | I127: 0 | J127: T
A128: 125 | B128: 135 | C128: MM 40 | D128: IC 9451 | E128: Homozygous Allele 2/Allele 2 | F128: Homozygous Allele 2/Allele 2 | G128: 19.35 | H128: 2.5 | I128: 0.5 | J128: A
A129: 126 | B129: 136 | C129: MM 44 | D129: HOOD | E129: Homozygous Allele 1/Allele 1 | F129: Homozygous Allele 1/Allele 1 | G129: 20.25 | H129: 2.5 | I129: 0 | J129: T
A130: 127 | B130: 137 | C130: MM 53 | D130: EC 14460 | E130: Homozygous Allele 2/Allele 2 | F130: Homozygous Allele 2/Allele 2 | G130: 13.45 | H130: 0 | I130: 1 | J130: A
A131: 128 | B131: 138 | C131: MM 56 | D131: EC 39751 | E131: Homozygous Allele 2/Allele 2 | F131: Homozygous Allele 2/Allele 2 | G131: 15.45 | H131: 1.5 | I131: 0 | J131: A
A132: 129 | B132: 139 | C132: MM 57 | D132: EC 94992 | E132: Homozygous Allele 2/Allele 2 | F132: Homozygous Allele 2/Allele 2 | G132: 20.67 | H132: 0 | I132: 1 | J132: A
A133: 130 | B133: 140 | C133: MM 61 | D133: EC 18671A | E133: Homozygous Allele 1/Allele 1 | F133: Homozygous Allele 1/Allele 1 | G133: 15.13 | H133: 4 | I133: 0 | J133: T
A134: 131 | B134: 141 | C134: MM 62 | D134: IC 205 | E134: Homozygous Allele 1/Allele 1 | F134: Homozygous Allele 1/Allele 1 | G134: 16.02 | H134: 4 | I134: 0 | J134: T
A135: 132 | B135: 142 | C135: MM 64 | D135: EC 14437 | E135: Homozygous Allele 2/Allele 2 | F135: Homozygous Allele 2/Allele 2 | G135: 21.60 | H135: 0 | I135: 0.5 | J135: N
A136: 133 | B136: 143 | C136: MM 70 | D136: EC 39776 | E136: Homozygous Allele 2/Allele 2 | F136: Homozygous Allele 2/Allele 2 | G136: 18.31 | H136: 1.5 | I136: 0.5 | J136: N
A137: 134 | B137: 144 | C137: MM 71 | D137: EC 39795 | E137: Homozygous Allele 2/Allele 2 | F137: Homozygous Allele 2/Allele 2 | G137: 18.78 | H137: 0 | I137: 0.5 | J137: N
A138: 135 | B138: 145 | C138: MM 79 | D138: IC 195 | E138: Homozygous Allele 2/Allele 2 | F138: Homozygous Allele 2/Allele 2 | G138: 22.08 | H138: 0 | I138: 0.5 | J138: N
A139: 136 | B139: 146 | C139: MM 89 | D139: PLSO 21 | E139: Homozygous Allele 2/Allele 2 | F139: Homozygous Allele 2/Allele 2 | G139: 21.20 | H139: 0 | I139: 0.5 | J139: A
A140: 137 | B140: 147 | C140: MM 93 | D140: Green Tur | E140: Homozygous Allele 2/Allele 2 | F140: Homozygous Allele 2/Allele 2 | G140: 17.98 | H140: 0 | I140: 0.5 | J140: A
A141: 138 | B141: 148 | C141: MM 96 | D141: EC 14427 | E141: Homozygous Allele 2/Allele 2 | F141: Homozygous Allele 2/Allele 2 | G141: 20.75 | H141: 0 | I141: 0.5 | J141: N
A142: 139 | B142: 149 | C142: MM 114 | D142: IC 202 | E142: Homozygous Allele 1/Allele 1 | F142: Homozygous Allele 1/Allele 1 | G142: 16.29 | H142: 2 | I142: 0 | J142: T
A143: 140 | B143: 150 | C143: MM 122 | D143: IC 13053 | E143: Homozygous Allele 2/Allele 2 | F143: Homozygous Allele 2/Allele 2 | G143: 16.15 | H143: 2.5 | I143: 0.5 | J143: A
A144: 141 | B144: 151 | C144: MM 144 | D144: EC 216376 | E144: Homozygous Allele 1/Allele 1 | F144: Homozygous Allele 1/Allele 1 | G144: 16.72 | H144: 3 | I144: 0.5 | J144: T
A145: 142 | B145: 152 | C145: MM 177 | D145: EC 77214 | E145: Homozygous Allele 1/Allele 1 | F145: Homozygous Allele 1/Allele 1 | G145: 14.48 | H145: 1 | I145: 0 | J145: T
A146: 143 | B146: 153 | C146: MM 188 | D146: JS 335 | E146: Homozygous Allele 1/Allele 1 | F146: Homozygous Allele 1/Allele 1 | G146: 19.19 | H146: 3.5 | I146: 0 | J146: T
A147: 144 | B147: 154 | C147: MM 242 | D147: DS 2309 | E147: Homozygous Allele 1/Allele 1 | F147: Homozygous Allele 1/Allele 1 | G147: 15.87 | H147: 5 | I147: 0 | J147: T
A148: 145 | B148: 155 | C148: MM-285 | D148: MACS 160 | E148: Homozygous Allele 2/Allele 2 | F148: Homozygous Allele 2/Allele 2 | G148: 21.03 | H148: 0 | I148: 1 | J148: A
A149: 146 | B149: 156 | C149: MM-391 | D149: MACS 1115 0 21 9 | E149: Homozygous Allele 1/Allele 1 | F149: Homozygous Allele 1/Allele 1 | G149: 16.19 | H149: 5 | I149: 0 | J149: T
A150: 147 | B150: 157 | C150: MM-299 | D150: MACS 224 | E150: Homozygous Allele 1/Allele 1 | F150: - | G150: 19.12 | H150: 2 | I150: 0.5 | J150: T
A151: 148 | B151: 158 | C151: MM-300 | D151: NRC 142 | E151: Undetermined | F151: Homozygous Allele 1/Allele 1 | G151: 22.13 | H151: 5 | I151: 0 | J151: T
A152: 149 | B152: 159 | C152: MM-301 | D152: NRC 147 | E152: Homozygous Allele 1/Allele 1 | F152: Homozygous Allele 1/Allele 1 | G152: 18.94 | H152: 5 | I152: 0 | J152: T
A153: 150 | B153: 160 | C153: PC1 | D153: AGS 25 | E153: Homozygous Allele 1/Allele 1 | F153: Homozygous Allele 1/Allele 1 | G153: 14.20 | H153: 5 | I153: 0 | J153: T
A154: 151 | B154: 161 | C154: PC2 | D154: ANKUR | E154: Homozygous Allele 1/Allele 1 | F154: Homozygous Allele 1/Allele 1 | G154: 17.52 | H154: 5 | I154: 0 | J154: T
A155: 152 | B155: 162 | C155: PC3 | D155: BHATT | E155: Homozygous Allele 2/Allele 2 | F155: Homozygous Allele 2/Allele 2 | G155: 20.10 | H155: 0 | I155: 0.5 | J155: W
A156: 153 | B156: 163 | C156: PC4 | D156: BRAGG | E156: Homozygous Allele 1/Allele 1 | F156: Homozygous Allele 1/Allele 1 | G156: 19.98 | H156: 5 | I156: 0 | J156: T
A157: 154 | B157: 164 | C157: PC5 | D157: CAT II47 | E157: Homozygous Allele 1/Allele 1 | F157: Heterozygous Allele 1/Allele 2 | G157: 13.85 | H157: 3.5 | I157: 0 | J157: T
A158: 155 | B158: 165 | C158: PC6 | D158: DS 228 | E158: Homozygous Allele 2/Allele 2 | F158: Homozygous Allele 2/Allele 2 | G158: 19.62 | H158: 0 | I158: 0.5 | J158: A
A159: 156 | B159: 166 | C159: PC8 | D159: DSB 19 | E159: Homozygous Allele 1/Allele 1 | F159: Homozygous Allele 1/Allele 1 | G159: 19.03 | H159: 1.5 | I159: 0.5 | J159: T
A160: 157 | B160: 167 | C160: PC9 | D160: DSB 23-2 | E160: Heterozygous Allele 1/Allele 2 | F160: Homozygous Allele 1/Allele 1 | G160: 13.63 | H160: 4.5 | I160: 0 | J160: T
A161: 158 | B161: 168 | C161: PC10 | D161: DSB 283 | E161: Homozygous Allele 1/Allele 1 | F161: Homozygous Allele 1/Allele 1 | G161: 11.28 | H161: 5 | I161: 0 | J161: T
A162: 159 | B162: 169 | C162: PC13 | D162: HIMSO 1563 | E162: Homozygous Allele 2/Allele 2 | F162: Homozygous Allele 2/Allele 2 | G162: 20.10 | H162: 2 | I162: 0.5 | J162: N
A163: 160 | B163: 170 | C163: PC17 | D163: JS 72280 | E163: Homozygous Allele 1/Allele 1 | F163: Homozygous Allele 1/Allele 1 | G163: 17.95 | H163: 5 | I163: 0 | J163: T
A164: 161 | B164: 171 | C164: PC18 | D164: JS 7244 | E164: Undetermined | F164: Homozygous Allele 2/Allele 2 | G164: 20.67 | H164: 0 | I164: 0.5 | J164: A
A165: 162 | B165: 172 | C165: PC20 | D165: JS 8021 | E165: Homozygous Allele 1/Allele 1 | F165: Homozygous Allele 1/Allele 1 | G165: 17.04 | H165: 5 | I165: 0 | J165: T
A166: 163 | B166: 173 | C166: PC21 | D166: JS 9305 | E166: Homozygous Allele 1/Allele 1 | F166: Homozygous Allele 1/Allele 1 | G166: 18.78 | H166: 2.5 | I166: 0.5 | J166: T
A167: 164 | B167: 174 | C167: PC24 | D167: JSSH 9337 | E167: Homozygous Allele 2/Allele 2 | F167: Homozygous Allele 2/Allele 2 | G167: 16.70 | H167: 2 | I167: 0.5 | J167: N
A168: 165 | B168: 175 | C168: PC25 | D168: KALITUR | E168: Homozygous Allele 2/Allele 2 | F168: Homozygous Allele 2/Allele 2 | G168: 20.82 | H168: 2.5 | I168: 0.5 | J168: A
A169: 166 | B169: 176 | C169: PC27 | D169: KDS 344 | E169: Homozygous Allele 1/Allele 1 | F169: Homozygous Allele 1/Allele 1 | G169: 14.41 | H169: 2 | I169: 0 | J169: T
A170: 167 | B170: 177 | C170: PC33 | D170: LEE | E170: Homozygous Allele 1/Allele 1 | F170: Homozygous Allele 1/Allele 1 | G170: 18.63 | H170: 5 | I170: 0 | J170: T
A171: 168 | B171: 178 | C171: PC34 | D171: MACS 1037 | E171: Homozygous Allele 1/Allele 1 | F171: Homozygous Allele 1/Allele 1 | G171: 16.62 | H171: 2.5 | I171: 0.5 | J171: T
A172: 169 | B172: 179 | C172: PC37 | D172: MACS 1140 | E172: Homozygous Allele 1/Allele 1 | F172: Homozygous Allele 1/Allele 1 | G172: 15.02 | H172: 0 | I172: 0 | J172: T
A173: 170 | B173: 180 | C173: PC38 | D173: MACS 1188 | E173: Homozygous Allele 1/Allele 1 | F173: Homozygous Allele 1/Allele 1 | G173: 5.79 | H173: 4 | I173: 0 | J173: T
A174: 171 | B174: 181 | C174: PC39 | D174: MACS 1259 | E174: Homozygous Allele 1/Allele 1 | F174: Homozygous Allele 1/Allele 1 | G174: 16.52 | H174: 5 | I174: 0 | J174: T
A175: 172 | B175: 182 | C175: PC41 | D175: MACS 1281 | E175: Homozygous Allele 2/Allele 2 | F175: Homozygous Allele 2/Allele 2 | G175: 15.73 | H175: 2 | I175: 0.5 | J175: A
A176: 173 | B176: 183 | C176: PC42 | D176: MACS 13 | E176: Homozygous Allele 2/Allele 2 | F176: Homozygous Allele 2/Allele 2 | G176: 17.35 | H176: 2.5 | I176: 0 | J176: A
A177: 174 | B177: 184 | C177: PC43 | D177: MACS 1340 | E177: Homozygous Allele 1/Allele 1 | F177: Homozygous Allele 1/Allele 1 | G177: 16.07 | H177: 0 | I177: 0 | J177: T
A178: 175 | B178: 185 | C178: PC44 | D178: MACS 1370 | E178: Homozygous Allele 1/Allele 1 | F178: Homozygous Allele 1/Allele 1 | G178: 16.37 | H178: 2 | I178: 0.5 | J178: T
A179: 176 | B179: 186 | C179: PC45 | D179: MACS 1407 | E179: Homozygous Allele 1/Allele 1 | F179: Homozygous Allele 1/Allele 1 | G179: 14.45 | H179: 4.5 | I179: 0 | J179: T
A180: 177 | B180: 187 | C180: PC49 | D180: MACS 450 | E180: Homozygous Allele 1/Allele 1 | F180: Homozygous Allele 1/Allele 1 | G180: 20.40 | H180: 4.5 | I180: 0 | J180: T
A181: 178 | B181: 188 | C181: PC51 | D181: MACS 57 | E181: Homozygous Allele 1/Allele 1 | F181: Homozygous Allele 1/Allele 1 | G181: 13.35 | H181: 4.5 | I181: 0 | J181: T
A182: 179 | B182: 189 | C182: PC61 | D182: MONETTA | E182: Homozygous Allele 1/Allele 1 | F182: Homozygous Allele 1/Allele 1 | G182: 13.43 | H182: 2.5 | I182: 0 | J182: T
A183: 180 | B183: 190 | C183: PC67 | D183: NRC 150 | E183: Homozygous Allele 1/Allele 1 | F183: Homozygous Allele 1/Allele 1 | G183: 13.87 | H183: 4.5 | I183: 0 | J183: T
A184: 181 | B184: 191 | C184: PC68 | D184: NRC 37 | E184: Homozygous Allele 1/Allele 1 | F184: - | G184: 8.20 | H184: 4.5 | I184: 0 | J184: T
A185: 182 | B185: 192 | C185: PC71 | D185: PK 1042 | E185: Homozygous Allele 1/Allele 1 | F185: Homozygous Allele 1/Allele 1 | G185: 14.83 | H185: 4.5 | I185: 0 | J185: T
A186: 183 | B186: 193 | C186: PC73 | D186: PK 416 | E186: Homozygous Allele 1/Allele 1 | F186: Homozygous Allele 1/Allele 1 | G186: 10.50 | H186: 5 | I186: 0 | J186: T
A187: 184 | B187: 194 | C187: PC75 | D187: PK 472 | E187: Homozygous Allele 1/Allele 1 | F187: Homozygous Allele 1/Allele 1 | G187: 21.32 | H187: 2.5 | I187: 0.5 | J187: T
A188: 185 | B188: 195 | C188: PC77 | D188: PUNJAB 1 | E188: Homozygous Allele 1/Allele 1 | F188: Homozygous Allele 1/Allele 1 | G188: 19.13 | H188: 5 | I188: 0 | J188: T
A189: 186 | B189: 196 | C189: PC78 | D189: PUSA 40 | E189: Undetermined | F189: Undetermined | G189: 24.85 | H189: 1.5 | I189: 0.5 | J189: A
A190: 187 | B190: 197 | C190: PC80 | D190: RSC 1046 | E190: Homozygous Allele 1/Allele 1 | F190: Homozygous Allele 1/Allele 1 | G190: 16.72 | H190: 2.5 | I190: 0.5 | J190: T
A191: 188 | B191: 198 | C191: PC82 | D191: SL 955 | E191: Homozygous Allele 1/Allele 1 | F191: - | G191: 17.48 | H191: 2 | I191: 0 | J191: T
A192: 189 | B192: 199 | C192: PC84 | D192: SL 958 | E192: Homozygous Allele 1/Allele 1 | F192: Homozygous Allele 1/Allele 1 | G192: 19.05 | H192: 5 | I192: 0 | J192: T
A193: 190 | B193: 200 | C193: PC85 | D193: SUMMER KING | E193: Homozygous Allele 1/Allele 1 | F193: Homozygous Allele 1/Allele 1 | G193: 19.20 | H193: 0 | I193: 0.5 | J193: T
A194: 191 | B194: 201 | C194: PC86 | D194: TAMS 38 | E194: Homozygous Allele 1/Allele 1 | F194: - | G194: 18.78 | H194: 5 | I194: 0 | J194: T
A195: 192 | B195: 202 | C195: PC87 | D195: TAMS 9821 | E195: Undetermined | F195: Undetermined | G195: 21.97 | H195: 0 | I195: 0.5 | J195: N
A196: 193 | B196: 203 | C196: PC88 | D196: TS 9976 | E196: Homozygous Allele 1/Allele 1 | F196: Homozygous Allele 1/Allele 1 | G196: 14.42 | H196: 4.5 | I196: 0 | J196: T
A197: 194 | B197: 204 | C197: PC89 | D197: VLC 47 (ALMOR) | E197: Homozygous Allele 1/Allele 1 | F197: Homozygous Allele 1/Allele 1 | G197: 25.45 | H197: 0.5 | I197: 0.5 | J197: T
A198: 195 | B198: 205 | C198: PC90 | D198: VLC 86 | E198: Homozygous Allele 1/Allele 1 | F198: Homozygous Allele 1/Allele 1 | G198: 15.87 | H198: 3 | I198: 0 | J198: T
A199: 196 | B199: 206 | C199: PC91 | D199: VLS 65 (ALMOR) | E199: Homozygous Allele 2/Allele 2 | F199: Homozygous Allele 2/Allele 2 | G199: 18.17 | H199: 4.5 | I199: 0 | J199: A
A200: 197 | B200: 207 | C200: PC94 | D200: YVMVR 1 | E200: Homozygous Allele 1/Allele 1 | F200: Homozygous Allele 1/Allele 1 | G200: 17.48 | H200: 4.5 | I200: 0 | J200: T
... 10 more rows
